Workbook

Sheet ＴＯＰ
B8: 入力・移動 | E8: 説明
E10: 会社名、適用事業年度などを入力します
E12: 従業員の名前などの情報と、前期・今期の給与情報を入力します。 給与計算ソフトからエクスポートした情報などを貼り付けると、効果的です。
E14: 今期の教育訓練費がある場合に入力します。入力後集計ボタンを押すと、合計額が別表に転記されます。
E16: 今期の教育訓練費がある場合、前期の教育訓練費を入力します。入力後集計ボタンを押すと、合計額が別表に転記されます。
E18: 別表６（２６）の画面が表示されます。税額等を入力後印刷し、税務ソフトなどに転記してください。
E19: 提供：小林敬幸税理士事務所
E20: Ver. 1.0
B21: ★当事務所の税理士の著書
C23: 帳簿初心者な方向けに、パソコン会計で徹底的に簡単に青色申告を行うためのTipsを詰め込んだ、自信の一作です！
C26: ★参考 このファイルの保護パスワードは、こちらの本の背面の２つめのバーコードの数字（1922で始まる１３ケタの数字（半角））になっています。マクロを有効にすると、保護を解除しなくともすべての機能は使えますが、保護を解除して改造等挑戦される方は是非本書もお求めください。
C29: 個人事業を会社にした場合の税金や社会保険料の変化が、誰でも簡単にシミュレーションできるソフトが付録についた、法人成りのノウハウ満載のマニュアル本です！

Sheet 基本情報
B7: 会社名 | C7: 株式会社今野デザイン
B9: 中小企業に該当するか | C9: 該当 | E9: =IF(C9="該当",20,10) -> 20
B11: 計算事業年度の期末日 | C11: 2019-03-31
B12: 計算事業年度の期首日 | C12: =EOMONTH(C11,-12)+1 -> 2018-04-01
B13: 計算事業年度の月数 | C13: =(YEAR(C11)-YEAR(C12))*12+MONTH(C11)-MONTH(C12)+IF(DAY(C12)<=DAY(C11),1,0) -> 12
B15: 前事業年度の期末日 | C15: =C12-1 -> 2018-03-31
B16: 前事業年度の期首日 | C16: 2017-04-01 | D16: ←前事業年度が一年未満の場合は、期首日を上書きしてください。 | E16: =EOMONTH(C15,-12)+1 -> 2017-04-01
B17: 前事業年度の月数 | C17: =(YEAR(C15)-YEAR(C16))*12+MONTH(C15)-MONTH(C16)+IF(DAY(C16)<=DAY(C15),1,0) -> 12 | D17: =IF(C18="該当する","",IF(C17<6,"←前事業年度が６か月未満の場合は、比較雇用者給与等支給額の自動計算が行われません。 手計算で計算を行ってください。","")) ->  | E17: =IF(C18="該当する",C16,E16) -> 2017-04-01
B18: 前事業年度が設立 事業年度に該当するか | C18: 該当しない | E18: =C17 -> 12
B20: 経営力向上要件 | C20: 満たさない | E20: =IF(C20="満たさない",0,1) -> 0
E21: =(YEAR(C15)-YEAR(E17))*12+MONTH(C15)-MONTH(E17)+IF(DAY(E17)<=DAY(C15),1,0) -> 12

Sheet 給与入力
B4: １、従業員情報の入力
B5: Ｎｏ． | D5: 1 | E5: 2 | F5: 3 | G5: 4 | H5: 5 | I5: 6 | J5: 7 | K5: 8 | L5: 9 | M5: 10 | N5: 11 | O5: 12 | P5: 13 | Q5: 14 | R5: 15 | S5: 16 | T5: 17 | U5: 18 | V5: 19 | W5: 20 | X5: 21 | Y5: 22 | Z5: 23 | AA5: 24 | AB5: 25 | AC5: 26 | AD5: 27 | AE5: 28 | AF5: 29 | AG5: 30
B6: 名前 | D6: 今野 友夫 | E6: 今野 朝子 | F6: 絹延橋 みつ子 | G6: 山下 崇 | H6: 滝山 真一 | I6: 日生 暁久 | J6: 鳥居 雅之 | K6: 笹部 菜穂美 | L6: 畦野 繁樹 | M6: 多田 昭彦 | N6: 川西 めぐみ | O6: 常盤 典子 | P6: 平野 裕 | Q6: 鼓滝 健三 | R6: 妙見 隆一
B7: 役員/兼務役員/特殊関係者 | D7: 該当 | E7: 該当 | F7: 非該当 | G7: 非該当 | H7: 非該当 | I7: 非該当 | J7: 非該当 | K7: 非該当 | L7: 非該当 | M7: 非該当 | N7: 非該当 | O7: 非該当 | P7: 非該当 | Q7: 非該当 | R7: 非該当
B8: 国内雇用者 | F8: 該当 | G8: 該当 | H8: 該当 | I8: 該当 | J8: 該当 | K8: 該当 | L8: 該当 | M8: 該当 | N8: 該当 | O8: 該当 | P8: 非該当 | Q8: 該当 | R8: 該当
B9: 雇用保険一般被保険者 | F9: 該当 | G9: 該当 | H9: 該当 | I9: 該当 | J9: 該当 | K9: 該当 | L9: 該当 | M9: 該当 | N9: 非該当 | O9: 該当 | Q9: 非該当 | R9: 該当
B10: 高年齢被保険者 | F10: 非該当 | G10: 非該当 | H10: 非該当 | I10: 非該当 | J10: 非該当 | K10: 非該当 | L10: 非該当 | M10: 非該当 | O10: 該当 | R10: 非該当
B11: 継続雇用制度対象者 | F11: 非該当 | G11: 非該当 | H11: 非該当 | I11: 非該当 | J11: 非該当 | K11: 非該当 | L11: 非該当 | M11: 非該当 | R11: 非該当
B12: 雇用者給与等集計対象 | D12: =IF(D6="","",IF(D7="","対象外",IF(D7="該当","対象外",IF(OR(D8="非該当",D8=""),"対象外","対象")))) -> 対象外 | E12: 対象外 | F12: =IF(F6="","",IF(F7="","対象外",IF(F7="該当","対象外",IF(OR(F8="非該当",F8=""),"対象外","対象")))) -> 対象 | G12: =IF(G6="","",IF(G7="","対象外",IF(G7="該当","対象外",IF(OR(G8="非該当",G8=""),"対象外","対象")))) -> 対象 | H12: 対象 | I12: 対象 | J12: 対象 | K12: 対象 | L12: 対象 | M12: 対象 | N12: 対象 | O12: 対象 | P12: 対象外 | Q12: 対象 | R12: 対象
B13: 継続雇用者集計対象 | D13: =IF(D6="","",IF(AND(D10="非該当",D11="非該当",D12="対象",D38="毎月支給OK",D61="毎月支給OK"),"対象","対象外")) -> 対象外 | E13: =IF(E6="","",IF(AND(E10="非該当",E11="非該当",E12="対象",E38="毎月支給OK",E61="毎月支給OK"),"対象","対象外")) -> 対象外 | F13: 対象 | G13: 対象外 | H13: 対象 | I13: 対象 | J13: 対象 | K13: 対象 | L13: 対象 | M13: 対象外 | N13: 対象外 | O13: 対象外 | P13: 対象外 | Q13: 対象外 | R13: 対象外
B14: 該当
B15: 非該当
B17: ２、前事業年度（前期）の給与入力
B18: Ｎｏ． | D18: 1 | E18: 2 | F18: 3 | G18: 4 | H18: 5 | I18: 6 | J18: 7 | K18: 8 | L18: 9 | M18: 10 | N18: 11 | O18: 12 | P18: 13 | Q18: 14 | R18: 15 | S18: 16 | T18: 17 | U18: 18 | V18: 19 | W18: 20 | X18: 21 | Y18: 22 | Z18: 23 | AA18: 24 | AB18: 25 | AC18: 26 | AD18: 27 | AE18: 28 | AF18: 29 | AG18: 30 | AH18: 合計
B19: 名前 | D19: =IF(D6="","",D6) -> 今野 友夫 | E19: 今野 朝子 | F19: 絹延橋 みつ子 | G19: 山下 崇 | H19: 滝山 真一 | I19: 日生 暁久 | J19: 鳥居 雅之 | K19: 笹部 菜穂美 | L19: 畦野 繁樹 | M19: 多田 昭彦 | N19: 川西 めぐみ | O19: 常盤 典子 | P19: 平野 裕 | Q19: 鼓滝 健三 | R19: 妙見 隆一
B20: =基本情報!E16 -> 2017-04-01 | D20: 800000 | E20: 500000 | F20: 350000 | G20: 303456 | H20: 250000 | I20: 120000 | J20: 442000 | K20: 296485 | L20: 284883 | M20: 235157 | N20: 68640 | O20: 66960 | P20: 52800 | Q20: 54780 | AH20: =SUM(D20:AG20) -> 3825161
B21: =EOMONTH(B20,1) -> 2017-05-31 | D21: 800000 | E21: 500000 | F21: 350000 | G21: 314555 | H21: 430000 | I21: 317000 | J21: 442000 | K21: 296485 | L21: 284883 | M21: 235157 | N21: 68640 | O21: 66960 | P21: 52800 | Q21: 54780 | AH21: =SUM(D21:AG21) -> 4213260
B22: =EOMONTH(B21,1) -> 2017-06-30 | D22: 800000 | E22: 500000 | F22: 350000 | G22: 318047 | H22: 430000 | I22: 317000 | J22: 442000 | K22: 296485 | L22: 284883 | M22: 235157 | N22: 68640 | O22: 66960 | P22: 52800 | Q22: 54780 | AH22: 4216752
B23: 2017-07-31 | D23: 800000 | E23: 500000 | F23: 350000 | G23: 323438 | H23: 435000 | I23: 322000 | J23: 447000 | K23: 301875 | L23: 290469 | M23: 240625 | N23: 69420 | O23: 67680 | P23: 53400 | Q23: 55440 | AH23: 4256347
B24: 2017-08-31 | D24: 800000 | E24: 500000 | F24: 350000 | G24: 323438 | H24: 435000 | I24: 322000 | J24: 447000 | K24: 301875 | L24: 290469 | M24: 240625 | N24: 69420 | O24: 67680 | P24: 53400 | Q24: 55440 | AH24: 4256347
B25: 2017-09-30 | D25: 800000 | E25: 500000 | F25: 350000 | G25: 0 | H25: 435000 | I25: 322000 | J25: 447000 | K25: 301875 | L25: 290469 | M25: 240625 | N25: 69420 | O25: 67680 | P25: 53400 | Q25: 55440 | AH25: 3932909
B26: 2017-10-31 | D26: 800000 | E26: 500000 | F26: 350000 | G26: 323438 | H26: 435000 | I26: 322000 | J26: 447000 | K26: 301875 | L26: 290469 | M26: 240625 | N26: 69420 | O26: 67680 | P26: 53400 | Q26: 55440 | AH26: 4256347
B27: 2017-11-30 | D27: 800000 | E27: 500000 | F27: 350000 | G27: 323438 | H27: 435000 | I27: 322000 | J27: 447000 | K27: 301875 | L27: 290469 | M27: 240625 | N27: 69420 | O27: 67680 | P27: 53400 | Q27: 55440 | R27: 190000 | AH27: 4446347
B28: 2017-12-31 | D28: 800000 | E28: 500000 | F28: 350000 | G28: 323438 | H28: 435000 | I28: 322000 | J28: 447000 | K28: 301875 | L28: 290469 | M28: 240625 | N28: 69420 | O28: 67680 | P28: 53400 | Q28: 55440 | R28: 190000 | AH28: 4446347
B29: 2018-01-31 | D29: 800000 | E29: 500000 | F29: 350000 | G29: 323438 | H29: 435000 | I29: 322000 | J29: 447000 | K29: 301875 | L29: 290469 | M29: 240625 | N29: 69420 | O29: 67680 | P29: 53400 | Q29: 55440 | R29: 190000 | AH29: 4446347
B30: 2018-02-28 | D30: 800000 | E30: 500000 | F30: 350000 | G30: 323438 | H30: 435000 | I30: 322000 | J30: 447000 | K30: 301875 | L30: 290469 | M30: 240625 | N30: 69420 | O30: 67680 | P30: 53400 | Q30: 55440 | R30: 190000 | AH30: 4446347
B31: 2018-03-31 | D31: 800000 | E31: 500000 | F31: 350000 | G31: 323438 | H31: 435000 | I31: 322000 | J31: 447000 | K31: 301875 | L31: 290469 | M31: 240625 | N31: 69420 | O31: 67680 | P31: 53400 | Q31: 55440 | R31: 190000 | AH31: 4446347
B32: 賞与１ | F32: 500000 | G32: 600000 | H32: 800000 | I32: 604000 | J32: 844000 | K32: 520000 | L32: 440000 | M32: 440000 | N32: 0 | O32: 0 | P32: 0 | Q32: 0 | AH32: 4748000
B33: 賞与２ | F33: 500000 | G33: 600000 | H33: 800000 | I33: 604000 | J33: 644000 | K33: 520000 | L33: 440000 | M33: 440000 | R33: 170000 | AH33: 4718000
B34: 賞与３ | AH34: 0
B35: 賞与４ | AH35: 0
B36: 他から支払いを受けた金額（マイナス入力） | AH36: 0
B37: 合計 | D37: =SUMIFS(D20:D31,$B20:$B31,">="&基本情報!$E$17)+SUM(D32:D36) -> 9600000 | E37: =SUMIFS(E20:E31,$B20:$B31,">="&基本情報!$E$17)+SUM(E32:E36) -> 6000000 | F37: =SUMIFS(F20:F31,$B20:$B31,">="&基本情報!$E$17)+SUM(F32:F36) -> 5200000 | G37: =SUMIFS(G20:G31,$B20:$B31,">="&基本情報!$E$17)+SUM(G32:G36) -> 4723562 | H37: =SUMIFS(H20:H31,$B20:$B31,">="&基本情報!$E$17)+SUM(H32:H36) -> 6625000 | I37: =SUMIFS(I20:I31,$B20:$B31,">="&基本情報!$E$17)+SUM(I32:I36) -> 4860000 | J37: =SUMIFS(J20:J31,$B20:$B31,">="&基本情報!$E$17)+SUM(J32:J36) -> 6837000 | K37: =SUMIFS(K20:K31,$B20:$B31,">="&基本情報!$E$17)+SUM(K32:K36) -> 4646330 | L37: =SUMIFS(L20:L31,$B20:$B31,">="&基本情報!$E$17)+SUM(L32:L36) -> 4348870 | M37: =SUMIFS(M20:M31,$B20:$B31,">="&基本情報!$E$17)+SUM(M32:M36) -> 3751096 | N37: =SUMIFS(N20:N31,$B20:$B31,">="&基本情報!$E$17)+SUM(N32:N36) -> 830700 | O37: =SUMIFS(O20:O31,$B20:$B31,">="&基本情報!$E$17)+SUM(O32:O36) -> 810000 | P37: =SUMIFS(P20:P31,$B20:$B31,">="&基本情報!$E$17)+SUM(P32:P36) -> 639000 | Q37: =SUMIFS(Q20:Q31,$B20:$B31,">="&基本情報!$E$17)+SUM(Q32:Q36) -> 663300 | R37: =SUMIFS(R20:R31,$B20:$B31,">="&基本情報!$E$17)+SUM(R32:R36) -> 1120000 | S37: =SUMIFS(S20:S31,$B20:$B31,">="&基本情報!$E$17)+SUM(S32:S36) -> 0 | T37: =SUMIFS(T20:T31,$B20:$B31,">="&基本情報!$E$17)+SUM(T32:T36) -> 0 | U37: =SUMIFS(U20:U31,$B20:$B31,">="&基本情報!$E$17)+SUM(U32:U36) -> 0 | V37: =SUMIFS(V20:V31,$B20:$B31,">="&基本情報!$E$17)+SUM(V32:V36) -> 0 | W37: =SUMIFS(W20:W31,$B20:$B31,">="&基本情報!$E$17)+SUM(W32:W36) -> 0 | X37: =SUMIFS(X20:X31,$B20:$B31,">="&基本情報!$E$17)+SUM(X32:X36) -> 0 | Y37: =SUMIFS(Y20:Y31,$B20:$B31,">="&基本情報!$E$17)+SUM(Y32:Y36) -> 0 | Z37: =SUMIFS(Z20:Z31,$B20:$B31,">="&基本情報!$E$17)+SUM(Z32:Z36) -> 0 | AA37: =SUMIFS(AA20:AA31,$B20:$B31,">="&基本情報!$E$17)+SUM(AA32:AA36) -> 0 | AB37: =SUMIFS(AB20:AB31,$B20:$B31,">="&基本情報!$E$17)+SUM(AB32:AB36) -> 0 | AC37: =SUMIFS(AC20:AC31,$B20:$B31,">="&基本情報!$E$17)+SUM(AC32:AC36) -> 0 | AD37: =SUMIFS(AD20:AD31,$B20:$B31,">="&基本情報!$E$17)+SUM(AD32:AD36) -> 0 | AE37: =SUMIFS(AE20:AE31,$B20:$B31,">="&基本情報!$E$17)+SUM(AE32:AE36) -> 0 | AF37: =SUMIFS(AF20:AF31,$B20:$B31,">="&基本情報!$E$17)+SUM(AF32:AF36) -> 0 | AG37: =SUMIFS(AG20:AG31,$B20:$B31,">="&基本情報!$E$17)+SUM(AG32:AG36) -> 0 | AH37: =SUM(AH20:AH36) -> 60654858
B38: 毎月の給与支給チェック | D38: =IF(D19="","",IF(COUNTIF(D20:D31,">0")>=基本情報!$E$18,"毎月支給OK","毎月支給NG")) -> 毎月支給OK | E38: =IF(E19="","",IF(COUNTIF(E20:E31,">0")>=基本情報!$E$18,"毎月支給OK","毎月支給NG")) -> 毎月支給OK | F38: =IF(F19="","",IF(COUNTIF(F20:F31,">0")>=基本情報!$E$18,"毎月支給OK","毎月支給NG")) -> 毎月支給OK | G38: =IF(G19="","",IF(COUNTIF(G20:G31,">0")>=基本情報!$E$18,"毎月支給OK","毎月支給NG")) -> 毎月支給NG | H38: =IF(H19="","",IF(COUNTIF(H20:H31,">0")>=基本情報!$E$18,"毎月支給OK","毎月支給NG")) -> 毎月支給OK | I38: =IF(I19="","",IF(COUNTIF(I20:I31,">0")>=基本情報!$E$18,"毎月支給OK","毎月支給NG")) -> 毎月支給OK | J38: =IF(J19="","",IF(COUNTIF(J20:J31,">0")>=基本情報!$E$18,"毎月支給OK","毎月支給NG")) -> 毎月支給OK | K38: =IF(K19="","",IF(COUNTIF(K20:K31,">0")>=基本情報!$E$18,"毎月支給OK","毎月支給NG")) -> 毎月支給OK | L38: =IF(L19="","",IF(COUNTIF(L20:L31,">0")>=基本情報!$E$18,"毎月支給OK","毎月支給NG")) -> 毎月支給OK | M38: =IF(M19="","",IF(COUNTIF(M20:M31,">0")>=基本情報!$E$18,"毎月支給OK","毎月支給NG")) -> 毎月支給OK | N38: =IF(N19="","",IF(COUNTIF(N20:N31,">0")>=基本情報!$E$18,"毎月支給OK","毎月支給NG")) -> 毎月支給OK | O38: =IF(O19="","",IF(COUNTIF(O20:O31,">0")>=基本情報!$E$18,"毎月支給OK","毎月支給NG")) -> 毎月支給OK | P38: =IF(P19="","",IF(COUNTIF(P20:P31,">0")>=基本情報!$E$18,"毎月支給OK","毎月支給NG")) -> 毎月支給OK | Q38: =IF(Q19="","",IF(COUNTIF(Q20:Q31,">0")>=基本情報!$E$18,"毎月支給OK","毎月支給NG")) -> 毎月支給OK | R38: =IF(R19="","",IF(COUNTIF(R20:R31,">0")>=基本情報!$E$18,"毎月支給OK","毎月支給NG")) -> 毎月支給NG | S38: =IF(S19="","",IF(COUNTIF(S20:S31,">0")>=基本情報!$E$18,"毎月支給OK","毎月支給NG")) ->  | T38: =IF(T19="","",IF(COUNTIF(T20:T31,">0")>=基本情報!$E$18,"毎月支給OK","毎月支給NG")) ->  | U38: =IF(U19="","",IF(COUNTIF(U20:U31,">0")>=基本情報!$E$18,"毎月支給OK","毎月支給NG")) ->  | V38: =IF(V19="","",IF(COUNTIF(V20:V31,">0")>=基本情報!$E$18,"毎月支給OK","毎月支給NG")) ->  | W38: =IF(W19="","",IF(COUNTIF(W20:W31,">0")>=基本情報!$E$18,"毎月支給OK","毎月支給NG")) ->  | X38: =IF(X19="","",IF(COUNTIF(X20:X31,">0")>=基本情報!$E$18,"毎月支給OK","毎月支給NG")) ->  | Y38: =IF(Y19="","",IF(COUNTIF(Y20:Y31,">0")>=基本情報!$E$18,"毎月支給OK","毎月支給NG")) ->  | Z38: =IF(Z19="","",IF(COUNTIF(Z20:Z31,">0")>=基本情報!$E$18,"毎月支給OK","毎月支給NG")) ->  | AA38: =IF(AA19="","",IF(COUNTIF(AA20:AA31,">0")>=基本情報!$E$18,"毎月支給OK","毎月支給NG")) ->  | AB38: =IF(AB19="","",IF(COUNTIF(AB20:AB31,">0")>=基本情報!$E$18,"毎月支給OK","毎月支給NG")) ->  | AC38: =IF(AC19="","",IF(COUNTIF(AC20:AC31,">0")>=基本情報!$E$18,"毎月支給OK","毎月支給NG")) ->  | AD38: =IF(AD19="","",IF(COUNTIF(AD20:AD31,">0")>=基本情報!$E$18,"毎月支給OK","毎月支給NG")) ->  | AE38: =IF(AE19="","",IF(COUNTIF(AE20:AE31,">0")>=基本情報!$E$18,"毎月支給OK","毎月支給NG")) ->  | AF38: =IF(AF19="","",IF(COUNTIF(AF20:AF31,">0")>=基本情報!$E$18,"毎月支給OK","毎月支給NG")) ->  | AG38: =IF(AG19="","",IF(COUNTIF(AG20:AG31,">0")>=基本情報!$E$18,"毎月支給OK","毎月支給NG")) -> 
B40: ３、計算事業年度（今期）の給与入力
B41: Ｎｏ． | D41: 1 | E41: 2 | F41: 3 | G41: 4 | H41: 5 | I41: 6 | J41: 7 | K41: 8 | L41: 9 | M41: 10 | N41: 11 | O41: 12 | P41: 13 | Q41: 14 | R41: 15 | S41: 16 | T41: 17 | U41: 18 | V41: 19 | W41: 20 | X41: 21 | Y41: 22 | Z41: 23 | AA41: 24 | AB41: 25 | AC41: 26 | AD41: 27 | AE41: 28 | AF41: 29 | AG41: 30 | AH41: 合計
B42: 名前 | D42: =IF(D6="","",D6) -> 今野 友夫 | E42: 今野 朝子 | F42: 絹延橋 みつ子 | G42: 山下 崇 | H42: 滝山 真一 | I42: 日生 暁久 | J42: 鳥居 雅之 | K42: 笹部 菜穂美 | L42: 畦野 繁樹 | M42: 多田 昭彦 | N42: 川西 めぐみ | O42: 常盤 典子 | P42: 平野 裕 | Q42: 鼓滝 健三 | R42: 妙見 隆一
B43: =基本情報!C12 -> 2018-04-01 | D43: 800000 | E43: 500000 | F43: 380000 | G43: 280000 | H43: 430000 | I43: 400000 | J43: 480000 | K43: 350000 | L43: 290469 | M43: 240625 | N43: 68640 | O43: 67680 | P43: 53400 | Q43: 55440 | R43: 190000 | AH43: =SUM(D43:AG43) -> 4586254
B44: =EOMONTH(B43,1) -> 2018-05-31 | D44: 800000 | E44: 550000 | F44: 380000 | G44: 280000 | H44: 430000 | I44: 400000 | J44: 480000 | K44: 350000 | L44: 290469 | M44: 240625 | N44: 68640 | O44: 67680 | P44: 53400 | Q44: 55440 | R44: 190000 | AH44: =SUM(D44:AG44) -> 4636254
B45: =EOMONTH(B44,1) -> 2018-06-30 | D45: 800000 | E45: 550000 | F45: 380000 | G45: 280000 | H45: 430000 | I45: 400000 | J45: 480000 | K45: 350000 | L45: 290469 | M45: 240625 | N45: 68640 | O45: 67680 | P45: 53400 | Q45: 55440 | R45: 190000 | AH45: 4636254
B46: 2018-07-31 | D46: 800000 | E46: 550000 | F46: 380000 | G46: 280000 | H46: 435000 | I46: 400000 | J46: 480000 | K46: 350000 | L46: 290469 | M46: 240625 | N46: 69420 | O46: 67680 | P46: 53400 | Q46: 55440 | R46: 190000 | AH46: 4642034
B47: 2018-08-31 | D47: 800000 | E47: 550000 | F47: 380000 | G47: 280000 | H47: 435000 | I47: 400000 | J47: 480000 | K47: 350000 | L47: 290469 | M47: 240625 | N47: 69420 | O47: 67680 | P47: 53400 | Q47: 55440 | R47: 190000 | AH47: 4642034
B48: 2018-09-30 | D48: 800000 | E48: 550000 | F48: 380000 | G48: 280000 | H48: 435000 | I48: 400000 | J48: 480000 | K48: 350000 | L48: 290469 | M48: 240625 | N48: 69420 | O48: 67680 | P48: 53400 | Q48: 55440 | R48: 190000 | AH48: 4642034
B49: 2018-10-31 | D49: 800000 | E49: 550000 | F49: 380000 | G49: 280000 | H49: 435000 | I49: 400000 | J49: 480000 | K49: 350000 | L49: 290469 | N49: 69420 | O49: 67680 | P49: 53400 | Q49: 55440 | R49: 190000 | AH49: 4401409
B50: 2018-11-30 | D50: 800000 | E50: 550000 | F50: 380000 | G50: 280000 | H50: 435000 | I50: 400000 | J50: 480000 | K50: 350000 | L50: 290469 | N50: 69420 | O50: 67680 | P50: 53400 | Q50: 55440 | R50: 190000 | AH50: 4401409
B51: 2018-12-31 | D51: 800000 | E51: 550000 | F51: 380000 | G51: 280000 | H51: 435000 | I51: 400000 | J51: 480000 | K51: 350000 | L51: 290469 | N51: 69420 | O51: 67680 | P51: 53400 | Q51: 55440 | R51: 190000 | AH51: 4401409
B52: 2019-01-31 | D52: 800000 | E52: 550000 | F52: 380000 | G52: 280000 | H52: 435000 | I52: 400000 | J52: 480000 | K52: 350000 | L52: 290469 | N52: 69420 | O52: 67680 | P52: 53400 | Q52: 55440 | R52: 190000 | AH52: 4401409
B53: 2019-02-28 | D53: 800000 | E53: 550000 | F53: 380000 | G53: 280000 | H53: 435000 | I53: 400000 | J53: 480000 | K53: 350000 | L53: 290469 | N53: 69420 | O53: 67680 | P53: 53400 | Q53: 55440 | R53: 190000 | AH53: 4401409
B54: 2019-03-31 | D54: 800000 | E54: 550000 | F54: 380000 | G54: 280000 | H54: 435000 | I54: 400000 | J54: 480000 | K54: 350000 | L54: 290469 | N54: 69420 | O54: 67680 | P54: 53400 | Q54: 55440 | R54: 190000 | AH54: 4401409
B55: 賞与１ | F55: 600000 | G55: 600000 | H55: 800000 | I55: 604000 | J55: 950000 | K55: 700000 | L55: 440000 | N55: 0 | O55: 0 | P55: 0 | Q55: 0 | R55: 300000 | AH55: 4994000
B56: 賞与２ | F56: 600000 | G56: 600000 | H56: 800000 | I56: 604000 | J56: 750000 | K56: 700000 | L56: 440000 | R56: 350000 | AH56: 4844000
B57: 賞与３ | AH57: 0
B58: 賞与４ | AH58: 0
B59: 他から支払いを受けた金額（マイナス入力） | AH59: 0
B60: 合計 | D60: =SUM(D43:D59) -> 9600000 | E60: =SUM(E43:E59) -> 6550000 | F60: =SUM(F43:F59) -> 5760000 | G60: =SUM(G43:G59) -> 4560000 | H60: =SUM(H43:H59) -> 6805000 | I60: =SUM(I43:I59) -> 6008000 | J60: =SUM(J43:J59) -> 7460000 | K60: =SUM(K43:K59) -> 5600000 | L60: =SUM(L43:L59) -> 4365628 | M60: =SUM(M43:M59) -> 1443750 | N60: =SUM(N43:N59) -> 830700 | O60: =SUM(O43:O59) -> 812160 | P60: =SUM(P43:P59) -> 640800 | Q60: =SUM(Q43:Q59) -> 665280 | R60: =SUM(R43:R59) -> 2930000 | S60: =SUM(S43:S59) -> 0 | T60: =SUM(T43:T59) -> 0 | U60: =SUM(U43:U59) -> 0 | V60: =SUM(V43:V59) -> 0 | W60: =SUM(W43:W59) -> 0 | X60: =SUM(X43:X59) -> 0 | Y60: =SUM(Y43:Y59) -> 0 | Z60: =SUM(Z43:Z59) -> 0 | AA60: =SUM(AA43:AA59) -> 0 | AB60: =SUM(AB43:AB59) -> 0 | AC60: =SUM(AC43:AC59) -> 0 | AD60: =SUM(AD43:AD59) -> 0 | AE60: =SUM(AE43:AE59) -> 0 | AF60: =SUM(AF43:AF59) -> 0 | AG60: =SUM(AG43:AG59) -> 0 | AH60: =SUM(AH43:AH59) -> 64031318
B61: 毎月の給与支給チェック | D61: =IF(D42="","",IF(COUNTIF(D43:D54,">0")=12,"毎月支給OK","毎月支給NG")) -> 毎月支給OK | E61: =IF(E42="","",IF(COUNTIF(E43:E54,">0")=12,"毎月支給OK","毎月支給NG")) -> 毎月支給OK | F61: 毎月支給OK | G61: 毎月支給OK | H61: 毎月支給OK | I61: 毎月支給OK | J61: 毎月支給OK | K61: 毎月支給OK | L61: 毎月支給OK | M61: 毎月支給NG | N61: 毎月支給OK | O61: 毎月支給OK | P61: 毎月支給OK | Q61: 毎月支給OK | R61: 毎月支給OK
B63: ４、別表に転記する金額の集計
B64: Ｎｏ． | D64: 1 | E64: 2 | F64: 3 | G64: 4 | H64: 5 | I64: 6 | J64: 7 | K64: 8 | L64: 9 | M64: 10 | N64: 11 | O64: 12 | P64: 13 | Q64: 14 | R64: 15 | S64: 16 | T64: 17 | U64: 18 | V64: 19 | W64: 20 | X64: 21 | Y64: 22 | Z64: 23 | AA64: 24 | AB64: 25 | AC64: 26 | AD64: 27 | AE64: 28 | AF64: 29 | AG64: 30 | AH64: 合計
B65: 名前 | D65: =IF(D6="","",D6) -> 今野 友夫 | E65: 今野 朝子 | F65: 絹延橋 みつ子 | G65: 山下 崇 | H65: 滝山 真一 | I65: 日生 暁久 | J65: 鳥居 雅之 | K65: 笹部 菜穂美 | L65: 畦野 繁樹 | M65: 多田 昭彦 | N65: 川西 めぐみ | O65: 常盤 典子 | P65: 平野 裕 | Q65: 鼓滝 健三 | R65: 妙見 隆一
B66: 前事業年度の雇用者給与等支給額 | D66: =IF(D65="","",IF(D12="対象",SUM(D37),0)) -> 0 | E66: =IF(E65="","",IF(E12="対象",SUM(E37),0)) -> 0 | F66: 5200000 | G66: 4723562 | H66: 6625000 | I66: 4860000 | J66: 6837000 | K66: 4646330 | L66: 4348870 | M66: 3751096 | N66: 830700 | O66: 810000 | P66: 0 | Q66: 663300 | R66: 1120000 | AH66: =SUM(D66:AG66) -> 44415858
B67: 前事業年度の継続雇用者給与等支給額 | D67: =IF(D65="","",IF(D13="対象",SUM(D37),0)) -> 0 | E67: =IF(E65="","",IF(E13="対象",SUM(E37),0)) -> 0 | F67: 5200000 | G67: 0 | H67: 6625000 | I67: 4860000 | J67: 6837000 | K67: 4646330 | L67: 4348870 | M67: 0 | N67: 0 | O67: 0 | P67: 0 | Q67: 0 | R67: 0 | AH67: =SUM(D67:AG67) -> 32517200
B68: 計算事業年度の雇用者給与等支給額 | D68: =IF(D65="","",IF(D12="対象",SUM(D60),0)) -> 0 | E68: =IF(E65="","",IF(E12="対象",SUM(E60),0)) -> 0 | F68: 5760000 | G68: 4560000 | H68: 6805000 | I68: 6008000 | J68: 7460000 | K68: 5600000 | L68: 4365628 | M68: 1443750 | N68: 830700 | O68: 812160 | P68: 0 | Q68: 665280 | R68: 2930000 | AH68: =SUM(D68:AG68) -> 47240518
B69: 計算事業年度の継続雇用者給与等支給額 | D69: =IF(D65="","",IF(D13="対象",SUM(D60),0)) -> 0 | E69: =IF(E65="","",IF(E13="対象",SUM(E60),0)) -> 0 | F69: 5760000 | G69: 0 | H69: 6805000 | I69: 6008000 | J69: 7460000 | K69: 5600000 | L69: 4365628 | M69: 0 | N69: 0 | O69: 0 | P69: 0 | Q69: 0 | R69: 0 | AH69: =SUM(D69:AG69) -> 35998628

Sheet 別表6(24)
C5: 中小企業者等が給与等の引上げを行った場合 の法人税額の特別控除に関する明細書 | X5: 事 業 年 度 | AA5: =基本情報!C12 -> 2018-04-01 | AI5: 法人名 | AK5: =基本情報!C7 -> 株式会社今野デザイン | AT5: 別表六
AA7: =基本情報!C11 -> 2019-03-31
C8: 雇用者給与等支給額 | P8: 1 | X8: 円 | Y8: 雇用者給与等支給増加重複控除 | AK8: 12 | AS8: 円 | AT8: ( | AU8: 二十六 | AV8: )
Q9: =給与入力!AH68 -> 47240518
Y10: （別表六(二十六)付表｢13｣）
C12: 比較雇用者給与等支給額 | P12: 2 | Y12: 雇用者給与等支給増加額 | AK12: 13 | AT12: 平三十一・四・一以後終了事業年度分
Q13: =AJ59 -> 44415858 | AL13: =IF(Q17-AL9>0,Q17-AL9,0) -> 2824660
C14: (25) | Y14: (3)－(12)
Y15: (マイナスの場合は0)
C16: 調整前雇用者給与等支給増加額 | P16: 3 | Y16: 法 人 税 額 の 特 別 控 除 額 の 計 算 | Z16: 中小企業者等税額控除限度額の計算 | AA16: (7)≧2.5%の場合において、(11)≧10%若しくは(8)＝(10)＞0のとき又は経営力向上要件を満たすとき | AK16: 14 | AL16: =IF(AND(Q33>=0.025,OR(Q50>=0.1,AND(Q38=Q46,Q46>0),基本情報!E20=1)),ROUNDDOWN(AL13*0.25,0),"") -> 
Q17: =IF(Q9-Q13>0,Q9-Q13,0) -> 2824660
C18: (1)－(2)
C19: (マイナスの場合は0)
C20: 増加割合の計算 継続雇用者給与等支給 | E20: 継続雇用者給与等支給額 | P20: 4 | V20: 0 | AC20: (13)× | AF20: 25
Q21: =S73 -> 35998628 | AF21: 100
E22: （30の①） | AA22: 同上以外の場合 | AK22: 15 | AL22: =IF(AND(Q33>=0.025,OR(Q50>=0.1,AND(Q38=Q46,Q46>0),基本情報!E20=1)),"",IF(Q33<0.015,0,ROUNDDOWN(AL13*0.15,0))) -> 423699
E24: 継続雇用者比較給与等支給額 | P24: 5
Q25: =IF(基本情報!C17=12,AC73,AL73) -> 32517200 | AC25: (13)× | AF25: 15
E26: (30の②)又は(30の③) | AF26: 100
AA27: ((7)＜0.015の場合は0)
E28: 継続雇用者給与等支給増加額 | P28: 6 | AA28: 中小企業者等税額控除限度額 | AK28: 16 | AL28: =IF(AND(Q33>=0.025,OR(Q50>=0.1,AND(Q38=Q46,Q46>0),基本情報!E20=1)),AL16,AL22) -> 423699
Q29: =IF(Q21-Q25>0,Q21-Q25,0) -> 3481428
E30: (4)－(5)
E31: (マイナスの場合は0)
E32: 継続雇用者給与等支給増加割合 | P32: 7 | AA32: (14)又は(15)
Q33: =IF(Q25>0,ROUNDDOWN(Q29/Q25,4),0) -> 0.107
J34: (6) | Z34: 調整前法人税額 | AK34: 17 | AL34: 4000000
J35: (5)
E36: ((5)＝0の場合は0) | Z36: （別表一｢2｣又は別表一の三｢2｣若しく は｢14｣）
C37: 教育訓練費増加割合の計算 | E37: 教育訓練費の額 | P37: 8 | V37: 0 | X37: 円
Q38: 0 | Z38: 当期税額基準額 | AK38: 18 | AL38: =ROUNDDOWN(AL34*0.2,0) -> 800000
AC40: (17)× | AF40: 20
E41: 中小企業比較教育訓練費の額 | P41: 9 | AF41: 100
Q42: =AJ87 -> 1103400 | Z42: 当期税額控除可能額 | AK42: 19 | AL42: =MIN(AL28,AL38) -> 423699
E43: (35)
Z44: ((16)と(18)のうち少ない金額)
E45: 教育訓練費増加額 | P45: 10
Q46: =IF(Q38-Q42>0,Q38-Q42,0) -> 0 | Z46: 調整前法人税額超過構成額 | AK46: 20 | AL46: 0
E47: (8)－(9)
E48: (マイナスの場合は0) | Z48: （別表六(六)｢7の㉔｣）
E49: 教育訓練費増加割合 | P49: 11
Q50: =IF(Q42>0,ROUNDDOWN(Q46/Q42,4),0) -> 0 | Z50: 法人税額の特別控除額 | AK50: 21 | AL50: =AL42-AL46 -> 423699
J51: (10)
J52: (9) | Z52: (19)－(20)
E53: ((9)＝0の場合は0)
H54: 比較雇用者給与等支給額の計算
C55: 前事業年度又は前連結事業年度 | P55: 国内雇用者に対する 給与等の支給額 | AA55: 適用年度の月数 | AJ55: 比較雇用者給与等支給額
AA56: (22)の前事業年度又は 前連結事業年度の月数
AJ57: (23)×(24)
C58: 22 | P58: 23 | Z58: 24 | AJ58: 25
E59: =基本情報!C16 -> 2017-04-01 | P59: =給与入力!AH66 -> 44415858 | Y59: 円 | AC59: =基本情報!C13 -> 12 | AJ59: =ROUNDDOWN(P59*AC59/AC60,0) -> 44415858 | AS59: 円
E60: =基本情報!C15 -> 2018-03-31 | AC60: =基本情報!C17 -> 12
H61: 継続雇用者給与等支給額及び継続雇用者比較給与等支給額の計算
Q62: 継続雇用者給与等支給額の計算 | AB62: 継続雇用者比較給与等支給額の計算
Q63: 適 用 年 度 | AB63: 前 事 業 年 度 等 | AK63: 前一年事業年度等特定期間
Q64: ① | AB64: ② | AK64: ③
C65: 事業年度等又は連結事業年度等 | Q65: 26 | AC65: =IF(基本情報!C17=12,基本情報!C16,"") -> 2017-04-01 | AL65: =IF(基本情報!C17<>12,基本情報!E17,"") -> 
AC66: =IF(基本情報!C17=12,基本情報!C15,"") -> 2018-03-31 | AL66: =IF(基本情報!C17<>12,基本情報!C15,"") -> 
C67: 雇用者給与等支給額 | Q67: 27 | R67: (1) | T67: =Q9 -> 47240518 | AA67: 円 | AB67: (23) | AD67: =IF(基本情報!C17=12,P59,"") -> 44415858 | AJ67: 円 | AL67: =IF(基本情報!C17<>12,給与入力!AH66,"") ->  | AS67: 円
C69: 同上のうち継続雇用者に係る金額 | Q69: 28 | S69: =給与入力!AH69 -> 35998628 | AD69: =IF(基本情報!C17=12,給与入力!AH67,"") -> 32517200 | AL69: =IF(基本情報!C17<>12,給与入力!AH67,"") -> 
G71: 適用年度の月数 | Q71: 29 | AM71: =IF(基本情報!C17<>12,基本情報!C13,"") -> 
G72: (26の③)の月数 | AM72: =IF(基本情報!C17<>12,基本情報!E21,"") -> 
C73: 継続雇用者給与等支給額及び継続雇用者比 較給与等支給額 | Q73: 30 | S73: =S69 -> 35998628 | AC73: =IF(基本情報!C17=12,AD69,"") -> 32517200 | AL73: =IF(基本情報!C17<>12,ROUNDDOWN(AL69*AM71/AM72,0),"") -> 
C75: (28)又は((28)×(29))
H76: 中小企業比較教育訓練費の額の計算
C77: 前事業年度又は前連結事業年度 | P77: 教育訓練費の額 | AA77: 適用年度の月数 | AJ77: 改定教育訓練費の額
AA78: (31)の前事業年度又は 前連結事業年度の月数
AJ79: (32)×(33)
C80: 31 | P80: 32 | Z80: 33 | AJ80: 34
C81: 調整対象年度 | E81: =基本情報!C16 -> 2017-04-01 | P81: 1103400 | Y81: 円 | AC81: =基本情報!C13 -> 12 | AJ81: =IF(AC82>0,INT(P81*AC81/AC82),0) -> 1103400 | AS81: 円
E82: =基本情報!C15 -> 2018-03-31 | AC82: =基本情報!C17 -> 12
C85: 計 | AJ85: =SUM(AJ81:AR84) -> 1103400
C87: 中小企業比較教育訓練費の額 | AI87: 35 | AJ87: =AJ85 -> 1103400
C88: (34の計)÷(調整対象年度数)
AS89: 法 0301-0624

Sheet 教育訓練費入力（今期）
B8: =TEXT(基本情報!C12,"平成ee年m月d日")&" から "&TEXT(基本情報!C11,"平成ee年m月d日")&" までの教育訓練費の明細" -> 平成30年4月1日 から 平成31年3月31日 までの教育訓練費の明細
B9: No. | C9: 実施時期 | D9: 実施 期間 | E9: 内容 | F9: 受講者の氏名 （国内雇用者に限る） | G9: 参加 者数 | H9: 支払日 | I9: 支払額 | J9: 支払先 | K9: 実施時期結合 | L9: 参加者結合
B10: 1 | C10: 2018-04-13 | D10: 1 | E10: 新人研修セミナー | F10: 滝山 真一 | G10: 5 | H10: 2018-04-13 | I10: 500000 | J10: MUFGコンサルティング株式会社 | K10: =IF('教育訓練費入力（今期）'!$C10="","",TEXT('教育訓練費入力（今期）'!$C10,"yyyy年")&TEXT('教育訓練費入力（今期）'!$C10,"m月")&TEXT('教育訓練費入力（今期）'!$C10,"ｄ日")&"から"&'教育訓練費入力（今期）'!$D10&"日間") -> 2018年4月13日から1日間 | L10: =IF('教育訓練費入力（今期）'!$F10="","",IF('教育訓練費入力（今期）'!$G10=1,'教育訓練費入力（今期）'!$F10,'教育訓練費入力（今期）'!$F10&"他"&'教育訓練費入力（今期）'!$G10-1&"名")) -> 滝山 真一他4名
B11: 2 | C11: 2018-05-22 | D11: 2 | E11: Python 中級者向け研修 | F11: 鳥居 雅之 | G11: 1 | H11: 2018-05-03 | I11: 108000 | J11: 株式会社ムーンマイクロシステム | K11: =IF('教育訓練費入力（今期）'!$C11="","",TEXT('教育訓練費入力（今期）'!$C11,"yyyy年")&TEXT('教育訓練費入力（今期）'!$C11,"m月")&TEXT('教育訓練費入力（今期）'!$C11,"ｄ日")&"から"&'教育訓練費入力（今期）'!$D11&"日間") -> 2018年5月22日から2日間 | L11: =IF('教育訓練費入力（今期）'!$F11="","",IF('教育訓練費入力（今期）'!$G11=1,'教育訓練費入力（今期）'!$F11,'教育訓練費入力（今期）'!$F11&"他"&'教育訓練費入力（今期）'!$G11-1&"名")) -> 鳥居 雅之
B12: 3 | C12: 2018-06-30 | D12: 1 | E12: 基本情報技術者試験受験料 | F12: 山下 崇 | G12: 2 | H12: 2018-06-12 | I12: 32400 | J12: 独立行政法人情報処理推進機構 | K12: =IF('教育訓練費入力（今期）'!$C12="","",TEXT('教育訓練費入力（今期）'!$C12,"yyyy年")&TEXT('教育訓練費入力（今期）'!$C12,"m月")&TEXT('教育訓練費入力（今期）'!$C12,"ｄ日")&"から"&'教育訓練費入力（今期）'!$D12&"日間") -> 2018年6月30日から1日間 | L12: =IF('教育訓練費入力（今期）'!$F12="","",IF('教育訓練費入力（今期）'!$G12=1,'教育訓練費入力（今期）'!$F12,'教育訓練費入力（今期）'!$F12&"他"&'教育訓練費入力（今期）'!$G12-1&"名")) -> 山下 崇他1名
B13: 4 | C13: 2018-07-28 | D13: 1 | E13: ３種衛生士試験料 | F13: 絹延橋 みつ子 | G13: 1 | H13: 2018-07-15 | I13: 10800 | J13: （財）安全衛生技術試験協会 | K13: =IF('教育訓練費入力（今期）'!$C13="","",TEXT('教育訓練費入力（今期）'!$C13,"yyyy年")&TEXT('教育訓練費入力（今期）'!$C13,"m月")&TEXT('教育訓練費入力（今期）'!$C13,"ｄ日")&"から"&'教育訓練費入力（今期）'!$D13&"日間") -> 2018年7月28日から1日間 | L13: =IF('教育訓練費入力（今期）'!$F13="","",IF('教育訓練費入力（今期）'!$G13=1,'教育訓練費入力（今期）'!$F13,'教育訓練費入力（今期）'!$F13&"他"&'教育訓練費入力（今期）'!$G13-1&"名")) -> 絹延橋 みつ子
B14: 5 | C14: 2018-08-30 | D14: 3 | E14: 課長・主任・係長クラスのメンタル改革セミナー | F14: 日生 暁久 | G14: 5 | H14: 2018-07-28 | I14: 540000 | J14: MUFGコンサルティング株式会社 | K14: =IF('教育訓練費入力（今期）'!$C14="","",TEXT('教育訓練費入力（今期）'!$C14,"yyyy年")&TEXT('教育訓練費入力（今期）'!$C14,"m月")&TEXT('教育訓練費入力（今期）'!$C14,"ｄ日")&"から"&'教育訓練費入力（今期）'!$D14&"日間") -> 2018年8月30日から3日間 | L14: =IF('教育訓練費入力（今期）'!$F14="","",IF('教育訓練費入力（今期）'!$G14=1,'教育訓練費入力（今期）'!$F14,'教育訓練費入力（今期）'!$F14&"他"&'教育訓練費入力（今期）'!$G14-1&"名")) -> 日生 暁久他4名
B15: 6 | C15: 2018-09-20 | D15: 1 | E15: 基本情報技術者試験、初級シスアド試験受験料 | F15: 笹部 菜穂美 | G15: 10 | H15: 2018-09-02 | I15: 84000 | J15: 独立行政法人情報処理推進機構 | K15: =IF('教育訓練費入力（今期）'!$C15="","",TEXT('教育訓練費入力（今期）'!$C15,"yyyy年")&TEXT('教育訓練費入力（今期）'!$C15,"m月")&TEXT('教育訓練費入力（今期）'!$C15,"ｄ日")&"から"&'教育訓練費入力（今期）'!$D15&"日間") -> 2018年9月20日から1日間 | L15: =IF('教育訓練費入力（今期）'!$F15="","",IF('教育訓練費入力（今期）'!$G15=1,'教育訓練費入力（今期）'!$F15,'教育訓練費入力（今期）'!$F15&"他"&'教育訓練費入力（今期）'!$G15-1&"名")) -> 笹部 菜穂美他9名
B16: 7 | C16: 2018-10-20 | D16: 3 | E16: ＶＢＡ試験対策講習 | F16: 鳥居 雅之 | G16: 3 | H16: 2018-10-09 | I16: 150000 | J16: 株式会社ＴＣインターナショナル | K16: =IF('教育訓練費入力（今期）'!$C16="","",TEXT('教育訓練費入力（今期）'!$C16,"yyyy年")&TEXT('教育訓練費入力（今期）'!$C16,"m月")&TEXT('教育訓練費入力（今期）'!$C16,"ｄ日")&"から"&'教育訓練費入力（今期）'!$D16&"日間") -> 2018年10月20日から3日間 | L16: =IF('教育訓練費入力（今期）'!$F16="","",IF('教育訓練費入力（今期）'!$G16=1,'教育訓練費入力（今期）'!$F16,'教育訓練費入力（今期）'!$F16&"他"&'教育訓練費入力（今期）'!$G16-1&"名")) -> 鳥居 雅之他2名
B17: 8 | C17: 2018-12-20 | D17: 4 | E17: セクハラ防止講習 | F17: 山下 崇 | G17: 2 | H17: 2018-11-22 | I17: 43200 | J17: 株式会社ハラスメント研究所 | K17: =IF('教育訓練費入力（今期）'!$C17="","",TEXT('教育訓練費入力（今期）'!$C17,"yyyy年")&TEXT('教育訓練費入力（今期）'!$C17,"m月")&TEXT('教育訓練費入力（今期）'!$C17,"ｄ日")&"から"&'教育訓練費入力（今期）'!$D17&"日間") -> 2018年12月20日から4日間 | L17: =IF('教育訓練費入力（今期）'!$F17="","",IF('教育訓練費入力（今期）'!$G17=1,'教育訓練費入力（今期）'!$F17,'教育訓練費入力（今期）'!$F17&"他"&'教育訓練費入力（今期）'!$G17-1&"名")) -> 山下 崇他1名
B18: 9 | C18: 2019-01-28 | D18: 1 | E18: とまどわないで、課長さん | F18: 日生 暁久 | G18: 2 | H18: 2018-12-28 | I18: 21600 | J18: 株式会社ハラスメント研究所 | K18: =IF('教育訓練費入力（今期）'!$C18="","",TEXT('教育訓練費入力（今期）'!$C18,"yyyy年")&TEXT('教育訓練費入力（今期）'!$C18,"m月")&TEXT('教育訓練費入力（今期）'!$C18,"ｄ日")&"から"&'教育訓練費入力（今期）'!$D18&"日間") -> 2019年1月28日から1日間 | L18: =IF('教育訓練費入力（今期）'!$F18="","",IF('教育訓練費入力（今期）'!$G18=1,'教育訓練費入力（今期）'!$F18,'教育訓練費入力（今期）'!$F18&"他"&'教育訓練費入力（今期）'!$G18-1&"名")) -> 日生 暁久他1名
B19: 10 | K19: =IF('教育訓練費入力（今期）'!$C19="","",TEXT('教育訓練費入力（今期）'!$C19,"yyyy年")&TEXT('教育訓練費入力（今期）'!$C19,"m月")&TEXT('教育訓練費入力（今期）'!$C19,"ｄ日")&"から"&'教育訓練費入力（今期）'!$D19&"日間") ->  | L19: =IF('教育訓練費入力（今期）'!$F19="","",IF('教育訓練費入力（今期）'!$G19=1,'教育訓練費入力（今期）'!$F19,'教育訓練費入力（今期）'!$F19&"他"&'教育訓練費入力（今期）'!$G19-1&"名")) -> 
B20: 11 | K20: =IF('教育訓練費入力（今期）'!$C20="","",TEXT('教育訓練費入力（今期）'!$C20,"yyyy年")&TEXT('教育訓練費入力（今期）'!$C20,"m月")&TEXT('教育訓練費入力（今期）'!$C20,"ｄ日")&"から"&'教育訓練費入力（今期）'!$D20&"日間") ->  | L20: =IF('教育訓練費入力（今期）'!$F20="","",IF('教育訓練費入力（今期）'!$G20=1,'教育訓練費入力（今期）'!$F20,'教育訓練費入力（今期）'!$F20&"他"&'教育訓練費入力（今期）'!$G20-1&"名")) -> 
B21: 12 | K21: =IF('教育訓練費入力（今期）'!$C21="","",TEXT('教育訓練費入力（今期）'!$C21,"yyyy年")&TEXT('教育訓練費入力（今期）'!$C21,"m月")&TEXT('教育訓練費入力（今期）'!$C21,"ｄ日")&"から"&'教育訓練費入力（今期）'!$D21&"日間") ->  | L21: =IF('教育訓練費入力（今期）'!$F21="","",IF('教育訓練費入力（今期）'!$G21=1,'教育訓練費入力（今期）'!$F21,'教育訓練費入力（今期）'!$F21&"他"&'教育訓練費入力（今期）'!$G21-1&"名")) -> 
B22: 13 | K22: =IF('教育訓練費入力（今期）'!$C22="","",TEXT('教育訓練費入力（今期）'!$C22,"yyyy年")&TEXT('教育訓練費入力（今期）'!$C22,"m月")&TEXT('教育訓練費入力（今期）'!$C22,"ｄ日")&"から"&'教育訓練費入力（今期）'!$D22&"日間") ->  | L22: =IF('教育訓練費入力（今期）'!$F22="","",IF('教育訓練費入力（今期）'!$G22=1,'教育訓練費入力（今期）'!$F22,'教育訓練費入力（今期）'!$F22&"他"&'教育訓練費入力（今期）'!$G22-1&"名")) -> 
B23: 14 | K23: =IF('教育訓練費入力（今期）'!$C23="","",TEXT('教育訓練費入力（今期）'!$C23,"yyyy年")&TEXT('教育訓練費入力（今期）'!$C23,"m月")&TEXT('教育訓練費入力（今期）'!$C23,"ｄ日")&"から"&'教育訓練費入力（今期）'!$D23&"日間") ->  | L23: =IF('教育訓練費入力（今期）'!$F23="","",IF('教育訓練費入力（今期）'!$G23=1,'教育訓練費入力（今期）'!$F23,'教育訓練費入力（今期）'!$F23&"他"&'教育訓練費入力（今期）'!$G23-1&"名")) -> 
B24: 15 | K24: =IF('教育訓練費入力（今期）'!$C24="","",TEXT('教育訓練費入力（今期）'!$C24,"yyyy年")&TEXT('教育訓練費入力（今期）'!$C24,"m月")&TEXT('教育訓練費入力（今期）'!$C24,"ｄ日")&"から"&'教育訓練費入力（今期）'!$D24&"日間") ->  | L24: =IF('教育訓練費入力（今期）'!$F24="","",IF('教育訓練費入力（今期）'!$G24=1,'教育訓練費入力（今期）'!$F24,'教育訓練費入力（今期）'!$F24&"他"&'教育訓練費入力（今期）'!$G24-1&"名")) -> 
B25: 16 | K25: =IF('教育訓練費入力（今期）'!$C25="","",TEXT('教育訓練費入力（今期）'!$C25,"yyyy年")&TEXT('教育訓練費入力（今期）'!$C25,"m月")&TEXT('教育訓練費入力（今期）'!$C25,"ｄ日")&"から"&'教育訓練費入力（今期）'!$D25&"日間") ->  | L25: =IF('教育訓練費入力（今期）'!$F25="","",IF('教育訓練費入力（今期）'!$G25=1,'教育訓練費入力（今期）'!$F25,'教育訓練費入力（今期）'!$F25&"他"&'教育訓練費入力（今期）'!$G25-1&"名")) -> 
B26: 17 | K26: =IF('教育訓練費入力（今期）'!$C26="","",TEXT('教育訓練費入力（今期）'!$C26,"yyyy年")&TEXT('教育訓練費入力（今期）'!$C26,"m月")&TEXT('教育訓練費入力（今期）'!$C26,"ｄ日")&"から"&'教育訓練費入力（今期）'!$D26&"日間") ->  | L26: =IF('教育訓練費入力（今期）'!$F26="","",IF('教育訓練費入力（今期）'!$G26=1,'教育訓練費入力（今期）'!$F26,'教育訓練費入力（今期）'!$F26&"他"&'教育訓練費入力（今期）'!$G26-1&"名")) -> 
B27: 18 | K27: =IF('教育訓練費入力（今期）'!$C27="","",TEXT('教育訓練費入力（今期）'!$C27,"yyyy年")&TEXT('教育訓練費入力（今期）'!$C27,"m月")&TEXT('教育訓練費入力（今期）'!$C27,"ｄ日")&"から"&'教育訓練費入力（今期）'!$D27&"日間") ->  | L27: =IF('教育訓練費入力（今期）'!$F27="","",IF('教育訓練費入力（今期）'!$G27=1,'教育訓練費入力（今期）'!$F27,'教育訓練費入力（今期）'!$F27&"他"&'教育訓練費入力（今期）'!$G27-1&"名")) -> 
B28: 19 | K28: =IF('教育訓練費入力（今期）'!$C28="","",TEXT('教育訓練費入力（今期）'!$C28,"yyyy年")&TEXT('教育訓練費入力（今期）'!$C28,"m月")&TEXT('教育訓練費入力（今期）'!$C28,"ｄ日")&"から"&'教育訓練費入力（今期）'!$D28&"日間") ->  | L28: =IF('教育訓練費入力（今期）'!$F28="","",IF('教育訓練費入力（今期）'!$G28=1,'教育訓練費入力（今期）'!$F28,'教育訓練費入力（今期）'!$F28&"他"&'教育訓練費入力（今期）'!$G28-1&"名")) -> 
B29: 20 | K29: =IF('教育訓練費入力（今期）'!$C29="","",TEXT('教育訓練費入力（今期）'!$C29,"yyyy年")&TEXT('教育訓練費入力（今期）'!$C29,"m月")&TEXT('教育訓練費入力（今期）'!$C29,"ｄ日")&"から"&'教育訓練費入力（今期）'!$D29&"日間") ->  | L29: =IF('教育訓練費入力（今期）'!$F29="","",IF('教育訓練費入力（今期）'!$G29=1,'教育訓練費入力（今期）'!$F29,'教育訓練費入力（今期）'!$F29&"他"&'教育訓練費入力（今期）'!$G29-1&"名")) -> 
B30: 21 | K30: =IF('教育訓練費入力（今期）'!$C30="","",TEXT('教育訓練費入力（今期）'!$C30,"yyyy年")&TEXT('教育訓練費入力（今期）'!$C30,"m月")&TEXT('教育訓練費入力（今期）'!$C30,"ｄ日")&"から"&'教育訓練費入力（今期）'!$D30&"日間") ->  | L30: =IF('教育訓練費入力（今期）'!$F30="","",IF('教育訓練費入力（今期）'!$G30=1,'教育訓練費入力（今期）'!$F30,'教育訓練費入力（今期）'!$F30&"他"&'教育訓練費入力（今期）'!$G30-1&"名")) -> 
B31: 22 | K31: =IF('教育訓練費入力（今期）'!$C31="","",TEXT('教育訓練費入力（今期）'!$C31,"yyyy年")&TEXT('教育訓練費入力（今期）'!$C31,"m月")&TEXT('教育訓練費入力（今期）'!$C31,"ｄ日")&"から"&'教育訓練費入力（今期）'!$D31&"日間") ->  | L31: =IF('教育訓練費入力（今期）'!$F31="","",IF('教育訓練費入力（今期）'!$G31=1,'教育訓練費入力（今期）'!$F31,'教育訓練費入力（今期）'!$F31&"他"&'教育訓練費入力（今期）'!$G31-1&"名")) -> 
B32: 23 | K32: =IF('教育訓練費入力（今期）'!$C32="","",TEXT('教育訓練費入力（今期）'!$C32,"yyyy年")&TEXT('教育訓練費入力（今期）'!$C32,"m月")&TEXT('教育訓練費入力（今期）'!$C32,"ｄ日")&"から"&'教育訓練費入力（今期）'!$D32&"日間") ->  | L32: =IF('教育訓練費入力（今期）'!$F32="","",IF('教育訓練費入力（今期）'!$G32=1,'教育訓練費入力（今期）'!$F32,'教育訓練費入力（今期）'!$F32&"他"&'教育訓練費入力（今期）'!$G32-1&"名")) -> 
B33: 24 | K33: =IF('教育訓練費入力（今期）'!$C33="","",TEXT('教育訓練費入力（今期）'!$C33,"yyyy年")&TEXT('教育訓練費入力（今期）'!$C33,"m月")&TEXT('教育訓練費入力（今期）'!$C33,"ｄ日")&"から"&'教育訓練費入力（今期）'!$D33&"日間") ->  | L33: =IF('教育訓練費入力（今期）'!$F33="","",IF('教育訓練費入力（今期）'!$G33=1,'教育訓練費入力（今期）'!$F33,'教育訓練費入力（今期）'!$F33&"他"&'教育訓練費入力（今期）'!$G33-1&"名")) -> 
B34: 25 | K34: =IF('教育訓練費入力（今期）'!$C34="","",TEXT('教育訓練費入力（今期）'!$C34,"yyyy年")&TEXT('教育訓練費入力（今期）'!$C34,"m月")&TEXT('教育訓練費入力（今期）'!$C34,"ｄ日")&"から"&'教育訓練費入力（今期）'!$D34&"日間") ->  | L34: =IF('教育訓練費入力（今期）'!$F34="","",IF('教育訓練費入力（今期）'!$G34=1,'教育訓練費入力（今期）'!$F34,'教育訓練費入力（今期）'!$F34&"他"&'教育訓練費入力（今期）'!$G34-1&"名")) -> 
B35: 26 | K35: =IF('教育訓練費入力（今期）'!$C35="","",TEXT('教育訓練費入力（今期）'!$C35,"yyyy年")&TEXT('教育訓練費入力（今期）'!$C35,"m月")&TEXT('教育訓練費入力（今期）'!$C35,"ｄ日")&"から"&'教育訓練費入力（今期）'!$D35&"日間") ->  | L35: =IF('教育訓練費入力（今期）'!$F35="","",IF('教育訓練費入力（今期）'!$G35=1,'教育訓練費入力（今期）'!$F35,'教育訓練費入力（今期）'!$F35&"他"&'教育訓練費入力（今期）'!$G35-1&"名")) -> 
B36: 27 | K36: =IF('教育訓練費入力（今期）'!$C36="","",TEXT('教育訓練費入力（今期）'!$C36,"yyyy年")&TEXT('教育訓練費入力（今期）'!$C36,"m月")&TEXT('教育訓練費入力（今期）'!$C36,"ｄ日")&"から"&'教育訓練費入力（今期）'!$D36&"日間") ->  | L36: =IF('教育訓練費入力（今期）'!$F36="","",IF('教育訓練費入力（今期）'!$G36=1,'教育訓練費入力（今期）'!$F36,'教育訓練費入力（今期）'!$F36&"他"&'教育訓練費入力（今期）'!$G36-1&"名")) -> 
B37: 28 | K37: =IF('教育訓練費入力（今期）'!$C37="","",TEXT('教育訓練費入力（今期）'!$C37,"yyyy年")&TEXT('教育訓練費入力（今期）'!$C37,"m月")&TEXT('教育訓練費入力（今期）'!$C37,"ｄ日")&"から"&'教育訓練費入力（今期）'!$D37&"日間") ->  | L37: =IF('教育訓練費入力（今期）'!$F37="","",IF('教育訓練費入力（今期）'!$G37=1,'教育訓練費入力（今期）'!$F37,'教育訓練費入力（今期）'!$F37&"他"&'教育訓練費入力（今期）'!$G37-1&"名")) -> 
B38: 29 | K38: =IF('教育訓練費入力（今期）'!$C38="","",TEXT('教育訓練費入力（今期）'!$C38,"yyyy年")&TEXT('教育訓練費入力（今期）'!$C38,"m月")&TEXT('教育訓練費入力（今期）'!$C38,"ｄ日")&"から"&'教育訓練費入力（今期）'!$D38&"日間") ->  | L38: =IF('教育訓練費入力（今期）'!$F38="","",IF('教育訓練費入力（今期）'!$G38=1,'教育訓練費入力（今期）'!$F38,'教育訓練費入力（今期）'!$F38&"他"&'教育訓練費入力（今期）'!$G38-1&"名")) -> 
B39: 30 | K39: =IF('教育訓練費入力（今期）'!$C39="","",TEXT('教育訓練費入力（今期）'!$C39,"yyyy年")&TEXT('教育訓練費入力（今期）'!$C39,"m月")&TEXT('教育訓練費入力（今期）'!$C39,"ｄ日")&"から"&'教育訓練費入力（今期）'!$D39&"日間") ->  | L39: =IF('教育訓練費入力（今期）'!$F39="","",IF('教育訓練費入力（今期）'!$G39=1,'教育訓練費入力（今期）'!$F39,'教育訓練費入力（今期）'!$F39&"他"&'教育訓練費入力（今期）'!$G39-1&"名")) -> 
B40: 31 | K40: =IF('教育訓練費入力（今期）'!$C40="","",TEXT('教育訓練費入力（今期）'!$C40,"yyyy年")&TEXT('教育訓練費入力（今期）'!$C40,"m月")&TEXT('教育訓練費入力（今期）'!$C40,"ｄ日")&"から"&'教育訓練費入力（今期）'!$D40&"日間") ->  | L40: =IF('教育訓練費入力（今期）'!$F40="","",IF('教育訓練費入力（今期）'!$G40=1,'教育訓練費入力（今期）'!$F40,'教育訓練費入力（今期）'!$F40&"他"&'教育訓練費入力（今期）'!$G40-1&"名")) -> 
B41: 32 | K41: =IF('教育訓練費入力（今期）'!$C41="","",TEXT('教育訓練費入力（今期）'!$C41,"yyyy年")&TEXT('教育訓練費入力（今期）'!$C41,"m月")&TEXT('教育訓練費入力（今期）'!$C41,"ｄ日")&"から"&'教育訓練費入力（今期）'!$D41&"日間") ->  | L41: =IF('教育訓練費入力（今期）'!$F41="","",IF('教育訓練費入力（今期）'!$G41=1,'教育訓練費入力（今期）'!$F41,'教育訓練費入力（今期）'!$F41&"他"&'教育訓練費入力（今期）'!$G41-1&"名")) -> 
B42: 33 | K42: =IF('教育訓練費入力（今期）'!$C42="","",TEXT('教育訓練費入力（今期）'!$C42,"yyyy年")&TEXT('教育訓練費入力（今期）'!$C42,"m月")&TEXT('教育訓練費入力（今期）'!$C42,"ｄ日")&"から"&'教育訓練費入力（今期）'!$D42&"日間") ->  | L42: =IF('教育訓練費入力（今期）'!$F42="","",IF('教育訓練費入力（今期）'!$G42=1,'教育訓練費入力（今期）'!$F42,'教育訓練費入力（今期）'!$F42&"他"&'教育訓練費入力（今期）'!$G42-1&"名")) -> 
B43: 34 | K43: =IF('教育訓練費入力（今期）'!$C43="","",TEXT('教育訓練費入力（今期）'!$C43,"yyyy年")&TEXT('教育訓練費入力（今期）'!$C43,"m月")&TEXT('教育訓練費入力（今期）'!$C43,"ｄ日")&"から"&'教育訓練費入力（今期）'!$D43&"日間") ->  | L43: =IF('教育訓練費入力（今期）'!$F43="","",IF('教育訓練費入力（今期）'!$G43=1,'教育訓練費入力（今期）'!$F43,'教育訓練費入力（今期）'!$F43&"他"&'教育訓練費入力（今期）'!$G43-1&"名")) -> 
B44: 35 | K44: =IF('教育訓練費入力（今期）'!$C44="","",TEXT('教育訓練費入力（今期）'!$C44,"yyyy年")&TEXT('教育訓練費入力（今期）'!$C44,"m月")&TEXT('教育訓練費入力（今期）'!$C44,"ｄ日")&"から"&'教育訓練費入力（今期）'!$D44&"日間") ->  | L44: =IF('教育訓練費入力（今期）'!$F44="","",IF('教育訓練費入力（今期）'!$G44=1,'教育訓練費入力（今期）'!$F44,'教育訓練費入力（今期）'!$F44&"他"&'教育訓練費入力（今期）'!$G44-1&"名")) -> 
B45: 36 | K45: =IF('教育訓練費入力（今期）'!$C45="","",TEXT('教育訓練費入力（今期）'!$C45,"yyyy年")&TEXT('教育訓練費入力（今期）'!$C45,"m月")&TEXT('教育訓練費入力（今期）'!$C45,"ｄ日")&"から"&'教育訓練費入力（今期）'!$D45&"日間") ->  | L45: =IF('教育訓練費入力（今期）'!$F45="","",IF('教育訓練費入力（今期）'!$G45=1,'教育訓練費入力（今期）'!$F45,'教育訓練費入力（今期）'!$F45&"他"&'教育訓練費入力（今期）'!$G45-1&"名")) -> 
B46: 37 | K46: =IF('教育訓練費入力（今期）'!$C46="","",TEXT('教育訓練費入力（今期）'!$C46,"yyyy年")&TEXT('教育訓練費入力（今期）'!$C46,"m月")&TEXT('教育訓練費入力（今期）'!$C46,"ｄ日")&"から"&'教育訓練費入力（今期）'!$D46&"日間") ->  | L46: =IF('教育訓練費入力（今期）'!$F46="","",IF('教育訓練費入力（今期）'!$G46=1,'教育訓練費入力（今期）'!$F46,'教育訓練費入力（今期）'!$F46&"他"&'教育訓練費入力（今期）'!$G46-1&"名")) -> 
B47: 38 | K47: =IF('教育訓練費入力（今期）'!$C47="","",TEXT('教育訓練費入力（今期）'!$C47,"yyyy年")&TEXT('教育訓練費入力（今期）'!$C47,"m月")&TEXT('教育訓練費入力（今期）'!$C47,"ｄ日")&"から"&'教育訓練費入力（今期）'!$D47&"日間") ->  | L47: =IF('教育訓練費入力（今期）'!$F47="","",IF('教育訓練費入力（今期）'!$G47=1,'教育訓練費入力（今期）'!$F47,'教育訓練費入力（今期）'!$F47&"他"&'教育訓練費入力（今期）'!$G47-1&"名")) -> 
B48: 39 | K48: =IF('教育訓練費入力（今期）'!$C48="","",TEXT('教育訓練費入力（今期）'!$C48,"yyyy年")&TEXT('教育訓練費入力（今期）'!$C48,"m月")&TEXT('教育訓練費入力（今期）'!$C48,"ｄ日")&"から"&'教育訓練費入力（今期）'!$D48&"日間") ->  | L48: =IF('教育訓練費入力（今期）'!$F48="","",IF('教育訓練費入力（今期）'!$G48=1,'教育訓練費入力（今期）'!$F48,'教育訓練費入力（今期）'!$F48&"他"&'教育訓練費入力（今期）'!$G48-1&"名")) -> 
B49: 40 | K49: =IF('教育訓練費入力（今期）'!$C49="","",TEXT('教育訓練費入力（今期）'!$C49,"yyyy年")&TEXT('教育訓練費入力（今期）'!$C49,"m月")&TEXT('教育訓練費入力（今期）'!$C49,"ｄ日")&"から"&'教育訓練費入力（今期）'!$D49&"日間") ->  | L49: =IF('教育訓練費入力（今期）'!$F49="","",IF('教育訓練費入力（今期）'!$G49=1,'教育訓練費入力（今期）'!$F49,'教育訓練費入力（今期）'!$F49&"他"&'教育訓練費入力（今期）'!$G49-1&"名")) -> 
B50: 41 | K50: =IF('教育訓練費入力（今期）'!$C50="","",TEXT('教育訓練費入力（今期）'!$C50,"yyyy年")&TEXT('教育訓練費入力（今期）'!$C50,"m月")&TEXT('教育訓練費入力（今期）'!$C50,"ｄ日")&"から"&'教育訓練費入力（今期）'!$D50&"日間") ->  | L50: =IF('教育訓練費入力（今期）'!$F50="","",IF('教育訓練費入力（今期）'!$G50=1,'教育訓練費入力（今期）'!$F50,'教育訓練費入力（今期）'!$F50&"他"&'教育訓練費入力（今期）'!$G50-1&"名")) -> 
B51: 42 | K51: =IF('教育訓練費入力（今期）'!$C51="","",TEXT('教育訓練費入力（今期）'!$C51,"yyyy年")&TEXT('教育訓練費入力（今期）'!$C51,"m月")&TEXT('教育訓練費入力（今期）'!$C51,"ｄ日")&"から"&'教育訓練費入力（今期）'!$D51&"日間") ->  | L51: =IF('教育訓練費入力（今期）'!$F51="","",IF('教育訓練費入力（今期）'!$G51=1,'教育訓練費入力（今期）'!$F51,'教育訓練費入力（今期）'!$F51&"他"&'教育訓練費入力（今期）'!$G51-1&"名")) -> 
B52: 43 | K52: =IF('教育訓練費入力（今期）'!$C52="","",TEXT('教育訓練費入力（今期）'!$C52,"yyyy年")&TEXT('教育訓練費入力（今期）'!$C52,"m月")&TEXT('教育訓練費入力（今期）'!$C52,"ｄ日")&"から"&'教育訓練費入力（今期）'!$D52&"日間") ->  | L52: =IF('教育訓練費入力（今期）'!$F52="","",IF('教育訓練費入力（今期）'!$G52=1,'教育訓練費入力（今期）'!$F52,'教育訓練費入力（今期）'!$F52&"他"&'教育訓練費入力（今期）'!$G52-1&"名")) -> 
B53: 44 | K53: =IF('教育訓練費入力（今期）'!$C53="","",TEXT('教育訓練費入力（今期）'!$C53,"yyyy年")&TEXT('教育訓練費入力（今期）'!$C53,"m月")&TEXT('教育訓練費入力（今期）'!$C53,"ｄ日")&"から"&'教育訓練費入力（今期）'!$D53&"日間") ->  | L53: =IF('教育訓練費入力（今期）'!$F53="","",IF('教育訓練費入力（今期）'!$G53=1,'教育訓練費入力（今期）'!$F53,'教育訓練費入力（今期）'!$F53&"他"&'教育訓練費入力（今期）'!$G53-1&"名")) -> 
B54: 45 | K54: =IF('教育訓練費入力（今期）'!$C54="","",TEXT('教育訓練費入力（今期）'!$C54,"yyyy年")&TEXT('教育訓練費入力（今期）'!$C54,"m月")&TEXT('教育訓練費入力（今期）'!$C54,"ｄ日")&"から"&'教育訓練費入力（今期）'!$D54&"日間") ->  | L54: =IF('教育訓練費入力（今期）'!$F54="","",IF('教育訓練費入力（今期）'!$G54=1,'教育訓練費入力（今期）'!$F54,'教育訓練費入力（今期）'!$F54&"他"&'教育訓練費入力（今期）'!$G54-1&"名")) -> 
B55: 46 | K55: =IF('教育訓練費入力（今期）'!$C55="","",TEXT('教育訓練費入力（今期）'!$C55,"yyyy年")&TEXT('教育訓練費入力（今期）'!$C55,"m月")&TEXT('教育訓練費入力（今期）'!$C55,"ｄ日")&"から"&'教育訓練費入力（今期）'!$D55&"日間") ->  | L55: =IF('教育訓練費入力（今期）'!$F55="","",IF('教育訓練費入力（今期）'!$G55=1,'教育訓練費入力（今期）'!$F55,'教育訓練費入力（今期）'!$F55&"他"&'教育訓練費入力（今期）'!$G55-1&"名")) -> 
B56: 47 | K56: =IF('教育訓練費入力（今期）'!$C56="","",TEXT('教育訓練費入力（今期）'!$C56,"yyyy年")&TEXT('教育訓練費入力（今期）'!$C56,"m月")&TEXT('教育訓練費入力（今期）'!$C56,"ｄ日")&"から"&'教育訓練費入力（今期）'!$D56&"日間") ->  | L56: =IF('教育訓練費入力（今期）'!$F56="","",IF('教育訓練費入力（今期）'!$G56=1,'教育訓練費入力（今期）'!$F56,'教育訓練費入力（今期）'!$F56&"他"&'教育訓練費入力（今期）'!$G56-1&"名")) -> 
B57: 48 | K57: =IF('教育訓練費入力（今期）'!$C57="","",TEXT('教育訓練費入力（今期）'!$C57,"yyyy年")&TEXT('教育訓練費入力（今期）'!$C57,"m月")&TEXT('教育訓練費入力（今期）'!$C57,"ｄ日")&"から"&'教育訓練費入力（今期）'!$D57&"日間") ->  | L57: =IF('教育訓練費入力（今期）'!$F57="","",IF('教育訓練費入力（今期）'!$G57=1,'教育訓練費入力（今期）'!$F57,'教育訓練費入力（今期）'!$F57&"他"&'教育訓練費入力（今期）'!$G57-1&"名")) -> 
B58: 49 | K58: =IF('教育訓練費入力（今期）'!$C58="","",TEXT('教育訓練費入力（今期）'!$C58,"yyyy年")&TEXT('教育訓練費入力（今期）'!$C58,"m月")&TEXT('教育訓練費入力（今期）'!$C58,"ｄ日")&"から"&'教育訓練費入力（今期）'!$D58&"日間") ->  | L58: =IF('教育訓練費入力（今期）'!$F58="","",IF('教育訓練費入力（今期）'!$G58=1,'教育訓練費入力（今期）'!$F58,'教育訓練費入力（今期）'!$F58&"他"&'教育訓練費入力（今期）'!$G58-1&"名")) -> 
B59: 50 | K59: =IF('教育訓練費入力（今期）'!$C59="","",TEXT('教育訓練費入力（今期）'!$C59,"yyyy年")&TEXT('教育訓練費入力（今期）'!$C59,"m月")&TEXT('教育訓練費入力（今期）'!$C59,"ｄ日")&"から"&'教育訓練費入力（今期）'!$D59&"日間") ->  | L59: =IF('教育訓練費入力（今期）'!$F59="","",IF('教育訓練費入力（今期）'!$G59=1,'教育訓練費入力（今期）'!$F59,'教育訓練費入力（今期）'!$F59&"他"&'教育訓練費入力（今期）'!$G59-1&"名")) -> 
B60: 51 | K60: =IF('教育訓練費入力（今期）'!$C60="","",TEXT('教育訓練費入力（今期）'!$C60,"yyyy年")&TEXT('教育訓練費入力（今期）'!$C60,"m月")&TEXT('教育訓練費入力（今期）'!$C60,"ｄ日")&"から"&'教育訓練費入力（今期）'!$D60&"日間") ->  | L60: =IF('教育訓練費入力（今期）'!$F60="","",IF('教育訓練費入力（今期）'!$G60=1,'教育訓練費入力（今期）'!$F60,'教育訓練費入力（今期）'!$F60&"他"&'教育訓練費入力（今期）'!$G60-1&"名")) -> 
B61: 52 | K61: =IF('教育訓練費入力（今期）'!$C61="","",TEXT('教育訓練費入力（今期）'!$C61,"yyyy年")&TEXT('教育訓練費入力（今期）'!$C61,"m月")&TEXT('教育訓練費入力（今期）'!$C61,"ｄ日")&"から"&'教育訓練費入力（今期）'!$D61&"日間") ->  | L61: =IF('教育訓練費入力（今期）'!$F61="","",IF('教育訓練費入力（今期）'!$G61=1,'教育訓練費入力（今期）'!$F61,'教育訓練費入力（今期）'!$F61&"他"&'教育訓練費入力（今期）'!$G61-1&"名")) -> 
B62: 53 | K62: =IF('教育訓練費入力（今期）'!$C62="","",TEXT('教育訓練費入力（今期）'!$C62,"yyyy年")&TEXT('教育訓練費入力（今期）'!$C62,"m月")&TEXT('教育訓練費入力（今期）'!$C62,"ｄ日")&"から"&'教育訓練費入力（今期）'!$D62&"日間") ->  | L62: =IF('教育訓練費入力（今期）'!$F62="","",IF('教育訓練費入力（今期）'!$G62=1,'教育訓練費入力（今期）'!$F62,'教育訓練費入力（今期）'!$F62&"他"&'教育訓練費入力（今期）'!$G62-1&"名")) -> 
B63: 54 | K63: =IF('教育訓練費入力（今期）'!$C63="","",TEXT('教育訓練費入力（今期）'!$C63,"yyyy年")&TEXT('教育訓練費入力（今期）'!$C63,"m月")&TEXT('教育訓練費入力（今期）'!$C63,"ｄ日")&"から"&'教育訓練費入力（今期）'!$D63&"日間") ->  | L63: =IF('教育訓練費入力（今期）'!$F63="","",IF('教育訓練費入力（今期）'!$G63=1,'教育訓練費入力（今期）'!$F63,'教育訓練費入力（今期）'!$F63&"他"&'教育訓練費入力（今期）'!$G63-1&"名")) -> 
B64: 55 | K64: =IF('教育訓練費入力（今期）'!$C64="","",TEXT('教育訓練費入力（今期）'!$C64,"yyyy年")&TEXT('教育訓練費入力（今期）'!$C64,"m月")&TEXT('教育訓練費入力（今期）'!$C64,"ｄ日")&"から"&'教育訓練費入力（今期）'!$D64&"日間") ->  | L64: =IF('教育訓練費入力（今期）'!$F64="","",IF('教育訓練費入力（今期）'!$G64=1,'教育訓練費入力（今期）'!$F64,'教育訓練費入力（今期）'!$F64&"他"&'教育訓練費入力（今期）'!$G64-1&"名")) -> 
B65: 56 | K65: =IF('教育訓練費入力（今期）'!$C65="","",TEXT('教育訓練費入力（今期）'!$C65,"yyyy年")&TEXT('教育訓練費入力（今期）'!$C65,"m月")&TEXT('教育訓練費入力（今期）'!$C65,"ｄ日")&"から"&'教育訓練費入力（今期）'!$D65&"日間") ->  | L65: =IF('教育訓練費入力（今期）'!$F65="","",IF('教育訓練費入力（今期）'!$G65=1,'教育訓練費入力（今期）'!$F65,'教育訓練費入力（今期）'!$F65&"他"&'教育訓練費入力（今期）'!$G65-1&"名")) -> 
B66: 57 | K66: =IF('教育訓練費入力（今期）'!$C66="","",TEXT('教育訓練費入力（今期）'!$C66,"yyyy年")&TEXT('教育訓練費入力（今期）'!$C66,"m月")&TEXT('教育訓練費入力（今期）'!$C66,"ｄ日")&"から"&'教育訓練費入力（今期）'!$D66&"日間") ->  | L66: =IF('教育訓練費入力（今期）'!$F66="","",IF('教育訓練費入力（今期）'!$G66=1,'教育訓練費入力（今期）'!$F66,'教育訓練費入力（今期）'!$F66&"他"&'教育訓練費入力（今期）'!$G66-1&"名")) -> 
B67: 58 | K67: =IF('教育訓練費入力（今期）'!$C67="","",TEXT('教育訓練費入力（今期）'!$C67,"yyyy年")&TEXT('教育訓練費入力（今期）'!$C67,"m月")&TEXT('教育訓練費入力（今期）'!$C67,"ｄ日")&"から"&'教育訓練費入力（今期）'!$D67&"日間") ->  | L67: =IF('教育訓練費入力（今期）'!$F67="","",IF('教育訓練費入力（今期）'!$G67=1,'教育訓練費入力（今期）'!$F67,'教育訓練費入力（今期）'!$F67&"他"&'教育訓練費入力（今期）'!$G67-1&"名")) -> 
B68: 59 | K68: =IF('教育訓練費入力（今期）'!$C68="","",TEXT('教育訓練費入力（今期）'!$C68,"yyyy年")&TEXT('教育訓練費入力（今期）'!$C68,"m月")&TEXT('教育訓練費入力（今期）'!$C68,"ｄ日")&"から"&'教育訓練費入力（今期）'!$D68&"日間") ->  | L68: =IF('教育訓練費入力（今期）'!$F68="","",IF('教育訓練費入力（今期）'!$G68=1,'教育訓練費入力（今期）'!$F68,'教育訓練費入力（今期）'!$F68&"他"&'教育訓練費入力（今期）'!$G68-1&"名")) -> 
B69: 60 | K69: =IF('教育訓練費入力（今期）'!$C69="","",TEXT('教育訓練費入力（今期）'!$C69,"yyyy年")&TEXT('教育訓練費入力（今期）'!$C69,"m月")&TEXT('教育訓練費入力（今期）'!$C69,"ｄ日")&"から"&'教育訓練費入力（今期）'!$D69&"日間") ->  | L69: =IF('教育訓練費入力（今期）'!$F69="","",IF('教育訓練費入力（今期）'!$G69=1,'教育訓練費入力（今期）'!$F69,'教育訓練費入力（今期）'!$F69&"他"&'教育訓練費入力（今期）'!$G69-1&"名")) -> 
B70: 61 | K70: =IF('教育訓練費入力（今期）'!$C70="","",TEXT('教育訓練費入力（今期）'!$C70,"yyyy年")&TEXT('教育訓練費入力（今期）'!$C70,"m月")&TEXT('教育訓練費入力（今期）'!$C70,"ｄ日")&"から"&'教育訓練費入力（今期）'!$D70&"日間") ->  | L70: =IF('教育訓練費入力（今期）'!$F70="","",IF('教育訓練費入力（今期）'!$G70=1,'教育訓練費入力（今期）'!$F70,'教育訓練費入力（今期）'!$F70&"他"&'教育訓練費入力（今期）'!$G70-1&"名")) -> 
B71: 62 | K71: =IF('教育訓練費入力（今期）'!$C71="","",TEXT('教育訓練費入力（今期）'!$C71,"yyyy年")&TEXT('教育訓練費入力（今期）'!$C71,"m月")&TEXT('教育訓練費入力（今期）'!$C71,"ｄ日")&"から"&'教育訓練費入力（今期）'!$D71&"日間") ->  | L71: =IF('教育訓練費入力（今期）'!$F71="","",IF('教育訓練費入力（今期）'!$G71=1,'教育訓練費入力（今期）'!$F71,'教育訓練費入力（今期）'!$F71&"他"&'教育訓練費入力（今期）'!$G71-1&"名")) -> 
B72: 63 | K72: =IF('教育訓練費入力（今期）'!$C72="","",TEXT('教育訓練費入力（今期）'!$C72,"yyyy年")&TEXT('教育訓練費入力（今期）'!$C72,"m月")&TEXT('教育訓練費入力（今期）'!$C72,"ｄ日")&"から"&'教育訓練費入力（今期）'!$D72&"日間") ->  | L72: =IF('教育訓練費入力（今期）'!$F72="","",IF('教育訓練費入力（今期）'!$G72=1,'教育訓練費入力（今期）'!$F72,'教育訓練費入力（今期）'!$F72&"他"&'教育訓練費入力（今期）'!$G72-1&"名")) -> 
B73: 64 | K73: =IF('教育訓練費入力（今期）'!$C73="","",TEXT('教育訓練費入力（今期）'!$C73,"yyyy年")&TEXT('教育訓練費入力（今期）'!$C73,"m月")&TEXT('教育訓練費入力（今期）'!$C73,"ｄ日")&"から"&'教育訓練費入力（今期）'!$D73&"日間") ->  | L73: =IF('教育訓練費入力（今期）'!$F73="","",IF('教育訓練費入力（今期）'!$G73=1,'教育訓練費入力（今期）'!$F73,'教育訓練費入力（今期）'!$F73&"他"&'教育訓練費入力（今期）'!$G73-1&"名")) -> 
B74: 65 | K74: =IF('教育訓練費入力（今期）'!$C74="","",TEXT('教育訓練費入力（今期）'!$C74,"yyyy年")&TEXT('教育訓練費入力（今期）'!$C74,"m月")&TEXT('教育訓練費入力（今期）'!$C74,"ｄ日")&"から"&'教育訓練費入力（今期）'!$D74&"日間") ->  | L74: =IF('教育訓練費入力（今期）'!$F74="","",IF('教育訓練費入力（今期）'!$G74=1,'教育訓練費入力（今期）'!$F74,'教育訓練費入力（今期）'!$F74&"他"&'教育訓練費入力（今期）'!$G74-1&"名")) -> 
B75: 66 | K75: =IF('教育訓練費入力（今期）'!$C75="","",TEXT('教育訓練費入力（今期）'!$C75,"yyyy年")&TEXT('教育訓練費入力（今期）'!$C75,"m月")&TEXT('教育訓練費入力（今期）'!$C75,"ｄ日")&"から"&'教育訓練費入力（今期）'!$D75&"日間") ->  | L75: =IF('教育訓練費入力（今期）'!$F75="","",IF('教育訓練費入力（今期）'!$G75=1,'教育訓練費入力（今期）'!$F75,'教育訓練費入力（今期）'!$F75&"他"&'教育訓練費入力（今期）'!$G75-1&"名")) -> 
B76: 67 | K76: =IF('教育訓練費入力（今期）'!$C76="","",TEXT('教育訓練費入力（今期）'!$C76,"yyyy年")&TEXT('教育訓練費入力（今期）'!$C76,"m月")&TEXT('教育訓練費入力（今期）'!$C76,"ｄ日")&"から"&'教育訓練費入力（今期）'!$D76&"日間") ->  | L76: =IF('教育訓練費入力（今期）'!$F76="","",IF('教育訓練費入力（今期）'!$G76=1,'教育訓練費入力（今期）'!$F76,'教育訓練費入力（今期）'!$F76&"他"&'教育訓練費入力（今期）'!$G76-1&"名")) -> 
B77: 68 | K77: =IF('教育訓練費入力（今期）'!$C77="","",TEXT('教育訓練費入力（今期）'!$C77,"yyyy年")&TEXT('教育訓練費入力（今期）'!$C77,"m月")&TEXT('教育訓練費入力（今期）'!$C77,"ｄ日")&"から"&'教育訓練費入力（今期）'!$D77&"日間") ->  | L77: =IF('教育訓練費入力（今期）'!$F77="","",IF('教育訓練費入力（今期）'!$G77=1,'教育訓練費入力（今期）'!$F77,'教育訓練費入力（今期）'!$F77&"他"&'教育訓練費入力（今期）'!$G77-1&"名")) -> 
B78: 69 | K78: =IF('教育訓練費入力（今期）'!$C78="","",TEXT('教育訓練費入力（今期）'!$C78,"yyyy年")&TEXT('教育訓練費入力（今期）'!$C78,"m月")&TEXT('教育訓練費入力（今期）'!$C78,"ｄ日")&"から"&'教育訓練費入力（今期）'!$D78&"日間") ->  | L78: =IF('教育訓練費入力（今期）'!$F78="","",IF('教育訓練費入力（今期）'!$G78=1,'教育訓練費入力（今期）'!$F78,'教育訓練費入力（今期）'!$F78&"他"&'教育訓練費入力（今期）'!$G78-1&"名")) -> 
B79: 70 | K79: =IF('教育訓練費入力（今期）'!$C79="","",TEXT('教育訓練費入力（今期）'!$C79,"yyyy年")&TEXT('教育訓練費入力（今期）'!$C79,"m月")&TEXT('教育訓練費入力（今期）'!$C79,"ｄ日")&"から"&'教育訓練費入力（今期）'!$D79&"日間") ->  | L79: =IF('教育訓練費入力（今期）'!$F79="","",IF('教育訓練費入力（今期）'!$G79=1,'教育訓練費入力（今期）'!$F79,'教育訓練費入力（今期）'!$F79&"他"&'教育訓練費入力（今期）'!$G79-1&"名")) -> 
B80: 71 | K80: =IF('教育訓練費入力（今期）'!$C80="","",TEXT('教育訓練費入力（今期）'!$C80,"yyyy年")&TEXT('教育訓練費入力（今期）'!$C80,"m月")&TEXT('教育訓練費入力（今期）'!$C80,"ｄ日")&"から"&'教育訓練費入力（今期）'!$D80&"日間") ->  | L80: =IF('教育訓練費入力（今期）'!$F80="","",IF('教育訓練費入力（今期）'!$G80=1,'教育訓練費入力（今期）'!$F80,'教育訓練費入力（今期）'!$F80&"他"&'教育訓練費入力（今期）'!$G80-1&"名")) -> 
B81: 72 | K81: =IF('教育訓練費入力（今期）'!$C81="","",TEXT('教育訓練費入力（今期）'!$C81,"yyyy年")&TEXT('教育訓練費入力（今期）'!$C81,"m月")&TEXT('教育訓練費入力（今期）'!$C81,"ｄ日")&"から"&'教育訓練費入力（今期）'!$D81&"日間") ->  | L81: =IF('教育訓練費入力（今期）'!$F81="","",IF('教育訓練費入力（今期）'!$G81=1,'教育訓練費入力（今期）'!$F81,'教育訓練費入力（今期）'!$F81&"他"&'教育訓練費入力（今期）'!$G81-1&"名")) -> 
B82: 73 | K82: =IF('教育訓練費入力（今期）'!$C82="","",TEXT('教育訓練費入力（今期）'!$C82,"yyyy年")&TEXT('教育訓練費入力（今期）'!$C82,"m月")&TEXT('教育訓練費入力（今期）'!$C82,"ｄ日")&"から"&'教育訓練費入力（今期）'!$D82&"日間") ->  | L82: =IF('教育訓練費入力（今期）'!$F82="","",IF('教育訓練費入力（今期）'!$G82=1,'教育訓練費入力（今期）'!$F82,'教育訓練費入力（今期）'!$F82&"他"&'教育訓練費入力（今期）'!$G82-1&"名")) -> 
B83: 74 | K83: =IF('教育訓練費入力（今期）'!$C83="","",TEXT('教育訓練費入力（今期）'!$C83,"yyyy年")&TEXT('教育訓練費入力（今期）'!$C83,"m月")&TEXT('教育訓練費入力（今期）'!$C83,"ｄ日")&"から"&'教育訓練費入力（今期）'!$D83&"日間") ->  | L83: =IF('教育訓練費入力（今期）'!$F83="","",IF('教育訓練費入力（今期）'!$G83=1,'教育訓練費入力（今期）'!$F83,'教育訓練費入力（今期）'!$F83&"他"&'教育訓練費入力（今期）'!$G83-1&"名")) -> 
B84: 75 | K84: =IF('教育訓練費入力（今期）'!$C84="","",TEXT('教育訓練費入力（今期）'!$C84,"yyyy年")&TEXT('教育訓練費入力（今期）'!$C84,"m月")&TEXT('教育訓練費入力（今期）'!$C84,"ｄ日")&"から"&'教育訓練費入力（今期）'!$D84&"日間") ->  | L84: =IF('教育訓練費入力（今期）'!$F84="","",IF('教育訓練費入力（今期）'!$G84=1,'教育訓練費入力（今期）'!$F84,'教育訓練費入力（今期）'!$F84&"他"&'教育訓練費入力（今期）'!$G84-1&"名")) -> 
B85: 76 | K85: =IF('教育訓練費入力（今期）'!$C85="","",TEXT('教育訓練費入力（今期）'!$C85,"yyyy年")&TEXT('教育訓練費入力（今期）'!$C85,"m月")&TEXT('教育訓練費入力（今期）'!$C85,"ｄ日")&"から"&'教育訓練費入力（今期）'!$D85&"日間") ->  | L85: =IF('教育訓練費入力（今期）'!$F85="","",IF('教育訓練費入力（今期）'!$G85=1,'教育訓練費入力（今期）'!$F85,'教育訓練費入力（今期）'!$F85&"他"&'教育訓練費入力（今期）'!$G85-1&"名")) -> 
B86: 77 | K86: =IF('教育訓練費入力（今期）'!$C86="","",TEXT('教育訓練費入力（今期）'!$C86,"yyyy年")&TEXT('教育訓練費入力（今期）'!$C86,"m月")&TEXT('教育訓練費入力（今期）'!$C86,"ｄ日")&"から"&'教育訓練費入力（今期）'!$D86&"日間") ->  | L86: =IF('教育訓練費入力（今期）'!$F86="","",IF('教育訓練費入力（今期）'!$G86=1,'教育訓練費入力（今期）'!$F86,'教育訓練費入力（今期）'!$F86&"他"&'教育訓練費入力（今期）'!$G86-1&"名")) -> 
B87: 78 | K87: =IF('教育訓練費入力（今期）'!$C87="","",TEXT('教育訓練費入力（今期）'!$C87,"yyyy年")&TEXT('教育訓練費入力（今期）'!$C87,"m月")&TEXT('教育訓練費入力（今期）'!$C87,"ｄ日")&"から"&'教育訓練費入力（今期）'!$D87&"日間") ->  | L87: =IF('教育訓練費入力（今期）'!$F87="","",IF('教育訓練費入力（今期）'!$G87=1,'教育訓練費入力（今期）'!$F87,'教育訓練費入力（今期）'!$F87&"他"&'教育訓練費入力（今期）'!$G87-1&"名")) -> 
B88: 79 | K88: =IF('教育訓練費入力（今期）'!$C88="","",TEXT('教育訓練費入力（今期）'!$C88,"yyyy年")&TEXT('教育訓練費入力（今期）'!$C88,"m月")&TEXT('教育訓練費入力（今期）'!$C88,"ｄ日")&"から"&'教育訓練費入力（今期）'!$D88&"日間") ->  | L88: =IF('教育訓練費入力（今期）'!$F88="","",IF('教育訓練費入力（今期）'!$G88=1,'教育訓練費入力（今期）'!$F88,'教育訓練費入力（今期）'!$F88&"他"&'教育訓練費入力（今期）'!$G88-1&"名")) -> 
B89: 80 | K89: =IF('教育訓練費入力（今期）'!$C89="","",TEXT('教育訓練費入力（今期）'!$C89,"yyyy年")&TEXT('教育訓練費入力（今期）'!$C89,"m月")&TEXT('教育訓練費入力（今期）'!$C89,"ｄ日")&"から"&'教育訓練費入力（今期）'!$D89&"日間") ->  | L89: =IF('教育訓練費入力（今期）'!$F89="","",IF('教育訓練費入力（今期）'!$G89=1,'教育訓練費入力（今期）'!$F89,'教育訓練費入力（今期）'!$F89&"他"&'教育訓練費入力（今期）'!$G89-1&"名")) -> 
B90: 81 | K90: =IF('教育訓練費入力（今期）'!$C90="","",TEXT('教育訓練費入力（今期）'!$C90,"yyyy年")&TEXT('教育訓練費入力（今期）'!$C90,"m月")&TEXT('教育訓練費入力（今期）'!$C90,"ｄ日")&"から"&'教育訓練費入力（今期）'!$D90&"日間") ->  | L90: =IF('教育訓練費入力（今期）'!$F90="","",IF('教育訓練費入力（今期）'!$G90=1,'教育訓練費入力（今期）'!$F90,'教育訓練費入力（今期）'!$F90&"他"&'教育訓練費入力（今期）'!$G90-1&"名")) -> 
B91: 82 | K91: =IF('教育訓練費入力（今期）'!$C91="","",TEXT('教育訓練費入力（今期）'!$C91,"yyyy年")&TEXT('教育訓練費入力（今期）'!$C91,"m月")&TEXT('教育訓練費入力（今期）'!$C91,"ｄ日")&"から"&'教育訓練費入力（今期）'!$D91&"日間") ->  | L91: =IF('教育訓練費入力（今期）'!$F91="","",IF('教育訓練費入力（今期）'!$G91=1,'教育訓練費入力（今期）'!$F91,'教育訓練費入力（今期）'!$F91&"他"&'教育訓練費入力（今期）'!$G91-1&"名")) -> 
B92: 83 | K92: =IF('教育訓練費入力（今期）'!$C92="","",TEXT('教育訓練費入力（今期）'!$C92,"yyyy年")&TEXT('教育訓練費入力（今期）'!$C92,"m月")&TEXT('教育訓練費入力（今期）'!$C92,"ｄ日")&"から"&'教育訓練費入力（今期）'!$D92&"日間") ->  | L92: =IF('教育訓練費入力（今期）'!$F92="","",IF('教育訓練費入力（今期）'!$G92=1,'教育訓練費入力（今期）'!$F92,'教育訓練費入力（今期）'!$F92&"他"&'教育訓練費入力（今期）'!$G92-1&"名")) -> 
B93: 84 | K93: =IF('教育訓練費入力（今期）'!$C93="","",TEXT('教育訓練費入力（今期）'!$C93,"yyyy年")&TEXT('教育訓練費入力（今期）'!$C93,"m月")&TEXT('教育訓練費入力（今期）'!$C93,"ｄ日")&"から"&'教育訓練費入力（今期）'!$D93&"日間") ->  | L93: =IF('教育訓練費入力（今期）'!$F93="","",IF('教育訓練費入力（今期）'!$G93=1,'教育訓練費入力（今期）'!$F93,'教育訓練費入力（今期）'!$F93&"他"&'教育訓練費入力（今期）'!$G93-1&"名")) -> 
B94: 85 | K94: =IF('教育訓練費入力（今期）'!$C94="","",TEXT('教育訓練費入力（今期）'!$C94,"yyyy年")&TEXT('教育訓練費入力（今期）'!$C94,"m月")&TEXT('教育訓練費入力（今期）'!$C94,"ｄ日")&"から"&'教育訓練費入力（今期）'!$D94&"日間") ->  | L94: =IF('教育訓練費入力（今期）'!$F94="","",IF('教育訓練費入力（今期）'!$G94=1,'教育訓練費入力（今期）'!$F94,'教育訓練費入力（今期）'!$F94&"他"&'教育訓練費入力（今期）'!$G94-1&"名")) -> 
B95: 86 | K95: =IF('教育訓練費入力（今期）'!$C95="","",TEXT('教育訓練費入力（今期）'!$C95,"yyyy年")&TEXT('教育訓練費入力（今期）'!$C95,"m月")&TEXT('教育訓練費入力（今期）'!$C95,"ｄ日")&"から"&'教育訓練費入力（今期）'!$D95&"日間") ->  | L95: =IF('教育訓練費入力（今期）'!$F95="","",IF('教育訓練費入力（今期）'!$G95=1,'教育訓練費入力（今期）'!$F95,'教育訓練費入力（今期）'!$F95&"他"&'教育訓練費入力（今期）'!$G95-1&"名")) -> 
B96: 87 | K96: =IF('教育訓練費入力（今期）'!$C96="","",TEXT('教育訓練費入力（今期）'!$C96,"yyyy年")&TEXT('教育訓練費入力（今期）'!$C96,"m月")&TEXT('教育訓練費入力（今期）'!$C96,"ｄ日")&"から"&'教育訓練費入力（今期）'!$D96&"日間") ->  | L96: =IF('教育訓練費入力（今期）'!$F96="","",IF('教育訓練費入力（今期）'!$G96=1,'教育訓練費入力（今期）'!$F96,'教育訓練費入力（今期）'!$F96&"他"&'教育訓練費入力（今期）'!$G96-1&"名")) -> 
B97: 88 | K97: =IF('教育訓練費入力（今期）'!$C97="","",TEXT('教育訓練費入力（今期）'!$C97,"yyyy年")&TEXT('教育訓練費入力（今期）'!$C97,"m月")&TEXT('教育訓練費入力（今期）'!$C97,"ｄ日")&"から"&'教育訓練費入力（今期）'!$D97&"日間") ->  | L97: =IF('教育訓練費入力（今期）'!$F97="","",IF('教育訓練費入力（今期）'!$G97=1,'教育訓練費入力（今期）'!$F97,'教育訓練費入力（今期）'!$F97&"他"&'教育訓練費入力（今期）'!$G97-1&"名")) -> 
B98: 89 | K98: =IF('教育訓練費入力（今期）'!$C98="","",TEXT('教育訓練費入力（今期）'!$C98,"yyyy年")&TEXT('教育訓練費入力（今期）'!$C98,"m月")&TEXT('教育訓練費入力（今期）'!$C98,"ｄ日")&"から"&'教育訓練費入力（今期）'!$D98&"日間") ->  | L98: =IF('教育訓練費入力（今期）'!$F98="","",IF('教育訓練費入力（今期）'!$G98=1,'教育訓練費入力（今期）'!$F98,'教育訓練費入力（今期）'!$F98&"他"&'教育訓練費入力（今期）'!$G98-1&"名")) -> 
B99: 90 | K99: =IF('教育訓練費入力（今期）'!$C99="","",TEXT('教育訓練費入力（今期）'!$C99,"yyyy年")&TEXT('教育訓練費入力（今期）'!$C99,"m月")&TEXT('教育訓練費入力（今期）'!$C99,"ｄ日")&"から"&'教育訓練費入力（今期）'!$D99&"日間") ->  | L99: =IF('教育訓練費入力（今期）'!$F99="","",IF('教育訓練費入力（今期）'!$G99=1,'教育訓練費入力（今期）'!$F99,'教育訓練費入力（今期）'!$F99&"他"&'教育訓練費入力（今期）'!$G99-1&"名")) -> 
B100: 91 | K100: =IF('教育訓練費入力（今期）'!$C100="","",TEXT('教育訓練費入力（今期）'!$C100,"yyyy年")&TEXT('教育訓練費入力（今期）'!$C100,"m月")&TEXT('教育訓練費入力（今期）'!$C100,"ｄ日")&"から"&'教育訓練費入力（今期）'!$D100&"日間") ->  | L100: =IF('教育訓練費入力（今期）'!$F100="","",IF('教育訓練費入力（今期）'!$G100=1,'教育訓練費入力（今期）'!$F100,'教育訓練費入力（今期）'!$F100&"他"&'教育訓練費入力（今期）'!$G100-1&"名")) -> 
B101: 92 | K101: =IF('教育訓練費入力（今期）'!$C101="","",TEXT('教育訓練費入力（今期）'!$C101,"yyyy年")&TEXT('教育訓練費入力（今期）'!$C101,"m月")&TEXT('教育訓練費入力（今期）'!$C101,"ｄ日")&"から"&'教育訓練費入力（今期）'!$D101&"日間") ->  | L101: =IF('教育訓練費入力（今期）'!$F101="","",IF('教育訓練費入力（今期）'!$G101=1,'教育訓練費入力（今期）'!$F101,'教育訓練費入力（今期）'!$F101&"他"&'教育訓練費入力（今期）'!$G101-1&"名")) -> 
B102: 93 | K102: =IF('教育訓練費入力（今期）'!$C102="","",TEXT('教育訓練費入力（今期）'!$C102,"yyyy年")&TEXT('教育訓練費入力（今期）'!$C102,"m月")&TEXT('教育訓練費入力（今期）'!$C102,"ｄ日")&"から"&'教育訓練費入力（今期）'!$D102&"日間") ->  | L102: =IF('教育訓練費入力（今期）'!$F102="","",IF('教育訓練費入力（今期）'!$G102=1,'教育訓練費入力（今期）'!$F102,'教育訓練費入力（今期）'!$F102&"他"&'教育訓練費入力（今期）'!$G102-1&"名")) -> 
B103: 94 | K103: =IF('教育訓練費入力（今期）'!$C103="","",TEXT('教育訓練費入力（今期）'!$C103,"yyyy年")&TEXT('教育訓練費入力（今期）'!$C103,"m月")&TEXT('教育訓練費入力（今期）'!$C103,"ｄ日")&"から"&'教育訓練費入力（今期）'!$D103&"日間") ->  | L103: =IF('教育訓練費入力（今期）'!$F103="","",IF('教育訓練費入力（今期）'!$G103=1,'教育訓練費入力（今期）'!$F103,'教育訓練費入力（今期）'!$F103&"他"&'教育訓練費入力（今期）'!$G103-1&"名")) -> 
B104: 95 | K104: =IF('教育訓練費入力（今期）'!$C104="","",TEXT('教育訓練費入力（今期）'!$C104,"yyyy年")&TEXT('教育訓練費入力（今期）'!$C104,"m月")&TEXT('教育訓練費入力（今期）'!$C104,"ｄ日")&"から"&'教育訓練費入力（今期）'!$D104&"日間") ->  | L104: =IF('教育訓練費入力（今期）'!$F104="","",IF('教育訓練費入力（今期）'!$G104=1,'教育訓練費入力（今期）'!$F104,'教育訓練費入力（今期）'!$F104&"他"&'教育訓練費入力（今期）'!$G104-1&"名")) -> 
B105: 96 | K105: =IF('教育訓練費入力（今期）'!$C105="","",TEXT('教育訓練費入力（今期）'!$C105,"yyyy年")&TEXT('教育訓練費入力（今期）'!$C105,"m月")&TEXT('教育訓練費入力（今期）'!$C105,"ｄ日")&"から"&'教育訓練費入力（今期）'!$D105&"日間") ->  | L105: =IF('教育訓練費入力（今期）'!$F105="","",IF('教育訓練費入力（今期）'!$G105=1,'教育訓練費入力（今期）'!$F105,'教育訓練費入力（今期）'!$F105&"他"&'教育訓練費入力（今期）'!$G105-1&"名")) -> 
B106: 97 | K106: =IF('教育訓練費入力（今期）'!$C106="","",TEXT('教育訓練費入力（今期）'!$C106,"yyyy年")&TEXT('教育訓練費入力（今期）'!$C106,"m月")&TEXT('教育訓練費入力（今期）'!$C106,"ｄ日")&"から"&'教育訓練費入力（今期）'!$D106&"日間") ->  | L106: =IF('教育訓練費入力（今期）'!$F106="","",IF('教育訓練費入力（今期）'!$G106=1,'教育訓練費入力（今期）'!$F106,'教育訓練費入力（今期）'!$F106&"他"&'教育訓練費入力（今期）'!$G106-1&"名")) -> 
B107: 98 | K107: =IF('教育訓練費入力（今期）'!$C107="","",TEXT('教育訓練費入力（今期）'!$C107,"yyyy年")&TEXT('教育訓練費入力（今期）'!$C107,"m月")&TEXT('教育訓練費入力（今期）'!$C107,"ｄ日")&"から"&'教育訓練費入力（今期）'!$D107&"日間") ->  | L107: =IF('教育訓練費入力（今期）'!$F107="","",IF('教育訓練費入力（今期）'!$G107=1,'教育訓練費入力（今期）'!$F107,'教育訓練費入力（今期）'!$F107&"他"&'教育訓練費入力（今期）'!$G107-1&"名")) -> 
B108: 99 | K108: =IF('教育訓練費入力（今期）'!$C108="","",TEXT('教育訓練費入力（今期）'!$C108,"yyyy年")&TEXT('教育訓練費入力（今期）'!$C108,"m月")&TEXT('教育訓練費入力（今期）'!$C108,"ｄ日")&"から"&'教育訓練費入力（今期）'!$D108&"日間") ->  | L108: =IF('教育訓練費入力（今期）'!$F108="","",IF('教育訓練費入力（今期）'!$G108=1,'教育訓練費入力（今期）'!$F108,'教育訓練費入力（今期）'!$F108&"他"&'教育訓練費入力（今期）'!$G108-1&"名")) -> 
B109: 100 | K109: =IF('教育訓練費入力（今期）'!$C109="","",TEXT('教育訓練費入力（今期）'!$C109,"yyyy年")&TEXT('教育訓練費入力（今期）'!$C109,"m月")&TEXT('教育訓練費入力（今期）'!$C109,"ｄ日")&"から"&'教育訓練費入力（今期）'!$D109&"日間") ->  | L109: =IF('教育訓練費入力（今期）'!$F109="","",IF('教育訓練費入力（今期）'!$G109=1,'教育訓練費入力（今期）'!$F109,'教育訓練費入力（今期）'!$F109&"他"&'教育訓練費入力（今期）'!$G109-1&"名")) -> 
B110: 101 | K110: =IF('教育訓練費入力（今期）'!$C110="","",TEXT('教育訓練費入力（今期）'!$C110,"yyyy年")&TEXT('教育訓練費入力（今期）'!$C110,"m月")&TEXT('教育訓練費入力（今期）'!$C110,"ｄ日")&"から"&'教育訓練費入力（今期）'!$D110&"日間") ->  | L110: =IF('教育訓練費入力（今期）'!$F110="","",IF('教育訓練費入力（今期）'!$G110=1,'教育訓練費入力（今期）'!$F110,'教育訓練費入力（今期）'!$F110&"他"&'教育訓練費入力（今期）'!$G110-1&"名")) -> 
B111: 102 | K111: =IF('教育訓練費入力（今期）'!$C111="","",TEXT('教育訓練費入力（今期）'!$C111,"yyyy年")&TEXT('教育訓練費入力（今期）'!$C111,"m月")&TEXT('教育訓練費入力（今期）'!$C111,"ｄ日")&"から"&'教育訓練費入力（今期）'!$D111&"日間") ->  | L111: =IF('教育訓練費入力（今期）'!$F111="","",IF('教育訓練費入力（今期）'!$G111=1,'教育訓練費入力（今期）'!$F111,'教育訓練費入力（今期）'!$F111&"他"&'教育訓練費入力（今期）'!$G111-1&"名")) -> 
B112: 103 | K112: =IF('教育訓練費入力（今期）'!$C112="","",TEXT('教育訓練費入力（今期）'!$C112,"yyyy年")&TEXT('教育訓練費入力（今期）'!$C112,"m月")&TEXT('教育訓練費入力（今期）'!$C112,"ｄ日")&"から"&'教育訓練費入力（今期）'!$D112&"日間") ->  | L112: =IF('教育訓練費入力（今期）'!$F112="","",IF('教育訓練費入力（今期）'!$G112=1,'教育訓練費入力（今期）'!$F112,'教育訓練費入力（今期）'!$F112&"他"&'教育訓練費入力（今期）'!$G112-1&"名")) -> 
B113: 104 | K113: =IF('教育訓練費入力（今期）'!$C113="","",TEXT('教育訓練費入力（今期）'!$C113,"yyyy年")&TEXT('教育訓練費入力（今期）'!$C113,"m月")&TEXT('教育訓練費入力（今期）'!$C113,"ｄ日")&"から"&'教育訓練費入力（今期）'!$D113&"日間") ->  | L113: =IF('教育訓練費入力（今期）'!$F113="","",IF('教育訓練費入力（今期）'!$G113=1,'教育訓練費入力（今期）'!$F113,'教育訓練費入力（今期）'!$F113&"他"&'教育訓練費入力（今期）'!$G113-1&"名")) -> 
B114: 105 | K114: =IF('教育訓練費入力（今期）'!$C114="","",TEXT('教育訓練費入力（今期）'!$C114,"yyyy年")&TEXT('教育訓練費入力（今期）'!$C114,"m月")&TEXT('教育訓練費入力（今期）'!$C114,"ｄ日")&"から"&'教育訓練費入力（今期）'!$D114&"日間") ->  | L114: =IF('教育訓練費入力（今期）'!$F114="","",IF('教育訓練費入力（今期）'!$G114=1,'教育訓練費入力（今期）'!$F114,'教育訓練費入力（今期）'!$F114&"他"&'教育訓練費入力（今期）'!$G114-1&"名")) -> 
B115: 106 | K115: =IF('教育訓練費入力（今期）'!$C115="","",TEXT('教育訓練費入力（今期）'!$C115,"yyyy年")&TEXT('教育訓練費入力（今期）'!$C115,"m月")&TEXT('教育訓練費入力（今期）'!$C115,"ｄ日")&"から"&'教育訓練費入力（今期）'!$D115&"日間") ->  | L115: =IF('教育訓練費入力（今期）'!$F115="","",IF('教育訓練費入力（今期）'!$G115=1,'教育訓練費入力（今期）'!$F115,'教育訓練費入力（今期）'!$F115&"他"&'教育訓練費入力（今期）'!$G115-1&"名")) -> 
B116: 107 | K116: =IF('教育訓練費入力（今期）'!$C116="","",TEXT('教育訓練費入力（今期）'!$C116,"yyyy年")&TEXT('教育訓練費入力（今期）'!$C116,"m月")&TEXT('教育訓練費入力（今期）'!$C116,"ｄ日")&"から"&'教育訓練費入力（今期）'!$D116&"日間") ->  | L116: =IF('教育訓練費入力（今期）'!$F116="","",IF('教育訓練費入力（今期）'!$G116=1,'教育訓練費入力（今期）'!$F116,'教育訓練費入力（今期）'!$F116&"他"&'教育訓練費入力（今期）'!$G116-1&"名")) -> 
B117: 108 | K117: =IF('教育訓練費入力（今期）'!$C117="","",TEXT('教育訓練費入力（今期）'!$C117,"yyyy年")&TEXT('教育訓練費入力（今期）'!$C117,"m月")&TEXT('教育訓練費入力（今期）'!$C117,"ｄ日")&"から"&'教育訓練費入力（今期）'!$D117&"日間") ->  | L117: =IF('教育訓練費入力（今期）'!$F117="","",IF('教育訓練費入力（今期）'!$G117=1,'教育訓練費入力（今期）'!$F117,'教育訓練費入力（今期）'!$F117&"他"&'教育訓練費入力（今期）'!$G117-1&"名")) -> 
B118: 109 | K118: =IF('教育訓練費入力（今期）'!$C118="","",TEXT('教育訓練費入力（今期）'!$C118,"yyyy年")&TEXT('教育訓練費入力（今期）'!$C118,"m月")&TEXT('教育訓練費入力（今期）'!$C118,"ｄ日")&"から"&'教育訓練費入力（今期）'!$D118&"日間") ->  | L118: =IF('教育訓練費入力（今期）'!$F118="","",IF('教育訓練費入力（今期）'!$G118=1,'教育訓練費入力（今期）'!$F118,'教育訓練費入力（今期）'!$F118&"他"&'教育訓練費入力（今期）'!$G118-1&"名")) -> 
B119: 110 | K119: =IF('教育訓練費入力（今期）'!$C119="","",TEXT('教育訓練費入力（今期）'!$C119,"yyyy年")&TEXT('教育訓練費入力（今期）'!$C119,"m月")&TEXT('教育訓練費入力（今期）'!$C119,"ｄ日")&"から"&'教育訓練費入力（今期）'!$D119&"日間") ->  | L119: =IF('教育訓練費入力（今期）'!$F119="","",IF('教育訓練費入力（今期）'!$G119=1,'教育訓練費入力（今期）'!$F119,'教育訓練費入力（今期）'!$F119&"他"&'教育訓練費入力（今期）'!$G119-1&"名")) -> 
B120: 111 | K120: =IF('教育訓練費入力（今期）'!$C120="","",TEXT('教育訓練費入力（今期）'!$C120,"yyyy年")&TEXT('教育訓練費入力（今期）'!$C120,"m月")&TEXT('教育訓練費入力（今期）'!$C120,"ｄ日")&"から"&'教育訓練費入力（今期）'!$D120&"日間") ->  | L120: =IF('教育訓練費入力（今期）'!$F120="","",IF('教育訓練費入力（今期）'!$G120=1,'教育訓練費入力（今期）'!$F120,'教育訓練費入力（今期）'!$F120&"他"&'教育訓練費入力（今期）'!$G120-1&"名")) -> 
B121: 112 | K121: =IF('教育訓練費入力（今期）'!$C121="","",TEXT('教育訓練費入力（今期）'!$C121,"yyyy年")&TEXT('教育訓練費入力（今期）'!$C121,"m月")&TEXT('教育訓練費入力（今期）'!$C121,"ｄ日")&"から"&'教育訓練費入力（今期）'!$D121&"日間") ->  | L121: =IF('教育訓練費入力（今期）'!$F121="","",IF('教育訓練費入力（今期）'!$G121=1,'教育訓練費入力（今期）'!$F121,'教育訓練費入力（今期）'!$F121&"他"&'教育訓練費入力（今期）'!$G121-1&"名")) -> 
B122: 113 | K122: =IF('教育訓練費入力（今期）'!$C122="","",TEXT('教育訓練費入力（今期）'!$C122,"yyyy年")&TEXT('教育訓練費入力（今期）'!$C122,"m月")&TEXT('教育訓練費入力（今期）'!$C122,"ｄ日")&"から"&'教育訓練費入力（今期）'!$D122&"日間") ->  | L122: =IF('教育訓練費入力（今期）'!$F122="","",IF('教育訓練費入力（今期）'!$G122=1,'教育訓練費入力（今期）'!$F122,'教育訓練費入力（今期）'!$F122&"他"&'教育訓練費入力（今期）'!$G122-1&"名")) -> 
B123: 114 | K123: =IF('教育訓練費入力（今期）'!$C123="","",TEXT('教育訓練費入力（今期）'!$C123,"yyyy年")&TEXT('教育訓練費入力（今期）'!$C123,"m月")&TEXT('教育訓練費入力（今期）'!$C123,"ｄ日")&"から"&'教育訓練費入力（今期）'!$D123&"日間") ->  | L123: =IF('教育訓練費入力（今期）'!$F123="","",IF('教育訓練費入力（今期）'!$G123=1,'教育訓練費入力（今期）'!$F123,'教育訓練費入力（今期）'!$F123&"他"&'教育訓練費入力（今期）'!$G123-1&"名")) -> 
B124: 115 | K124: =IF('教育訓練費入力（今期）'!$C124="","",TEXT('教育訓練費入力（今期）'!$C124,"yyyy年")&TEXT('教育訓練費入力（今期）'!$C124,"m月")&TEXT('教育訓練費入力（今期）'!$C124,"ｄ日")&"から"&'教育訓練費入力（今期）'!$D124&"日間") ->  | L124: =IF('教育訓練費入力（今期）'!$F124="","",IF('教育訓練費入力（今期）'!$G124=1,'教育訓練費入力（今期）'!$F124,'教育訓練費入力（今期）'!$F124&"他"&'教育訓練費入力（今期）'!$G124-1&"名")) -> 
B125: 116 | K125: =IF('教育訓練費入力（今期）'!$C125="","",TEXT('教育訓練費入力（今期）'!$C125,"yyyy年")&TEXT('教育訓練費入力（今期）'!$C125,"m月")&TEXT('教育訓練費入力（今期）'!$C125,"ｄ日")&"から"&'教育訓練費入力（今期）'!$D125&"日間") ->  | L125: =IF('教育訓練費入力（今期）'!$F125="","",IF('教育訓練費入力（今期）'!$G125=1,'教育訓練費入力（今期）'!$F125,'教育訓練費入力（今期）'!$F125&"他"&'教育訓練費入力（今期）'!$G125-1&"名")) -> 
B126: 117 | K126: =IF('教育訓練費入力（今期）'!$C126="","",TEXT('教育訓練費入力（今期）'!$C126,"yyyy年")&TEXT('教育訓練費入力（今期）'!$C126,"m月")&TEXT('教育訓練費入力（今期）'!$C126,"ｄ日")&"から"&'教育訓練費入力（今期）'!$D126&"日間") ->  | L126: =IF('教育訓練費入力（今期）'!$F126="","",IF('教育訓練費入力（今期）'!$G126=1,'教育訓練費入力（今期）'!$F126,'教育訓練費入力（今期）'!$F126&"他"&'教育訓練費入力（今期）'!$G126-1&"名")) -> 
B127: 118 | K127: =IF('教育訓練費入力（今期）'!$C127="","",TEXT('教育訓練費入力（今期）'!$C127,"yyyy年")&TEXT('教育訓練費入力（今期）'!$C127,"m月")&TEXT('教育訓練費入力（今期）'!$C127,"ｄ日")&"から"&'教育訓練費入力（今期）'!$D127&"日間") ->  | L127: =IF('教育訓練費入力（今期）'!$F127="","",IF('教育訓練費入力（今期）'!$G127=1,'教育訓練費入力（今期）'!$F127,'教育訓練費入力（今期）'!$F127&"他"&'教育訓練費入力（今期）'!$G127-1&"名")) -> 
B128: 119 | K128: =IF('教育訓練費入力（今期）'!$C128="","",TEXT('教育訓練費入力（今期）'!$C128,"yyyy年")&TEXT('教育訓練費入力（今期）'!$C128,"m月")&TEXT('教育訓練費入力（今期）'!$C128,"ｄ日")&"から"&'教育訓練費入力（今期）'!$D128&"日間") ->  | L128: =IF('教育訓練費入力（今期）'!$F128="","",IF('教育訓練費入力（今期）'!$G128=1,'教育訓練費入力（今期）'!$F128,'教育訓練費入力（今期）'!$F128&"他"&'教育訓練費入力（今期）'!$G128-1&"名")) -> 
B129: 120 | K129: =IF('教育訓練費入力（今期）'!$C129="","",TEXT('教育訓練費入力（今期）'!$C129,"yyyy年")&TEXT('教育訓練費入力（今期）'!$C129,"m月")&TEXT('教育訓練費入力（今期）'!$C129,"ｄ日")&"から"&'教育訓練費入力（今期）'!$D129&"日間") ->  | L129: =IF('教育訓練費入力（今期）'!$F129="","",IF('教育訓練費入力（今期）'!$G129=1,'教育訓練費入力（今期）'!$F129,'教育訓練費入力（今期）'!$F129&"他"&'教育訓練費入力（今期）'!$G129-1&"名")) -> 
B130: 121 | K130: =IF('教育訓練費入力（今期）'!$C130="","",TEXT('教育訓練費入力（今期）'!$C130,"yyyy年")&TEXT('教育訓練費入力（今期）'!$C130,"m月")&TEXT('教育訓練費入力（今期）'!$C130,"ｄ日")&"から"&'教育訓練費入力（今期）'!$D130&"日間") ->  | L130: =IF('教育訓練費入力（今期）'!$F130="","",IF('教育訓練費入力（今期）'!$G130=1,'教育訓練費入力（今期）'!$F130,'教育訓練費入力（今期）'!$F130&"他"&'教育訓練費入力（今期）'!$G130-1&"名")) -> 
B131: 122 | K131: =IF('教育訓練費入力（今期）'!$C131="","",TEXT('教育訓練費入力（今期）'!$C131,"yyyy年")&TEXT('教育訓練費入力（今期）'!$C131,"m月")&TEXT('教育訓練費入力（今期）'!$C131,"ｄ日")&"から"&'教育訓練費入力（今期）'!$D131&"日間") ->  | L131: =IF('教育訓練費入力（今期）'!$F131="","",IF('教育訓練費入力（今期）'!$G131=1,'教育訓練費入力（今期）'!$F131,'教育訓練費入力（今期）'!$F131&"他"&'教育訓練費入力（今期）'!$G131-1&"名")) -> 
B132: 123 | K132: =IF('教育訓練費入力（今期）'!$C132="","",TEXT('教育訓練費入力（今期）'!$C132,"yyyy年")&TEXT('教育訓練費入力（今期）'!$C132,"m月")&TEXT('教育訓練費入力（今期）'!$C132,"ｄ日")&"から"&'教育訓練費入力（今期）'!$D132&"日間") ->  | L132: =IF('教育訓練費入力（今期）'!$F132="","",IF('教育訓練費入力（今期）'!$G132=1,'教育訓練費入力（今期）'!$F132,'教育訓練費入力（今期）'!$F132&"他"&'教育訓練費入力（今期）'!$G132-1&"名")) -> 
B133: 124 | K133: =IF('教育訓練費入力（今期）'!$C133="","",TEXT('教育訓練費入力（今期）'!$C133,"yyyy年")&TEXT('教育訓練費入力（今期）'!$C133,"m月")&TEXT('教育訓練費入力（今期）'!$C133,"ｄ日")&"から"&'教育訓練費入力（今期）'!$D133&"日間") ->  | L133: =IF('教育訓練費入力（今期）'!$F133="","",IF('教育訓練費入力（今期）'!$G133=1,'教育訓練費入力（今期）'!$F133,'教育訓練費入力（今期）'!$F133&"他"&'教育訓練費入力（今期）'!$G133-1&"名")) -> 
B134: 125 | K134: =IF('教育訓練費入力（今期）'!$C134="","",TEXT('教育訓練費入力（今期）'!$C134,"yyyy年")&TEXT('教育訓練費入力（今期）'!$C134,"m月")&TEXT('教育訓練費入力（今期）'!$C134,"ｄ日")&"から"&'教育訓練費入力（今期）'!$D134&"日間") ->  | L134: =IF('教育訓練費入力（今期）'!$F134="","",IF('教育訓練費入力（今期）'!$G134=1,'教育訓練費入力（今期）'!$F134,'教育訓練費入力（今期）'!$F134&"他"&'教育訓練費入力（今期）'!$G134-1&"名")) -> 
B135: 126 | K135: =IF('教育訓練費入力（今期）'!$C135="","",TEXT('教育訓練費入力（今期）'!$C135,"yyyy年")&TEXT('教育訓練費入力（今期）'!$C135,"m月")&TEXT('教育訓練費入力（今期）'!$C135,"ｄ日")&"から"&'教育訓練費入力（今期）'!$D135&"日間") ->  | L135: =IF('教育訓練費入力（今期）'!$F135="","",IF('教育訓練費入力（今期）'!$G135=1,'教育訓練費入力（今期）'!$F135,'教育訓練費入力（今期）'!$F135&"他"&'教育訓練費入力（今期）'!$G135-1&"名")) -> 
B136: 127 | K136: =IF('教育訓練費入力（今期）'!$C136="","",TEXT('教育訓練費入力（今期）'!$C136,"yyyy年")&TEXT('教育訓練費入力（今期）'!$C136,"m月")&TEXT('教育訓練費入力（今期）'!$C136,"ｄ日")&"から"&'教育訓練費入力（今期）'!$D136&"日間") ->  | L136: =IF('教育訓練費入力（今期）'!$F136="","",IF('教育訓練費入力（今期）'!$G136=1,'教育訓練費入力（今期）'!$F136,'教育訓練費入力（今期）'!$F136&"他"&'教育訓練費入力（今期）'!$G136-1&"名")) -> 
B137: 128 | K137: =IF('教育訓練費入力（今期）'!$C137="","",TEXT('教育訓練費入力（今期）'!$C137,"yyyy年")&TEXT('教育訓練費入力（今期）'!$C137,"m月")&TEXT('教育訓練費入力（今期）'!$C137,"ｄ日")&"から"&'教育訓練費入力（今期）'!$D137&"日間") ->  | L137: =IF('教育訓練費入力（今期）'!$F137="","",IF('教育訓練費入力（今期）'!$G137=1,'教育訓練費入力（今期）'!$F137,'教育訓練費入力（今期）'!$F137&"他"&'教育訓練費入力（今期）'!$G137-1&"名")) -> 
B138: 129 | K138: =IF('教育訓練費入力（今期）'!$C138="","",TEXT('教育訓練費入力（今期）'!$C138,"yyyy年")&TEXT('教育訓練費入力（今期）'!$C138,"m月")&TEXT('教育訓練費入力（今期）'!$C138,"ｄ日")&"から"&'教育訓練費入力（今期）'!$D138&"日間") ->  | L138: =IF('教育訓練費入力（今期）'!$F138="","",IF('教育訓練費入力（今期）'!$G138=1,'教育訓練費入力（今期）'!$F138,'教育訓練費入力（今期）'!$F138&"他"&'教育訓練費入力（今期）'!$G138-1&"名")) -> 
B139: 130 | K139: =IF('教育訓練費入力（今期）'!$C139="","",TEXT('教育訓練費入力（今期）'!$C139,"yyyy年")&TEXT('教育訓練費入力（今期）'!$C139,"m月")&TEXT('教育訓練費入力（今期）'!$C139,"ｄ日")&"から"&'教育訓練費入力（今期）'!$D139&"日間") ->  | L139: =IF('教育訓練費入力（今期）'!$F139="","",IF('教育訓練費入力（今期）'!$G139=1,'教育訓練費入力（今期）'!$F139,'教育訓練費入力（今期）'!$F139&"他"&'教育訓練費入力（今期）'!$G139-1&"名")) -> 
B140: 131 | K140: =IF('教育訓練費入力（今期）'!$C140="","",TEXT('教育訓練費入力（今期）'!$C140,"yyyy年")&TEXT('教育訓練費入力（今期）'!$C140,"m月")&TEXT('教育訓練費入力（今期）'!$C140,"ｄ日")&"から"&'教育訓練費入力（今期）'!$D140&"日間") ->  | L140: =IF('教育訓練費入力（今期）'!$F140="","",IF('教育訓練費入力（今期）'!$G140=1,'教育訓練費入力（今期）'!$F140,'教育訓練費入力（今期）'!$F140&"他"&'教育訓練費入力（今期）'!$G140-1&"名")) -> 
B141: 132 | K141: =IF('教育訓練費入力（今期）'!$C141="","",TEXT('教育訓練費入力（今期）'!$C141,"yyyy年")&TEXT('教育訓練費入力（今期）'!$C141,"m月")&TEXT('教育訓練費入力（今期）'!$C141,"ｄ日")&"から"&'教育訓練費入力（今期）'!$D141&"日間") ->  | L141: =IF('教育訓練費入力（今期）'!$F141="","",IF('教育訓練費入力（今期）'!$G141=1,'教育訓練費入力（今期）'!$F141,'教育訓練費入力（今期）'!$F141&"他"&'教育訓練費入力（今期）'!$G141-1&"名")) -> 
B142: 133 | K142: =IF('教育訓練費入力（今期）'!$C142="","",TEXT('教育訓練費入力（今期）'!$C142,"yyyy年")&TEXT('教育訓練費入力（今期）'!$C142,"m月")&TEXT('教育訓練費入力（今期）'!$C142,"ｄ日")&"から"&'教育訓練費入力（今期）'!$D142&"日間") ->  | L142: =IF('教育訓練費入力（今期）'!$F142="","",IF('教育訓練費入力（今期）'!$G142=1,'教育訓練費入力（今期）'!$F142,'教育訓練費入力（今期）'!$F142&"他"&'教育訓練費入力（今期）'!$G142-1&"名")) -> 
B143: 134 | K143: =IF('教育訓練費入力（今期）'!$C143="","",TEXT('教育訓練費入力（今期）'!$C143,"yyyy年")&TEXT('教育訓練費入力（今期）'!$C143,"m月")&TEXT('教育訓練費入力（今期）'!$C143,"ｄ日")&"から"&'教育訓練費入力（今期）'!$D143&"日間") ->  | L143: =IF('教育訓練費入力（今期）'!$F143="","",IF('教育訓練費入力（今期）'!$G143=1,'教育訓練費入力（今期）'!$F143,'教育訓練費入力（今期）'!$F143&"他"&'教育訓練費入力（今期）'!$G143-1&"名")) -> 
B144: 135 | K144: =IF('教育訓練費入力（今期）'!$C144="","",TEXT('教育訓練費入力（今期）'!$C144,"yyyy年")&TEXT('教育訓練費入力（今期）'!$C144,"m月")&TEXT('教育訓練費入力（今期）'!$C144,"ｄ日")&"から"&'教育訓練費入力（今期）'!$D144&"日間") ->  | L144: =IF('教育訓練費入力（今期）'!$F144="","",IF('教育訓練費入力（今期）'!$G144=1,'教育訓練費入力（今期）'!$F144,'教育訓練費入力（今期）'!$F144&"他"&'教育訓練費入力（今期）'!$G144-1&"名")) -> 
B145: 136 | K145: =IF('教育訓練費入力（今期）'!$C145="","",TEXT('教育訓練費入力（今期）'!$C145,"yyyy年")&TEXT('教育訓練費入力（今期）'!$C145,"m月")&TEXT('教育訓練費入力（今期）'!$C145,"ｄ日")&"から"&'教育訓練費入力（今期）'!$D145&"日間") ->  | L145: =IF('教育訓練費入力（今期）'!$F145="","",IF('教育訓練費入力（今期）'!$G145=1,'教育訓練費入力（今期）'!$F145,'教育訓練費入力（今期）'!$F145&"他"&'教育訓練費入力（今期）'!$G145-1&"名")) -> 
B146: 137 | K146: =IF('教育訓練費入力（今期）'!$C146="","",TEXT('教育訓練費入力（今期）'!$C146,"yyyy年")&TEXT('教育訓練費入力（今期）'!$C146,"m月")&TEXT('教育訓練費入力（今期）'!$C146,"ｄ日")&"から"&'教育訓練費入力（今期）'!$D146&"日間") ->  | L146: =IF('教育訓練費入力（今期）'!$F146="","",IF('教育訓練費入力（今期）'!$G146=1,'教育訓練費入力（今期）'!$F146,'教育訓練費入力（今期）'!$F146&"他"&'教育訓練費入力（今期）'!$G146-1&"名")) -> 
B147: 138 | K147: =IF('教育訓練費入力（今期）'!$C147="","",TEXT('教育訓練費入力（今期）'!$C147,"yyyy年")&TEXT('教育訓練費入力（今期）'!$C147,"m月")&TEXT('教育訓練費入力（今期）'!$C147,"ｄ日")&"から"&'教育訓練費入力（今期）'!$D147&"日間") ->  | L147: =IF('教育訓練費入力（今期）'!$F147="","",IF('教育訓練費入力（今期）'!$G147=1,'教育訓練費入力（今期）'!$F147,'教育訓練費入力（今期）'!$F147&"他"&'教育訓練費入力（今期）'!$G147-1&"名")) -> 
B148: 139 | K148: =IF('教育訓練費入力（今期）'!$C148="","",TEXT('教育訓練費入力（今期）'!$C148,"yyyy年")&TEXT('教育訓練費入力（今期）'!$C148,"m月")&TEXT('教育訓練費入力（今期）'!$C148,"ｄ日")&"から"&'教育訓練費入力（今期）'!$D148&"日間") ->  | L148: =IF('教育訓練費入力（今期）'!$F148="","",IF('教育訓練費入力（今期）'!$G148=1,'教育訓練費入力（今期）'!$F148,'教育訓練費入力（今期）'!$F148&"他"&'教育訓練費入力（今期）'!$G148-1&"名")) -> 
B149: 140 | K149: =IF('教育訓練費入力（今期）'!$C149="","",TEXT('教育訓練費入力（今期）'!$C149,"yyyy年")&TEXT('教育訓練費入力（今期）'!$C149,"m月")&TEXT('教育訓練費入力（今期）'!$C149,"ｄ日")&"から"&'教育訓練費入力（今期）'!$D149&"日間") ->  | L149: =IF('教育訓練費入力（今期）'!$F149="","",IF('教育訓練費入力（今期）'!$G149=1,'教育訓練費入力（今期）'!$F149,'教育訓練費入力（今期）'!$F149&"他"&'教育訓練費入力（今期）'!$G149-1&"名")) -> 
B150: 141 | K150: =IF('教育訓練費入力（今期）'!$C150="","",TEXT('教育訓練費入力（今期）'!$C150,"yyyy年")&TEXT('教育訓練費入力（今期）'!$C150,"m月")&TEXT('教育訓練費入力（今期）'!$C150,"ｄ日")&"から"&'教育訓練費入力（今期）'!$D150&"日間") ->  | L150: =IF('教育訓練費入力（今期）'!$F150="","",IF('教育訓練費入力（今期）'!$G150=1,'教育訓練費入力（今期）'!$F150,'教育訓練費入力（今期）'!$F150&"他"&'教育訓練費入力（今期）'!$G150-1&"名")) -> 
B151: 142 | K151: =IF('教育訓練費入力（今期）'!$C151="","",TEXT('教育訓練費入力（今期）'!$C151,"yyyy年")&TEXT('教育訓練費入力（今期）'!$C151,"m月")&TEXT('教育訓練費入力（今期）'!$C151,"ｄ日")&"から"&'教育訓練費入力（今期）'!$D151&"日間") ->  | L151: =IF('教育訓練費入力（今期）'!$F151="","",IF('教育訓練費入力（今期）'!$G151=1,'教育訓練費入力（今期）'!$F151,'教育訓練費入力（今期）'!$F151&"他"&'教育訓練費入力（今期）'!$G151-1&"名")) -> 
B152: 143 | K152: =IF('教育訓練費入力（今期）'!$C152="","",TEXT('教育訓練費入力（今期）'!$C152,"yyyy年")&TEXT('教育訓練費入力（今期）'!$C152,"m月")&TEXT('教育訓練費入力（今期）'!$C152,"ｄ日")&"から"&'教育訓練費入力（今期）'!$D152&"日間") ->  | L152: =IF('教育訓練費入力（今期）'!$F152="","",IF('教育訓練費入力（今期）'!$G152=1,'教育訓練費入力（今期）'!$F152,'教育訓練費入力（今期）'!$F152&"他"&'教育訓練費入力（今期）'!$G152-1&"名")) -> 
B153: 144 | K153: =IF('教育訓練費入力（今期）'!$C153="","",TEXT('教育訓練費入力（今期）'!$C153,"yyyy年")&TEXT('教育訓練費入力（今期）'!$C153,"m月")&TEXT('教育訓練費入力（今期）'!$C153,"ｄ日")&"から"&'教育訓練費入力（今期）'!$D153&"日間") ->  | L153: =IF('教育訓練費入力（今期）'!$F153="","",IF('教育訓練費入力（今期）'!$G153=1,'教育訓練費入力（今期）'!$F153,'教育訓練費入力（今期）'!$F153&"他"&'教育訓練費入力（今期）'!$G153-1&"名")) -> 
B154: 145 | K154: =IF('教育訓練費入力（今期）'!$C154="","",TEXT('教育訓練費入力（今期）'!$C154,"yyyy年")&TEXT('教育訓練費入力（今期）'!$C154,"m月")&TEXT('教育訓練費入力（今期）'!$C154,"ｄ日")&"から"&'教育訓練費入力（今期）'!$D154&"日間") ->  | L154: =IF('教育訓練費入力（今期）'!$F154="","",IF('教育訓練費入力（今期）'!$G154=1,'教育訓練費入力（今期）'!$F154,'教育訓練費入力（今期）'!$F154&"他"&'教育訓練費入力（今期）'!$G154-1&"名")) -> 
B155: 146 | K155: =IF('教育訓練費入力（今期）'!$C155="","",TEXT('教育訓練費入力（今期）'!$C155,"yyyy年")&TEXT('教育訓練費入力（今期）'!$C155,"m月")&TEXT('教育訓練費入力（今期）'!$C155,"ｄ日")&"から"&'教育訓練費入力（今期）'!$D155&"日間") ->  | L155: =IF('教育訓練費入力（今期）'!$F155="","",IF('教育訓練費入力（今期）'!$G155=1,'教育訓練費入力（今期）'!$F155,'教育訓練費入力（今期）'!$F155&"他"&'教育訓練費入力（今期）'!$G155-1&"名")) -> 
B156: 147 | K156: =IF('教育訓練費入力（今期）'!$C156="","",TEXT('教育訓練費入力（今期）'!$C156,"yyyy年")&TEXT('教育訓練費入力（今期）'!$C156,"m月")&TEXT('教育訓練費入力（今期）'!$C156,"ｄ日")&"から"&'教育訓練費入力（今期）'!$D156&"日間") ->  | L156: =IF('教育訓練費入力（今期）'!$F156="","",IF('教育訓練費入力（今期）'!$G156=1,'教育訓練費入力（今期）'!$F156,'教育訓練費入力（今期）'!$F156&"他"&'教育訓練費入力（今期）'!$G156-1&"名")) -> 
B157: 148 | K157: =IF('教育訓練費入力（今期）'!$C157="","",TEXT('教育訓練費入力（今期）'!$C157,"yyyy年")&TEXT('教育訓練費入力（今期）'!$C157,"m月")&TEXT('教育訓練費入力（今期）'!$C157,"ｄ日")&"から"&'教育訓練費入力（今期）'!$D157&"日間") ->  | L157: =IF('教育訓練費入力（今期）'!$F157="","",IF('教育訓練費入力（今期）'!$G157=1,'教育訓練費入力（今期）'!$F157,'教育訓練費入力（今期）'!$F157&"他"&'教育訓練費入力（今期）'!$G157-1&"名")) -> 
B158: 149 | K158: =IF('教育訓練費入力（今期）'!$C158="","",TEXT('教育訓練費入力（今期）'!$C158,"yyyy年")&TEXT('教育訓練費入力（今期）'!$C158,"m月")&TEXT('教育訓練費入力（今期）'!$C158,"ｄ日")&"から"&'教育訓練費入力（今期）'!$D158&"日間") ->  | L158: =IF('教育訓練費入力（今期）'!$F158="","",IF('教育訓練費入力（今期）'!$G158=1,'教育訓練費入力（今期）'!$F158,'教育訓練費入力（今期）'!$F158&"他"&'教育訓練費入力（今期）'!$G158-1&"名")) -> 
B159: 150 | K159: =IF('教育訓練費入力（今期）'!$C159="","",TEXT('教育訓練費入力（今期）'!$C159,"yyyy年")&TEXT('教育訓練費入力（今期）'!$C159,"m月")&TEXT('教育訓練費入力（今期）'!$C159,"ｄ日")&"から"&'教育訓練費入力（今期）'!$D159&"日間") ->  | L159: =IF('教育訓練費入力（今期）'!$F159="","",IF('教育訓練費入力（今期）'!$G159=1,'教育訓練費入力（今期）'!$F159,'教育訓練費入力（今期）'!$F159&"他"&'教育訓練費入力（今期）'!$G159-1&"名")) -> 
B160: 151 | K160: =IF('教育訓練費入力（今期）'!$C160="","",TEXT('教育訓練費入力（今期）'!$C160,"yyyy年")&TEXT('教育訓練費入力（今期）'!$C160,"m月")&TEXT('教育訓練費入力（今期）'!$C160,"ｄ日")&"から"&'教育訓練費入力（今期）'!$D160&"日間") ->  | L160: =IF('教育訓練費入力（今期）'!$F160="","",IF('教育訓練費入力（今期）'!$G160=1,'教育訓練費入力（今期）'!$F160,'教育訓練費入力（今期）'!$F160&"他"&'教育訓練費入力（今期）'!$G160-1&"名")) -> 
B161: 152 | K161: =IF('教育訓練費入力（今期）'!$C161="","",TEXT('教育訓練費入力（今期）'!$C161,"yyyy年")&TEXT('教育訓練費入力（今期）'!$C161,"m月")&TEXT('教育訓練費入力（今期）'!$C161,"ｄ日")&"から"&'教育訓練費入力（今期）'!$D161&"日間") ->  | L161: =IF('教育訓練費入力（今期）'!$F161="","",IF('教育訓練費入力（今期）'!$G161=1,'教育訓練費入力（今期）'!$F161,'教育訓練費入力（今期）'!$F161&"他"&'教育訓練費入力（今期）'!$G161-1&"名")) -> 
B162: 153 | K162: =IF('教育訓練費入力（今期）'!$C162="","",TEXT('教育訓練費入力（今期）'!$C162,"yyyy年")&TEXT('教育訓練費入力（今期）'!$C162,"m月")&TEXT('教育訓練費入力（今期）'!$C162,"ｄ日")&"から"&'教育訓練費入力（今期）'!$D162&"日間") ->  | L162: =IF('教育訓練費入力（今期）'!$F162="","",IF('教育訓練費入力（今期）'!$G162=1,'教育訓練費入力（今期）'!$F162,'教育訓練費入力（今期）'!$F162&"他"&'教育訓練費入力（今期）'!$G162-1&"名")) -> 
B163: 154 | K163: =IF('教育訓練費入力（今期）'!$C163="","",TEXT('教育訓練費入力（今期）'!$C163,"yyyy年")&TEXT('教育訓練費入力（今期）'!$C163,"m月")&TEXT('教育訓練費入力（今期）'!$C163,"ｄ日")&"から"&'教育訓練費入力（今期）'!$D163&"日間") ->  | L163: =IF('教育訓練費入力（今期）'!$F163="","",IF('教育訓練費入力（今期）'!$G163=1,'教育訓練費入力（今期）'!$F163,'教育訓練費入力（今期）'!$F163&"他"&'教育訓練費入力（今期）'!$G163-1&"名")) -> 
B164: 155 | K164: =IF('教育訓練費入力（今期）'!$C164="","",TEXT('教育訓練費入力（今期）'!$C164,"yyyy年")&TEXT('教育訓練費入力（今期）'!$C164,"m月")&TEXT('教育訓練費入力（今期）'!$C164,"ｄ日")&"から"&'教育訓練費入力（今期）'!$D164&"日間") ->  | L164: =IF('教育訓練費入力（今期）'!$F164="","",IF('教育訓練費入力（今期）'!$G164=1,'教育訓練費入力（今期）'!$F164,'教育訓練費入力（今期）'!$F164&"他"&'教育訓練費入力（今期）'!$G164-1&"名")) -> 
B165: 156 | K165: =IF('教育訓練費入力（今期）'!$C165="","",TEXT('教育訓練費入力（今期）'!$C165,"yyyy年")&TEXT('教育訓練費入力（今期）'!$C165,"m月")&TEXT('教育訓練費入力（今期）'!$C165,"ｄ日")&"から"&'教育訓練費入力（今期）'!$D165&"日間") ->  | L165: =IF('教育訓練費入力（今期）'!$F165="","",IF('教育訓練費入力（今期）'!$G165=1,'教育訓練費入力（今期）'!$F165,'教育訓練費入力（今期）'!$F165&"他"&'教育訓練費入力（今期）'!$G165-1&"名")) -> 
B166: 157 | K166: =IF('教育訓練費入力（今期）'!$C166="","",TEXT('教育訓練費入力（今期）'!$C166,"yyyy年")&TEXT('教育訓練費入力（今期）'!$C166,"m月")&TEXT('教育訓練費入力（今期）'!$C166,"ｄ日")&"から"&'教育訓練費入力（今期）'!$D166&"日間") ->  | L166: =IF('教育訓練費入力（今期）'!$F166="","",IF('教育訓練費入力（今期）'!$G166=1,'教育訓練費入力（今期）'!$F166,'教育訓練費入力（今期）'!$F166&"他"&'教育訓練費入力（今期）'!$G166-1&"名")) -> 
B167: 158 | K167: =IF('教育訓練費入力（今期）'!$C167="","",TEXT('教育訓練費入力（今期）'!$C167,"yyyy年")&TEXT('教育訓練費入力（今期）'!$C167,"m月")&TEXT('教育訓練費入力（今期）'!$C167,"ｄ日")&"から"&'教育訓練費入力（今期）'!$D167&"日間") ->  | L167: =IF('教育訓練費入力（今期）'!$F167="","",IF('教育訓練費入力（今期）'!$G167=1,'教育訓練費入力（今期）'!$F167,'教育訓練費入力（今期）'!$F167&"他"&'教育訓練費入力（今期）'!$G167-1&"名")) -> 
B168: 159 | K168: =IF('教育訓練費入力（今期）'!$C168="","",TEXT('教育訓練費入力（今期）'!$C168,"yyyy年")&TEXT('教育訓練費入力（今期）'!$C168,"m月")&TEXT('教育訓練費入力（今期）'!$C168,"ｄ日")&"から"&'教育訓練費入力（今期）'!$D168&"日間") ->  | L168: =IF('教育訓練費入力（今期）'!$F168="","",IF('教育訓練費入力（今期）'!$G168=1,'教育訓練費入力（今期）'!$F168,'教育訓練費入力（今期）'!$F168&"他"&'教育訓練費入力（今期）'!$G168-1&"名")) -> 
B169: 160 | K169: =IF('教育訓練費入力（今期）'!$C169="","",TEXT('教育訓練費入力（今期）'!$C169,"yyyy年")&TEXT('教育訓練費入力（今期）'!$C169,"m月")&TEXT('教育訓練費入力（今期）'!$C169,"ｄ日")&"から"&'教育訓練費入力（今期）'!$D169&"日間") ->  | L169: =IF('教育訓練費入力（今期）'!$F169="","",IF('教育訓練費入力（今期）'!$G169=1,'教育訓練費入力（今期）'!$F169,'教育訓練費入力（今期）'!$F169&"他"&'教育訓練費入力（今期）'!$G169-1&"名")) -> 
B170: 161 | K170: =IF('教育訓練費入力（今期）'!$C170="","",TEXT('教育訓練費入力（今期）'!$C170,"yyyy年")&TEXT('教育訓練費入力（今期）'!$C170,"m月")&TEXT('教育訓練費入力（今期）'!$C170,"ｄ日")&"から"&'教育訓練費入力（今期）'!$D170&"日間") ->  | L170: =IF('教育訓練費入力（今期）'!$F170="","",IF('教育訓練費入力（今期）'!$G170=1,'教育訓練費入力（今期）'!$F170,'教育訓練費入力（今期）'!$F170&"他"&'教育訓練費入力（今期）'!$G170-1&"名")) -> 
B171: 162 | K171: =IF('教育訓練費入力（今期）'!$C171="","",TEXT('教育訓練費入力（今期）'!$C171,"yyyy年")&TEXT('教育訓練費入力（今期）'!$C171,"m月")&TEXT('教育訓練費入力（今期）'!$C171,"ｄ日")&"から"&'教育訓練費入力（今期）'!$D171&"日間") ->  | L171: =IF('教育訓練費入力（今期）'!$F171="","",IF('教育訓練費入力（今期）'!$G171=1,'教育訓練費入力（今期）'!$F171,'教育訓練費入力（今期）'!$F171&"他"&'教育訓練費入力（今期）'!$G171-1&"名")) -> 
B172: 163 | K172: =IF('教育訓練費入力（今期）'!$C172="","",TEXT('教育訓練費入力（今期）'!$C172,"yyyy年")&TEXT('教育訓練費入力（今期）'!$C172,"m月")&TEXT('教育訓練費入力（今期）'!$C172,"ｄ日")&"から"&'教育訓練費入力（今期）'!$D172&"日間") ->  | L172: =IF('教育訓練費入力（今期）'!$F172="","",IF('教育訓練費入力（今期）'!$G172=1,'教育訓練費入力（今期）'!$F172,'教育訓練費入力（今期）'!$F172&"他"&'教育訓練費入力（今期）'!$G172-1&"名")) -> 
B173: 164 | K173: =IF('教育訓練費入力（今期）'!$C173="","",TEXT('教育訓練費入力（今期）'!$C173,"yyyy年")&TEXT('教育訓練費入力（今期）'!$C173,"m月")&TEXT('教育訓練費入力（今期）'!$C173,"ｄ日")&"から"&'教育訓練費入力（今期）'!$D173&"日間") ->  | L173: =IF('教育訓練費入力（今期）'!$F173="","",IF('教育訓練費入力（今期）'!$G173=1,'教育訓練費入力（今期）'!$F173,'教育訓練費入力（今期）'!$F173&"他"&'教育訓練費入力（今期）'!$G173-1&"名")) -> 
B174: 165 | K174: =IF('教育訓練費入力（今期）'!$C174="","",TEXT('教育訓練費入力（今期）'!$C174,"yyyy年")&TEXT('教育訓練費入力（今期）'!$C174,"m月")&TEXT('教育訓練費入力（今期）'!$C174,"ｄ日")&"から"&'教育訓練費入力（今期）'!$D174&"日間") ->  | L174: =IF('教育訓練費入力（今期）'!$F174="","",IF('教育訓練費入力（今期）'!$G174=1,'教育訓練費入力（今期）'!$F174,'教育訓練費入力（今期）'!$F174&"他"&'教育訓練費入力（今期）'!$G174-1&"名")) -> 
B175: 166 | K175: =IF('教育訓練費入力（今期）'!$C175="","",TEXT('教育訓練費入力（今期）'!$C175,"yyyy年")&TEXT('教育訓練費入力（今期）'!$C175,"m月")&TEXT('教育訓練費入力（今期）'!$C175,"ｄ日")&"から"&'教育訓練費入力（今期）'!$D175&"日間") ->  | L175: =IF('教育訓練費入力（今期）'!$F175="","",IF('教育訓練費入力（今期）'!$G175=1,'教育訓練費入力（今期）'!$F175,'教育訓練費入力（今期）'!$F175&"他"&'教育訓練費入力（今期）'!$G175-1&"名")) -> 
B176: 167 | K176: =IF('教育訓練費入力（今期）'!$C176="","",TEXT('教育訓練費入力（今期）'!$C176,"yyyy年")&TEXT('教育訓練費入力（今期）'!$C176,"m月")&TEXT('教育訓練費入力（今期）'!$C176,"ｄ日")&"から"&'教育訓練費入力（今期）'!$D176&"日間") ->  | L176: =IF('教育訓練費入力（今期）'!$F176="","",IF('教育訓練費入力（今期）'!$G176=1,'教育訓練費入力（今期）'!$F176,'教育訓練費入力（今期）'!$F176&"他"&'教育訓練費入力（今期）'!$G176-1&"名")) -> 
B177: 168 | K177: =IF('教育訓練費入力（今期）'!$C177="","",TEXT('教育訓練費入力（今期）'!$C177,"yyyy年")&TEXT('教育訓練費入力（今期）'!$C177,"m月")&TEXT('教育訓練費入力（今期）'!$C177,"ｄ日")&"から"&'教育訓練費入力（今期）'!$D177&"日間") ->  | L177: =IF('教育訓練費入力（今期）'!$F177="","",IF('教育訓練費入力（今期）'!$G177=1,'教育訓練費入力（今期）'!$F177,'教育訓練費入力（今期）'!$F177&"他"&'教育訓練費入力（今期）'!$G177-1&"名")) -> 
B178: 169 | K178: =IF('教育訓練費入力（今期）'!$C178="","",TEXT('教育訓練費入力（今期）'!$C178,"yyyy年")&TEXT('教育訓練費入力（今期）'!$C178,"m月")&TEXT('教育訓練費入力（今期）'!$C178,"ｄ日")&"から"&'教育訓練費入力（今期）'!$D178&"日間") ->  | L178: =IF('教育訓練費入力（今期）'!$F178="","",IF('教育訓練費入力（今期）'!$G178=1,'教育訓練費入力（今期）'!$F178,'教育訓練費入力（今期）'!$F178&"他"&'教育訓練費入力（今期）'!$G178-1&"名")) -> 
B179: 170 | K179: =IF('教育訓練費入力（今期）'!$C179="","",TEXT('教育訓練費入力（今期）'!$C179,"yyyy年")&TEXT('教育訓練費入力（今期）'!$C179,"m月")&TEXT('教育訓練費入力（今期）'!$C179,"ｄ日")&"から"&'教育訓練費入力（今期）'!$D179&"日間") ->  | L179: =IF('教育訓練費入力（今期）'!$F179="","",IF('教育訓練費入力（今期）'!$G179=1,'教育訓練費入力（今期）'!$F179,'教育訓練費入力（今期）'!$F179&"他"&'教育訓練費入力（今期）'!$G179-1&"名")) -> 
B180: 171 | K180: =IF('教育訓練費入力（今期）'!$C180="","",TEXT('教育訓練費入力（今期）'!$C180,"yyyy年")&TEXT('教育訓練費入力（今期）'!$C180,"m月")&TEXT('教育訓練費入力（今期）'!$C180,"ｄ日")&"から"&'教育訓練費入力（今期）'!$D180&"日間") ->  | L180: =IF('教育訓練費入力（今期）'!$F180="","",IF('教育訓練費入力（今期）'!$G180=1,'教育訓練費入力（今期）'!$F180,'教育訓練費入力（今期）'!$F180&"他"&'教育訓練費入力（今期）'!$G180-1&"名")) -> 
B181: 172 | K181: =IF('教育訓練費入力（今期）'!$C181="","",TEXT('教育訓練費入力（今期）'!$C181,"yyyy年")&TEXT('教育訓練費入力（今期）'!$C181,"m月")&TEXT('教育訓練費入力（今期）'!$C181,"ｄ日")&"から"&'教育訓練費入力（今期）'!$D181&"日間") ->  | L181: =IF('教育訓練費入力（今期）'!$F181="","",IF('教育訓練費入力（今期）'!$G181=1,'教育訓練費入力（今期）'!$F181,'教育訓練費入力（今期）'!$F181&"他"&'教育訓練費入力（今期）'!$G181-1&"名")) -> 
B182: 173 | K182: =IF('教育訓練費入力（今期）'!$C182="","",TEXT('教育訓練費入力（今期）'!$C182,"yyyy年")&TEXT('教育訓練費入力（今期）'!$C182,"m月")&TEXT('教育訓練費入力（今期）'!$C182,"ｄ日")&"から"&'教育訓練費入力（今期）'!$D182&"日間") ->  | L182: =IF('教育訓練費入力（今期）'!$F182="","",IF('教育訓練費入力（今期）'!$G182=1,'教育訓練費入力（今期）'!$F182,'教育訓練費入力（今期）'!$F182&"他"&'教育訓練費入力（今期）'!$G182-1&"名")) -> 
B183: 174 | K183: =IF('教育訓練費入力（今期）'!$C183="","",TEXT('教育訓練費入力（今期）'!$C183,"yyyy年")&TEXT('教育訓練費入力（今期）'!$C183,"m月")&TEXT('教育訓練費入力（今期）'!$C183,"ｄ日")&"から"&'教育訓練費入力（今期）'!$D183&"日間") ->  | L183: =IF('教育訓練費入力（今期）'!$F183="","",IF('教育訓練費入力（今期）'!$G183=1,'教育訓練費入力（今期）'!$F183,'教育訓練費入力（今期）'!$F183&"他"&'教育訓練費入力（今期）'!$G183-1&"名")) -> 
B184: 175 | K184: =IF('教育訓練費入力（今期）'!$C184="","",TEXT('教育訓練費入力（今期）'!$C184,"yyyy年")&TEXT('教育訓練費入力（今期）'!$C184,"m月")&TEXT('教育訓練費入力（今期）'!$C184,"ｄ日")&"から"&'教育訓練費入力（今期）'!$D184&"日間") ->  | L184: =IF('教育訓練費入力（今期）'!$F184="","",IF('教育訓練費入力（今期）'!$G184=1,'教育訓練費入力（今期）'!$F184,'教育訓練費入力（今期）'!$F184&"他"&'教育訓練費入力（今期）'!$G184-1&"名")) -> 
B185: 176 | K185: =IF('教育訓練費入力（今期）'!$C185="","",TEXT('教育訓練費入力（今期）'!$C185,"yyyy年")&TEXT('教育訓練費入力（今期）'!$C185,"m月")&TEXT('教育訓練費入力（今期）'!$C185,"ｄ日")&"から"&'教育訓練費入力（今期）'!$D185&"日間") ->  | L185: =IF('教育訓練費入力（今期）'!$F185="","",IF('教育訓練費入力（今期）'!$G185=1,'教育訓練費入力（今期）'!$F185,'教育訓練費入力（今期）'!$F185&"他"&'教育訓練費入力（今期）'!$G185-1&"名")) -> 
B186: 177 | K186: =IF('教育訓練費入力（今期）'!$C186="","",TEXT('教育訓練費入力（今期）'!$C186,"yyyy年")&TEXT('教育訓練費入力（今期）'!$C186,"m月")&TEXT('教育訓練費入力（今期）'!$C186,"ｄ日")&"から"&'教育訓練費入力（今期）'!$D186&"日間") ->  | L186: =IF('教育訓練費入力（今期）'!$F186="","",IF('教育訓練費入力（今期）'!$G186=1,'教育訓練費入力（今期）'!$F186,'教育訓練費入力（今期）'!$F186&"他"&'教育訓練費入力（今期）'!$G186-1&"名")) -> 
B187: 178 | K187: =IF('教育訓練費入力（今期）'!$C187="","",TEXT('教育訓練費入力（今期）'!$C187,"yyyy年")&TEXT('教育訓練費入力（今期）'!$C187,"m月")&TEXT('教育訓練費入力（今期）'!$C187,"ｄ日")&"から"&'教育訓練費入力（今期）'!$D187&"日間") ->  | L187: =IF('教育訓練費入力（今期）'!$F187="","",IF('教育訓練費入力（今期）'!$G187=1,'教育訓練費入力（今期）'!$F187,'教育訓練費入力（今期）'!$F187&"他"&'教育訓練費入力（今期）'!$G187-1&"名")) -> 
B188: 179 | K188: =IF('教育訓練費入力（今期）'!$C188="","",TEXT('教育訓練費入力（今期）'!$C188,"yyyy年")&TEXT('教育訓練費入力（今期）'!$C188,"m月")&TEXT('教育訓練費入力（今期）'!$C188,"ｄ日")&"から"&'教育訓練費入力（今期）'!$D188&"日間") ->  | L188: =IF('教育訓練費入力（今期）'!$F188="","",IF('教育訓練費入力（今期）'!$G188=1,'教育訓練費入力（今期）'!$F188,'教育訓練費入力（今期）'!$F188&"他"&'教育訓練費入力（今期）'!$G188-1&"名")) -> 
B189: 180 | K189: =IF('教育訓練費入力（今期）'!$C189="","",TEXT('教育訓練費入力（今期）'!$C189,"yyyy年")&TEXT('教育訓練費入力（今期）'!$C189,"m月")&TEXT('教育訓練費入力（今期）'!$C189,"ｄ日")&"から"&'教育訓練費入力（今期）'!$D189&"日間") ->  | L189: =IF('教育訓練費入力（今期）'!$F189="","",IF('教育訓練費入力（今期）'!$G189=1,'教育訓練費入力（今期）'!$F189,'教育訓練費入力（今期）'!$F189&"他"&'教育訓練費入力（今期）'!$G189-1&"名")) -> 
B190: 181 | K190: =IF('教育訓練費入力（今期）'!$C190="","",TEXT('教育訓練費入力（今期）'!$C190,"yyyy年")&TEXT('教育訓練費入力（今期）'!$C190,"m月")&TEXT('教育訓練費入力（今期）'!$C190,"ｄ日")&"から"&'教育訓練費入力（今期）'!$D190&"日間") ->  | L190: =IF('教育訓練費入力（今期）'!$F190="","",IF('教育訓練費入力（今期）'!$G190=1,'教育訓練費入力（今期）'!$F190,'教育訓練費入力（今期）'!$F190&"他"&'教育訓練費入力（今期）'!$G190-1&"名")) -> 
B191: 182 | K191: =IF('教育訓練費入力（今期）'!$C191="","",TEXT('教育訓練費入力（今期）'!$C191,"yyyy年")&TEXT('教育訓練費入力（今期）'!$C191,"m月")&TEXT('教育訓練費入力（今期）'!$C191,"ｄ日")&"から"&'教育訓練費入力（今期）'!$D191&"日間") ->  | L191: =IF('教育訓練費入力（今期）'!$F191="","",IF('教育訓練費入力（今期）'!$G191=1,'教育訓練費入力（今期）'!$F191,'教育訓練費入力（今期）'!$F191&"他"&'教育訓練費入力（今期）'!$G191-1&"名")) -> 
B192: 183 | K192: =IF('教育訓練費入力（今期）'!$C192="","",TEXT('教育訓練費入力（今期）'!$C192,"yyyy年")&TEXT('教育訓練費入力（今期）'!$C192,"m月")&TEXT('教育訓練費入力（今期）'!$C192,"ｄ日")&"から"&'教育訓練費入力（今期）'!$D192&"日間") ->  | L192: =IF('教育訓練費入力（今期）'!$F192="","",IF('教育訓練費入力（今期）'!$G192=1,'教育訓練費入力（今期）'!$F192,'教育訓練費入力（今期）'!$F192&"他"&'教育訓練費入力（今期）'!$G192-1&"名")) -> 
B193: 184 | K193: =IF('教育訓練費入力（今期）'!$C193="","",TEXT('教育訓練費入力（今期）'!$C193,"yyyy年")&TEXT('教育訓練費入力（今期）'!$C193,"m月")&TEXT('教育訓練費入力（今期）'!$C193,"ｄ日")&"から"&'教育訓練費入力（今期）'!$D193&"日間") ->  | L193: =IF('教育訓練費入力（今期）'!$F193="","",IF('教育訓練費入力（今期）'!$G193=1,'教育訓練費入力（今期）'!$F193,'教育訓練費入力（今期）'!$F193&"他"&'教育訓練費入力（今期）'!$G193-1&"名")) -> 
B194: 185 | K194: =IF('教育訓練費入力（今期）'!$C194="","",TEXT('教育訓練費入力（今期）'!$C194,"yyyy年")&TEXT('教育訓練費入力（今期）'!$C194,"m月")&TEXT('教育訓練費入力（今期）'!$C194,"ｄ日")&"から"&'教育訓練費入力（今期）'!$D194&"日間") ->  | L194: =IF('教育訓練費入力（今期）'!$F194="","",IF('教育訓練費入力（今期）'!$G194=1,'教育訓練費入力（今期）'!$F194,'教育訓練費入力（今期）'!$F194&"他"&'教育訓練費入力（今期）'!$G194-1&"名")) -> 
B195: 186 | K195: =IF('教育訓練費入力（今期）'!$C195="","",TEXT('教育訓練費入力（今期）'!$C195,"yyyy年")&TEXT('教育訓練費入力（今期）'!$C195,"m月")&TEXT('教育訓練費入力（今期）'!$C195,"ｄ日")&"から"&'教育訓練費入力（今期）'!$D195&"日間") ->  | L195: =IF('教育訓練費入力（今期）'!$F195="","",IF('教育訓練費入力（今期）'!$G195=1,'教育訓練費入力（今期）'!$F195,'教育訓練費入力（今期）'!$F195&"他"&'教育訓練費入力（今期）'!$G195-1&"名")) -> 
B196: 187 | K196: =IF('教育訓練費入力（今期）'!$C196="","",TEXT('教育訓練費入力（今期）'!$C196,"yyyy年")&TEXT('教育訓練費入力（今期）'!$C196,"m月")&TEXT('教育訓練費入力（今期）'!$C196,"ｄ日")&"から"&'教育訓練費入力（今期）'!$D196&"日間") ->  | L196: =IF('教育訓練費入力（今期）'!$F196="","",IF('教育訓練費入力（今期）'!$G196=1,'教育訓練費入力（今期）'!$F196,'教育訓練費入力（今期）'!$F196&"他"&'教育訓練費入力（今期）'!$G196-1&"名")) -> 
B197: 188 | K197: =IF('教育訓練費入力（今期）'!$C197="","",TEXT('教育訓練費入力（今期）'!$C197,"yyyy年")&TEXT('教育訓練費入力（今期）'!$C197,"m月")&TEXT('教育訓練費入力（今期）'!$C197,"ｄ日")&"から"&'教育訓練費入力（今期）'!$D197&"日間") ->  | L197: =IF('教育訓練費入力（今期）'!$F197="","",IF('教育訓練費入力（今期）'!$G197=1,'教育訓練費入力（今期）'!$F197,'教育訓練費入力（今期）'!$F197&"他"&'教育訓練費入力（今期）'!$G197-1&"名")) -> 
B198: 189 | K198: =IF('教育訓練費入力（今期）'!$C198="","",TEXT('教育訓練費入力（今期）'!$C198,"yyyy年")&TEXT('教育訓練費入力（今期）'!$C198,"m月")&TEXT('教育訓練費入力（今期）'!$C198,"ｄ日")&"から"&'教育訓練費入力（今期）'!$D198&"日間") ->  | L198: =IF('教育訓練費入力（今期）'!$F198="","",IF('教育訓練費入力（今期）'!$G198=1,'教育訓練費入力（今期）'!$F198,'教育訓練費入力（今期）'!$F198&"他"&'教育訓練費入力（今期）'!$G198-1&"名")) -> 
B199: 190 | K199: =IF('教育訓練費入力（今期）'!$C199="","",TEXT('教育訓練費入力（今期）'!$C199,"yyyy年")&TEXT('教育訓練費入力（今期）'!$C199,"m月")&TEXT('教育訓練費入力（今期）'!$C199,"ｄ日")&"から"&'教育訓練費入力（今期）'!$D199&"日間") ->  | L199: =IF('教育訓練費入力（今期）'!$F199="","",IF('教育訓練費入力（今期）'!$G199=1,'教育訓練費入力（今期）'!$F199,'教育訓練費入力（今期）'!$F199&"他"&'教育訓練費入力（今期）'!$G199-1&"名")) -> 
B200: 191 | K200: =IF('教育訓練費入力（今期）'!$C200="","",TEXT('教育訓練費入力（今期）'!$C200,"yyyy年")&TEXT('教育訓練費入力（今期）'!$C200,"m月")&TEXT('教育訓練費入力（今期）'!$C200,"ｄ日")&"から"&'教育訓練費入力（今期）'!$D200&"日間") ->  | L200: =IF('教育訓練費入力（今期）'!$F200="","",IF('教育訓練費入力（今期）'!$G200=1,'教育訓練費入力（今期）'!$F200,'教育訓練費入力（今期）'!$F200&"他"&'教育訓練費入力（今期）'!$G200-1&"名")) -> 
B201: 192 | K201: =IF('教育訓練費入力（今期）'!$C201="","",TEXT('教育訓練費入力（今期）'!$C201,"yyyy年")&TEXT('教育訓練費入力（今期）'!$C201,"m月")&TEXT('教育訓練費入力（今期）'!$C201,"ｄ日")&"から"&'教育訓練費入力（今期）'!$D201&"日間") ->  | L201: =IF('教育訓練費入力（今期）'!$F201="","",IF('教育訓練費入力（今期）'!$G201=1,'教育訓練費入力（今期）'!$F201,'教育訓練費入力（今期）'!$F201&"他"&'教育訓練費入力（今期）'!$G201-1&"名")) -> 
B202: 193 | K202: =IF('教育訓練費入力（今期）'!$C202="","",TEXT('教育訓練費入力（今期）'!$C202,"yyyy年")&TEXT('教育訓練費入力（今期）'!$C202,"m月")&TEXT('教育訓練費入力（今期）'!$C202,"ｄ日")&"から"&'教育訓練費入力（今期）'!$D202&"日間") ->  | L202: =IF('教育訓練費入力（今期）'!$F202="","",IF('教育訓練費入力（今期）'!$G202=1,'教育訓練費入力（今期）'!$F202,'教育訓練費入力（今期）'!$F202&"他"&'教育訓練費入力（今期）'!$G202-1&"名")) -> 
B203: 194 | K203: =IF('教育訓練費入力（今期）'!$C203="","",TEXT('教育訓練費入力（今期）'!$C203,"yyyy年")&TEXT('教育訓練費入力（今期）'!$C203,"m月")&TEXT('教育訓練費入力（今期）'!$C203,"ｄ日")&"から"&'教育訓練費入力（今期）'!$D203&"日間") ->  | L203: =IF('教育訓練費入力（今期）'!$F203="","",IF('教育訓練費入力（今期）'!$G203=1,'教育訓練費入力（今期）'!$F203,'教育訓練費入力（今期）'!$F203&"他"&'教育訓練費入力（今期）'!$G203-1&"名")) -> 
B204: 195 | K204: =IF('教育訓練費入力（今期）'!$C204="","",TEXT('教育訓練費入力（今期）'!$C204,"yyyy年")&TEXT('教育訓練費入力（今期）'!$C204,"m月")&TEXT('教育訓練費入力（今期）'!$C204,"ｄ日")&"から"&'教育訓練費入力（今期）'!$D204&"日間") ->  | L204: =IF('教育訓練費入力（今期）'!$F204="","",IF('教育訓練費入力（今期）'!$G204=1,'教育訓練費入力（今期）'!$F204,'教育訓練費入力（今期）'!$F204&"他"&'教育訓練費入力（今期）'!$G204-1&"名")) -> 
B205: 196 | K205: =IF('教育訓練費入力（今期）'!$C205="","",TEXT('教育訓練費入力（今期）'!$C205,"yyyy年")&TEXT('教育訓練費入力（今期）'!$C205,"m月")&TEXT('教育訓練費入力（今期）'!$C205,"ｄ日")&"から"&'教育訓練費入力（今期）'!$D205&"日間") ->  | L205: =IF('教育訓練費入力（今期）'!$F205="","",IF('教育訓練費入力（今期）'!$G205=1,'教育訓練費入力（今期）'!$F205,'教育訓練費入力（今期）'!$F205&"他"&'教育訓練費入力（今期）'!$G205-1&"名")) -> 
B206: 197 | K206: =IF('教育訓練費入力（今期）'!$C206="","",TEXT('教育訓練費入力（今期）'!$C206,"yyyy年")&TEXT('教育訓練費入力（今期）'!$C206,"m月")&TEXT('教育訓練費入力（今期）'!$C206,"ｄ日")&"から"&'教育訓練費入力（今期）'!$D206&"日間") ->  | L206: =IF('教育訓練費入力（今期）'!$F206="","",IF('教育訓練費入力（今期）'!$G206=1,'教育訓練費入力（今期）'!$F206,'教育訓練費入力（今期）'!$F206&"他"&'教育訓練費入力（今期）'!$G206-1&"名")) -> 
B207: 198 | K207: =IF('教育訓練費入力（今期）'!$C207="","",TEXT('教育訓練費入力（今期）'!$C207,"yyyy年")&TEXT('教育訓練費入力（今期）'!$C207,"m月")&TEXT('教育訓練費入力（今期）'!$C207,"ｄ日")&"から"&'教育訓練費入力（今期）'!$D207&"日間") ->  | L207: =IF('教育訓練費入力（今期）'!$F207="","",IF('教育訓練費入力（今期）'!$G207=1,'教育訓練費入力（今期）'!$F207,'教育訓練費入力（今期）'!$F207&"他"&'教育訓練費入力（今期）'!$G207-1&"名")) -> 
... 818 more rows

Sheet 教育訓練費印刷（今期）
B8: 平成30年4月1日 から 平成31年3月31日 までの教育訓練費の明細
B9: No. | C9: 実施時期 | D9: 内容 | E9: 受講者 | F9: 支払日 | G9: 支払額 | H9: 支払先

Sheet 教育訓練費入力（前期）
B8: =TEXT(基本情報!C16,"平成ee年m月d日")&" から "&TEXT(基本情報!C15,"平成ee年m月d日")&" までの教育訓練費の明細" -> 平成29年4月1日 から 平成30年3月31日 までの教育訓練費の明細
B9: No. | C9: 実施時期 | D9: 実施 期間 | E9: 内容 | F9: 受講者の氏名 （国内雇用者に限る） | G9: 参加 者数 | H9: 支払日 | I9: 支払額 | J9: 支払先 | K9: 実施時期結合 | L9: 参加者結合
B10: 1 | C10: 2017-05-31 | D10: 2 | E10: 新人研修セミナー | F10: 笹部 菜穂美 | G10: 3 | H10: 2017-05-15 | I10: 300000 | J10: MUFGコンサルティング株式会社 | K10: =IF('教育訓練費入力（前期）'!$C10="","",TEXT('教育訓練費入力（前期）'!$C10,"yyyy年")&TEXT('教育訓練費入力（前期）'!$C10,"m月")&TEXT('教育訓練費入力（前期）'!$C10,"ｄ日")&"から"&'教育訓練費入力（前期）'!$D10&"日間") -> 2017年5月31日から2日間 | L10: =IF('教育訓練費入力（前期）'!$F10="","",IF('教育訓練費入力（前期）'!$G10=1,'教育訓練費入力（前期）'!$F10,'教育訓練費入力（前期）'!$F10&"他"&'教育訓練費入力（前期）'!$G10-1&"名")) -> 笹部 菜穂美他2名
B11: 2 | C11: 2017-06-30 | D11: 3 | E11: Python 中級者向け研修 | F11: 鳥居 雅之 | G11: 1 | H11: 2017-06-01 | I11: 54000 | J11: 株式会社ムーンマイクロシステム | K11: =IF('教育訓練費入力（前期）'!$C11="","",TEXT('教育訓練費入力（前期）'!$C11,"yyyy年")&TEXT('教育訓練費入力（前期）'!$C11,"m月")&TEXT('教育訓練費入力（前期）'!$C11,"ｄ日")&"から"&'教育訓練費入力（前期）'!$D11&"日間") -> 2017年6月30日から3日間 | L11: =IF('教育訓練費入力（前期）'!$F11="","",IF('教育訓練費入力（前期）'!$G11=1,'教育訓練費入力（前期）'!$F11,'教育訓練費入力（前期）'!$F11&"他"&'教育訓練費入力（前期）'!$G11-1&"名")) -> 鳥居 雅之
B12: 3 | C12: 2017-07-31 | D12: 2 | E12: 基本情報技術者試験受験料 | F12: 山下 崇 | G12: 2 | H12: 2017-07-09 | I12: 18600 | J12: 独立行政法人情報処理推進機構 | K12: =IF('教育訓練費入力（前期）'!$C12="","",TEXT('教育訓練費入力（前期）'!$C12,"yyyy年")&TEXT('教育訓練費入力（前期）'!$C12,"m月")&TEXT('教育訓練費入力（前期）'!$C12,"ｄ日")&"から"&'教育訓練費入力（前期）'!$D12&"日間") -> 2017年7月31日から2日間 | L12: =IF('教育訓練費入力（前期）'!$F12="","",IF('教育訓練費入力（前期）'!$G12=1,'教育訓練費入力（前期）'!$F12,'教育訓練費入力（前期）'!$F12&"他"&'教育訓練費入力（前期）'!$G12-1&"名")) -> 山下 崇他1名
B13: 4 | C13: 2017-08-21 | D13: 1 | E13: ３種衛生士試験料 | F13: 絹延橋 みつ子 | G13: 1 | H13: 2017-08-02 | I13: 10800 | J13: （財）安全衛生技術試験協会 | K13: =IF('教育訓練費入力（前期）'!$C13="","",TEXT('教育訓練費入力（前期）'!$C13,"yyyy年")&TEXT('教育訓練費入力（前期）'!$C13,"m月")&TEXT('教育訓練費入力（前期）'!$C13,"ｄ日")&"から"&'教育訓練費入力（前期）'!$D13&"日間") -> 2017年8月21日から1日間 | L13: =IF('教育訓練費入力（前期）'!$F13="","",IF('教育訓練費入力（前期）'!$G13=1,'教育訓練費入力（前期）'!$F13,'教育訓練費入力（前期）'!$F13&"他"&'教育訓練費入力（前期）'!$G13-1&"名")) -> 絹延橋 みつ子
B14: 5 | C14: 2017-09-25 | D14: 3 | E14: 課長・主任・係長クラスのメンタル改革セミナー | F14: 日生 暁久 | G14: 2 | H14: 2017-09-10 | I14: 486000 | J14: MUFGコンサルティング株式会社 | K14: =IF('教育訓練費入力（前期）'!$C14="","",TEXT('教育訓練費入力（前期）'!$C14,"yyyy年")&TEXT('教育訓練費入力（前期）'!$C14,"m月")&TEXT('教育訓練費入力（前期）'!$C14,"ｄ日")&"から"&'教育訓練費入力（前期）'!$D14&"日間") -> 2017年9月25日から3日間 | L14: =IF('教育訓練費入力（前期）'!$F14="","",IF('教育訓練費入力（前期）'!$G14=1,'教育訓練費入力（前期）'!$F14,'教育訓練費入力（前期）'!$F14&"他"&'教育訓練費入力（前期）'!$G14-1&"名")) -> 日生 暁久他1名
B15: 6 | C15: 2017-10-22 | D15: 1 | E15: 基本情報技術者試験、初級シスアド試験受験料 | F15: 笹部 菜穂美 | G15: 10 | H15: 2017-09-30 | I15: 84000 | J15: 独立行政法人情報処理推進機構 | K15: =IF('教育訓練費入力（前期）'!$C15="","",TEXT('教育訓練費入力（前期）'!$C15,"yyyy年")&TEXT('教育訓練費入力（前期）'!$C15,"m月")&TEXT('教育訓練費入力（前期）'!$C15,"ｄ日")&"から"&'教育訓練費入力（前期）'!$D15&"日間") -> 2017年10月22日から1日間 | L15: =IF('教育訓練費入力（前期）'!$F15="","",IF('教育訓練費入力（前期）'!$G15=1,'教育訓練費入力（前期）'!$F15,'教育訓練費入力（前期）'!$F15&"他"&'教育訓練費入力（前期）'!$G15-1&"名")) -> 笹部 菜穂美他9名
B16: 7 | C16: 2017-12-15 | D16: 3 | E16: ＶＢＡ試験対策講習 | F16: 鳥居 雅之 | G16: 3 | H16: 2017-11-15 | I16: 150000 | J16: 株式会社ＴＣインターナショナル | K16: =IF('教育訓練費入力（前期）'!$C16="","",TEXT('教育訓練費入力（前期）'!$C16,"yyyy年")&TEXT('教育訓練費入力（前期）'!$C16,"m月")&TEXT('教育訓練費入力（前期）'!$C16,"ｄ日")&"から"&'教育訓練費入力（前期）'!$D16&"日間") -> 2017年12月15日から3日間 | L16: =IF('教育訓練費入力（前期）'!$F16="","",IF('教育訓練費入力（前期）'!$G16=1,'教育訓練費入力（前期）'!$F16,'教育訓練費入力（前期）'!$F16&"他"&'教育訓練費入力（前期）'!$G16-1&"名")) -> 鳥居 雅之他2名
B17: 8 | K17: =IF('教育訓練費入力（前期）'!$C17="","",TEXT('教育訓練費入力（前期）'!$C17,"yyyy年")&TEXT('教育訓練費入力（前期）'!$C17,"m月")&TEXT('教育訓練費入力（前期）'!$C17,"ｄ日")&"から"&'教育訓練費入力（前期）'!$D17&"日間") ->  | L17: =IF('教育訓練費入力（前期）'!$F17="","",IF('教育訓練費入力（前期）'!$G17=1,'教育訓練費入力（前期）'!$F17,'教育訓練費入力（前期）'!$F17&"他"&'教育訓練費入力（前期）'!$G17-1&"名")) -> 
B18: 9 | K18: =IF('教育訓練費入力（前期）'!$C18="","",TEXT('教育訓練費入力（前期）'!$C18,"yyyy年")&TEXT('教育訓練費入力（前期）'!$C18,"m月")&TEXT('教育訓練費入力（前期）'!$C18,"ｄ日")&"から"&'教育訓練費入力（前期）'!$D18&"日間") ->  | L18: =IF('教育訓練費入力（前期）'!$F18="","",IF('教育訓練費入力（前期）'!$G18=1,'教育訓練費入力（前期）'!$F18,'教育訓練費入力（前期）'!$F18&"他"&'教育訓練費入力（前期）'!$G18-1&"名")) -> 
B19: 10 | K19: =IF('教育訓練費入力（前期）'!$C19="","",TEXT('教育訓練費入力（前期）'!$C19,"yyyy年")&TEXT('教育訓練費入力（前期）'!$C19,"m月")&TEXT('教育訓練費入力（前期）'!$C19,"ｄ日")&"から"&'教育訓練費入力（前期）'!$D19&"日間") ->  | L19: =IF('教育訓練費入力（前期）'!$F19="","",IF('教育訓練費入力（前期）'!$G19=1,'教育訓練費入力（前期）'!$F19,'教育訓練費入力（前期）'!$F19&"他"&'教育訓練費入力（前期）'!$G19-1&"名")) -> 
B20: 11 | K20: =IF('教育訓練費入力（前期）'!$C20="","",TEXT('教育訓練費入力（前期）'!$C20,"yyyy年")&TEXT('教育訓練費入力（前期）'!$C20,"m月")&TEXT('教育訓練費入力（前期）'!$C20,"ｄ日")&"から"&'教育訓練費入力（前期）'!$D20&"日間") ->  | L20: =IF('教育訓練費入力（前期）'!$F20="","",IF('教育訓練費入力（前期）'!$G20=1,'教育訓練費入力（前期）'!$F20,'教育訓練費入力（前期）'!$F20&"他"&'教育訓練費入力（前期）'!$G20-1&"名")) -> 
B21: 12 | K21: =IF('教育訓練費入力（前期）'!$C21="","",TEXT('教育訓練費入力（前期）'!$C21,"yyyy年")&TEXT('教育訓練費入力（前期）'!$C21,"m月")&TEXT('教育訓練費入力（前期）'!$C21,"ｄ日")&"から"&'教育訓練費入力（前期）'!$D21&"日間") ->  | L21: =IF('教育訓練費入力（前期）'!$F21="","",IF('教育訓練費入力（前期）'!$G21=1,'教育訓練費入力（前期）'!$F21,'教育訓練費入力（前期）'!$F21&"他"&'教育訓練費入力（前期）'!$G21-1&"名")) -> 
B22: 13 | K22: =IF('教育訓練費入力（前期）'!$C22="","",TEXT('教育訓練費入力（前期）'!$C22,"yyyy年")&TEXT('教育訓練費入力（前期）'!$C22,"m月")&TEXT('教育訓練費入力（前期）'!$C22,"ｄ日")&"から"&'教育訓練費入力（前期）'!$D22&"日間") ->  | L22: =IF('教育訓練費入力（前期）'!$F22="","",IF('教育訓練費入力（前期）'!$G22=1,'教育訓練費入力（前期）'!$F22,'教育訓練費入力（前期）'!$F22&"他"&'教育訓練費入力（前期）'!$G22-1&"名")) -> 
B23: 14 | K23: =IF('教育訓練費入力（前期）'!$C23="","",TEXT('教育訓練費入力（前期）'!$C23,"yyyy年")&TEXT('教育訓練費入力（前期）'!$C23,"m月")&TEXT('教育訓練費入力（前期）'!$C23,"ｄ日")&"から"&'教育訓練費入力（前期）'!$D23&"日間") ->  | L23: =IF('教育訓練費入力（前期）'!$F23="","",IF('教育訓練費入力（前期）'!$G23=1,'教育訓練費入力（前期）'!$F23,'教育訓練費入力（前期）'!$F23&"他"&'教育訓練費入力（前期）'!$G23-1&"名")) -> 
B24: 15 | K24: =IF('教育訓練費入力（前期）'!$C24="","",TEXT('教育訓練費入力（前期）'!$C24,"yyyy年")&TEXT('教育訓練費入力（前期）'!$C24,"m月")&TEXT('教育訓練費入力（前期）'!$C24,"ｄ日")&"から"&'教育訓練費入力（前期）'!$D24&"日間") ->  | L24: =IF('教育訓練費入力（前期）'!$F24="","",IF('教育訓練費入力（前期）'!$G24=1,'教育訓練費入力（前期）'!$F24,'教育訓練費入力（前期）'!$F24&"他"&'教育訓練費入力（前期）'!$G24-1&"名")) -> 
B25: 16 | K25: =IF('教育訓練費入力（前期）'!$C25="","",TEXT('教育訓練費入力（前期）'!$C25,"yyyy年")&TEXT('教育訓練費入力（前期）'!$C25,"m月")&TEXT('教育訓練費入力（前期）'!$C25,"ｄ日")&"から"&'教育訓練費入力（前期）'!$D25&"日間") ->  | L25: =IF('教育訓練費入力（前期）'!$F25="","",IF('教育訓練費入力（前期）'!$G25=1,'教育訓練費入力（前期）'!$F25,'教育訓練費入力（前期）'!$F25&"他"&'教育訓練費入力（前期）'!$G25-1&"名")) -> 
B26: 17 | K26: =IF('教育訓練費入力（前期）'!$C26="","",TEXT('教育訓練費入力（前期）'!$C26,"yyyy年")&TEXT('教育訓練費入力（前期）'!$C26,"m月")&TEXT('教育訓練費入力（前期）'!$C26,"ｄ日")&"から"&'教育訓練費入力（前期）'!$D26&"日間") ->  | L26: =IF('教育訓練費入力（前期）'!$F26="","",IF('教育訓練費入力（前期）'!$G26=1,'教育訓練費入力（前期）'!$F26,'教育訓練費入力（前期）'!$F26&"他"&'教育訓練費入力（前期）'!$G26-1&"名")) -> 
B27: 18 | K27: =IF('教育訓練費入力（前期）'!$C27="","",TEXT('教育訓練費入力（前期）'!$C27,"yyyy年")&TEXT('教育訓練費入力（前期）'!$C27,"m月")&TEXT('教育訓練費入力（前期）'!$C27,"ｄ日")&"から"&'教育訓練費入力（前期）'!$D27&"日間") ->  | L27: =IF('教育訓練費入力（前期）'!$F27="","",IF('教育訓練費入力（前期）'!$G27=1,'教育訓練費入力（前期）'!$F27,'教育訓練費入力（前期）'!$F27&"他"&'教育訓練費入力（前期）'!$G27-1&"名")) -> 
B28: 19 | K28: =IF('教育訓練費入力（前期）'!$C28="","",TEXT('教育訓練費入力（前期）'!$C28,"yyyy年")&TEXT('教育訓練費入力（前期）'!$C28,"m月")&TEXT('教育訓練費入力（前期）'!$C28,"ｄ日")&"から"&'教育訓練費入力（前期）'!$D28&"日間") ->  | L28: =IF('教育訓練費入力（前期）'!$F28="","",IF('教育訓練費入力（前期）'!$G28=1,'教育訓練費入力（前期）'!$F28,'教育訓練費入力（前期）'!$F28&"他"&'教育訓練費入力（前期）'!$G28-1&"名")) -> 
B29: 20 | K29: =IF('教育訓練費入力（前期）'!$C29="","",TEXT('教育訓練費入力（前期）'!$C29,"yyyy年")&TEXT('教育訓練費入力（前期）'!$C29,"m月")&TEXT('教育訓練費入力（前期）'!$C29,"ｄ日")&"から"&'教育訓練費入力（前期）'!$D29&"日間") ->  | L29: =IF('教育訓練費入力（前期）'!$F29="","",IF('教育訓練費入力（前期）'!$G29=1,'教育訓練費入力（前期）'!$F29,'教育訓練費入力（前期）'!$F29&"他"&'教育訓練費入力（前期）'!$G29-1&"名")) -> 
B30: 21 | K30: =IF('教育訓練費入力（前期）'!$C30="","",TEXT('教育訓練費入力（前期）'!$C30,"yyyy年")&TEXT('教育訓練費入力（前期）'!$C30,"m月")&TEXT('教育訓練費入力（前期）'!$C30,"ｄ日")&"から"&'教育訓練費入力（前期）'!$D30&"日間") ->  | L30: =IF('教育訓練費入力（前期）'!$F30="","",IF('教育訓練費入力（前期）'!$G30=1,'教育訓練費入力（前期）'!$F30,'教育訓練費入力（前期）'!$F30&"他"&'教育訓練費入力（前期）'!$G30-1&"名")) -> 
B31: 22 | K31: =IF('教育訓練費入力（前期）'!$C31="","",TEXT('教育訓練費入力（前期）'!$C31,"yyyy年")&TEXT('教育訓練費入力（前期）'!$C31,"m月")&TEXT('教育訓練費入力（前期）'!$C31,"ｄ日")&"から"&'教育訓練費入力（前期）'!$D31&"日間") ->  | L31: =IF('教育訓練費入力（前期）'!$F31="","",IF('教育訓練費入力（前期）'!$G31=1,'教育訓練費入力（前期）'!$F31,'教育訓練費入力（前期）'!$F31&"他"&'教育訓練費入力（前期）'!$G31-1&"名")) -> 
B32: 23 | K32: =IF('教育訓練費入力（前期）'!$C32="","",TEXT('教育訓練費入力（前期）'!$C32,"yyyy年")&TEXT('教育訓練費入力（前期）'!$C32,"m月")&TEXT('教育訓練費入力（前期）'!$C32,"ｄ日")&"から"&'教育訓練費入力（前期）'!$D32&"日間") ->  | L32: =IF('教育訓練費入力（前期）'!$F32="","",IF('教育訓練費入力（前期）'!$G32=1,'教育訓練費入力（前期）'!$F32,'教育訓練費入力（前期）'!$F32&"他"&'教育訓練費入力（前期）'!$G32-1&"名")) -> 
B33: 24 | K33: =IF('教育訓練費入力（前期）'!$C33="","",TEXT('教育訓練費入力（前期）'!$C33,"yyyy年")&TEXT('教育訓練費入力（前期）'!$C33,"m月")&TEXT('教育訓練費入力（前期）'!$C33,"ｄ日")&"から"&'教育訓練費入力（前期）'!$D33&"日間") ->  | L33: =IF('教育訓練費入力（前期）'!$F33="","",IF('教育訓練費入力（前期）'!$G33=1,'教育訓練費入力（前期）'!$F33,'教育訓練費入力（前期）'!$F33&"他"&'教育訓練費入力（前期）'!$G33-1&"名")) -> 
B34: 25 | K34: =IF('教育訓練費入力（前期）'!$C34="","",TEXT('教育訓練費入力（前期）'!$C34,"yyyy年")&TEXT('教育訓練費入力（前期）'!$C34,"m月")&TEXT('教育訓練費入力（前期）'!$C34,"ｄ日")&"から"&'教育訓練費入力（前期）'!$D34&"日間") ->  | L34: =IF('教育訓練費入力（前期）'!$F34="","",IF('教育訓練費入力（前期）'!$G34=1,'教育訓練費入力（前期）'!$F34,'教育訓練費入力（前期）'!$F34&"他"&'教育訓練費入力（前期）'!$G34-1&"名")) -> 
B35: 26 | K35: =IF('教育訓練費入力（前期）'!$C35="","",TEXT('教育訓練費入力（前期）'!$C35,"yyyy年")&TEXT('教育訓練費入力（前期）'!$C35,"m月")&TEXT('教育訓練費入力（前期）'!$C35,"ｄ日")&"から"&'教育訓練費入力（前期）'!$D35&"日間") ->  | L35: =IF('教育訓練費入力（前期）'!$F35="","",IF('教育訓練費入力（前期）'!$G35=1,'教育訓練費入力（前期）'!$F35,'教育訓練費入力（前期）'!$F35&"他"&'教育訓練費入力（前期）'!$G35-1&"名")) -> 
B36: 27 | K36: =IF('教育訓練費入力（前期）'!$C36="","",TEXT('教育訓練費入力（前期）'!$C36,"yyyy年")&TEXT('教育訓練費入力（前期）'!$C36,"m月")&TEXT('教育訓練費入力（前期）'!$C36,"ｄ日")&"から"&'教育訓練費入力（前期）'!$D36&"日間") ->  | L36: =IF('教育訓練費入力（前期）'!$F36="","",IF('教育訓練費入力（前期）'!$G36=1,'教育訓練費入力（前期）'!$F36,'教育訓練費入力（前期）'!$F36&"他"&'教育訓練費入力（前期）'!$G36-1&"名")) -> 
B37: 28 | K37: =IF('教育訓練費入力（前期）'!$C37="","",TEXT('教育訓練費入力（前期）'!$C37,"yyyy年")&TEXT('教育訓練費入力（前期）'!$C37,"m月")&TEXT('教育訓練費入力（前期）'!$C37,"ｄ日")&"から"&'教育訓練費入力（前期）'!$D37&"日間") ->  | L37: =IF('教育訓練費入力（前期）'!$F37="","",IF('教育訓練費入力（前期）'!$G37=1,'教育訓練費入力（前期）'!$F37,'教育訓練費入力（前期）'!$F37&"他"&'教育訓練費入力（前期）'!$G37-1&"名")) -> 
B38: 29 | K38: =IF('教育訓練費入力（前期）'!$C38="","",TEXT('教育訓練費入力（前期）'!$C38,"yyyy年")&TEXT('教育訓練費入力（前期）'!$C38,"m月")&TEXT('教育訓練費入力（前期）'!$C38,"ｄ日")&"から"&'教育訓練費入力（前期）'!$D38&"日間") ->  | L38: =IF('教育訓練費入力（前期）'!$F38="","",IF('教育訓練費入力（前期）'!$G38=1,'教育訓練費入力（前期）'!$F38,'教育訓練費入力（前期）'!$F38&"他"&'教育訓練費入力（前期）'!$G38-1&"名")) -> 
B39: 30 | K39: =IF('教育訓練費入力（前期）'!$C39="","",TEXT('教育訓練費入力（前期）'!$C39,"yyyy年")&TEXT('教育訓練費入力（前期）'!$C39,"m月")&TEXT('教育訓練費入力（前期）'!$C39,"ｄ日")&"から"&'教育訓練費入力（前期）'!$D39&"日間") ->  | L39: =IF('教育訓練費入力（前期）'!$F39="","",IF('教育訓練費入力（前期）'!$G39=1,'教育訓練費入力（前期）'!$F39,'教育訓練費入力（前期）'!$F39&"他"&'教育訓練費入力（前期）'!$G39-1&"名")) -> 
B40: 31 | K40: =IF('教育訓練費入力（前期）'!$C40="","",TEXT('教育訓練費入力（前期）'!$C40,"yyyy年")&TEXT('教育訓練費入力（前期）'!$C40,"m月")&TEXT('教育訓練費入力（前期）'!$C40,"ｄ日")&"から"&'教育訓練費入力（前期）'!$D40&"日間") ->  | L40: =IF('教育訓練費入力（前期）'!$F40="","",IF('教育訓練費入力（前期）'!$G40=1,'教育訓練費入力（前期）'!$F40,'教育訓練費入力（前期）'!$F40&"他"&'教育訓練費入力（前期）'!$G40-1&"名")) -> 
B41: 32 | K41: =IF('教育訓練費入力（前期）'!$C41="","",TEXT('教育訓練費入力（前期）'!$C41,"yyyy年")&TEXT('教育訓練費入力（前期）'!$C41,"m月")&TEXT('教育訓練費入力（前期）'!$C41,"ｄ日")&"から"&'教育訓練費入力（前期）'!$D41&"日間") ->  | L41: =IF('教育訓練費入力（前期）'!$F41="","",IF('教育訓練費入力（前期）'!$G41=1,'教育訓練費入力（前期）'!$F41,'教育訓練費入力（前期）'!$F41&"他"&'教育訓練費入力（前期）'!$G41-1&"名")) -> 
B42: 33 | K42: =IF('教育訓練費入力（前期）'!$C42="","",TEXT('教育訓練費入力（前期）'!$C42,"yyyy年")&TEXT('教育訓練費入力（前期）'!$C42,"m月")&TEXT('教育訓練費入力（前期）'!$C42,"ｄ日")&"から"&'教育訓練費入力（前期）'!$D42&"日間") ->  | L42: =IF('教育訓練費入力（前期）'!$F42="","",IF('教育訓練費入力（前期）'!$G42=1,'教育訓練費入力（前期）'!$F42,'教育訓練費入力（前期）'!$F42&"他"&'教育訓練費入力（前期）'!$G42-1&"名")) -> 
B43: 34 | K43: =IF('教育訓練費入力（前期）'!$C43="","",TEXT('教育訓練費入力（前期）'!$C43,"yyyy年")&TEXT('教育訓練費入力（前期）'!$C43,"m月")&TEXT('教育訓練費入力（前期）'!$C43,"ｄ日")&"から"&'教育訓練費入力（前期）'!$D43&"日間") ->  | L43: =IF('教育訓練費入力（前期）'!$F43="","",IF('教育訓練費入力（前期）'!$G43=1,'教育訓練費入力（前期）'!$F43,'教育訓練費入力（前期）'!$F43&"他"&'教育訓練費入力（前期）'!$G43-1&"名")) -> 
B44: 35 | K44: =IF('教育訓練費入力（前期）'!$C44="","",TEXT('教育訓練費入力（前期）'!$C44,"yyyy年")&TEXT('教育訓練費入力（前期）'!$C44,"m月")&TEXT('教育訓練費入力（前期）'!$C44,"ｄ日")&"から"&'教育訓練費入力（前期）'!$D44&"日間") ->  | L44: =IF('教育訓練費入力（前期）'!$F44="","",IF('教育訓練費入力（前期）'!$G44=1,'教育訓練費入力（前期）'!$F44,'教育訓練費入力（前期）'!$F44&"他"&'教育訓練費入力（前期）'!$G44-1&"名")) -> 
B45: 36 | K45: =IF('教育訓練費入力（前期）'!$C45="","",TEXT('教育訓練費入力（前期）'!$C45,"yyyy年")&TEXT('教育訓練費入力（前期）'!$C45,"m月")&TEXT('教育訓練費入力（前期）'!$C45,"ｄ日")&"から"&'教育訓練費入力（前期）'!$D45&"日間") ->  | L45: =IF('教育訓練費入力（前期）'!$F45="","",IF('教育訓練費入力（前期）'!$G45=1,'教育訓練費入力（前期）'!$F45,'教育訓練費入力（前期）'!$F45&"他"&'教育訓練費入力（前期）'!$G45-1&"名")) -> 
B46: 37 | K46: =IF('教育訓練費入力（前期）'!$C46="","",TEXT('教育訓練費入力（前期）'!$C46,"yyyy年")&TEXT('教育訓練費入力（前期）'!$C46,"m月")&TEXT('教育訓練費入力（前期）'!$C46,"ｄ日")&"から"&'教育訓練費入力（前期）'!$D46&"日間") ->  | L46: =IF('教育訓練費入力（前期）'!$F46="","",IF('教育訓練費入力（前期）'!$G46=1,'教育訓練費入力（前期）'!$F46,'教育訓練費入力（前期）'!$F46&"他"&'教育訓練費入力（前期）'!$G46-1&"名")) -> 
B47: 38 | K47: =IF('教育訓練費入力（前期）'!$C47="","",TEXT('教育訓練費入力（前期）'!$C47,"yyyy年")&TEXT('教育訓練費入力（前期）'!$C47,"m月")&TEXT('教育訓練費入力（前期）'!$C47,"ｄ日")&"から"&'教育訓練費入力（前期）'!$D47&"日間") ->  | L47: =IF('教育訓練費入力（前期）'!$F47="","",IF('教育訓練費入力（前期）'!$G47=1,'教育訓練費入力（前期）'!$F47,'教育訓練費入力（前期）'!$F47&"他"&'教育訓練費入力（前期）'!$G47-1&"名")) -> 
B48: 39 | K48: =IF('教育訓練費入力（前期）'!$C48="","",TEXT('教育訓練費入力（前期）'!$C48,"yyyy年")&TEXT('教育訓練費入力（前期）'!$C48,"m月")&TEXT('教育訓練費入力（前期）'!$C48,"ｄ日")&"から"&'教育訓練費入力（前期）'!$D48&"日間") ->  | L48: =IF('教育訓練費入力（前期）'!$F48="","",IF('教育訓練費入力（前期）'!$G48=1,'教育訓練費入力（前期）'!$F48,'教育訓練費入力（前期）'!$F48&"他"&'教育訓練費入力（前期）'!$G48-1&"名")) -> 
B49: 40 | K49: =IF('教育訓練費入力（前期）'!$C49="","",TEXT('教育訓練費入力（前期）'!$C49,"yyyy年")&TEXT('教育訓練費入力（前期）'!$C49,"m月")&TEXT('教育訓練費入力（前期）'!$C49,"ｄ日")&"から"&'教育訓練費入力（前期）'!$D49&"日間") ->  | L49: =IF('教育訓練費入力（前期）'!$F49="","",IF('教育訓練費入力（前期）'!$G49=1,'教育訓練費入力（前期）'!$F49,'教育訓練費入力（前期）'!$F49&"他"&'教育訓練費入力（前期）'!$G49-1&"名")) -> 
B50: 41 | K50: =IF('教育訓練費入力（前期）'!$C50="","",TEXT('教育訓練費入力（前期）'!$C50,"yyyy年")&TEXT('教育訓練費入力（前期）'!$C50,"m月")&TEXT('教育訓練費入力（前期）'!$C50,"ｄ日")&"から"&'教育訓練費入力（前期）'!$D50&"日間") ->  | L50: =IF('教育訓練費入力（前期）'!$F50="","",IF('教育訓練費入力（前期）'!$G50=1,'教育訓練費入力（前期）'!$F50,'教育訓練費入力（前期）'!$F50&"他"&'教育訓練費入力（前期）'!$G50-1&"名")) -> 
B51: 42 | K51: =IF('教育訓練費入力（前期）'!$C51="","",TEXT('教育訓練費入力（前期）'!$C51,"yyyy年")&TEXT('教育訓練費入力（前期）'!$C51,"m月")&TEXT('教育訓練費入力（前期）'!$C51,"ｄ日")&"から"&'教育訓練費入力（前期）'!$D51&"日間") ->  | L51: =IF('教育訓練費入力（前期）'!$F51="","",IF('教育訓練費入力（前期）'!$G51=1,'教育訓練費入力（前期）'!$F51,'教育訓練費入力（前期）'!$F51&"他"&'教育訓練費入力（前期）'!$G51-1&"名")) -> 
B52: 43 | K52: =IF('教育訓練費入力（前期）'!$C52="","",TEXT('教育訓練費入力（前期）'!$C52,"yyyy年")&TEXT('教育訓練費入力（前期）'!$C52,"m月")&TEXT('教育訓練費入力（前期）'!$C52,"ｄ日")&"から"&'教育訓練費入力（前期）'!$D52&"日間") ->  | L52: =IF('教育訓練費入力（前期）'!$F52="","",IF('教育訓練費入力（前期）'!$G52=1,'教育訓練費入力（前期）'!$F52,'教育訓練費入力（前期）'!$F52&"他"&'教育訓練費入力（前期）'!$G52-1&"名")) -> 
B53: 44 | K53: =IF('教育訓練費入力（前期）'!$C53="","",TEXT('教育訓練費入力（前期）'!$C53,"yyyy年")&TEXT('教育訓練費入力（前期）'!$C53,"m月")&TEXT('教育訓練費入力（前期）'!$C53,"ｄ日")&"から"&'教育訓練費入力（前期）'!$D53&"日間") ->  | L53: =IF('教育訓練費入力（前期）'!$F53="","",IF('教育訓練費入力（前期）'!$G53=1,'教育訓練費入力（前期）'!$F53,'教育訓練費入力（前期）'!$F53&"他"&'教育訓練費入力（前期）'!$G53-1&"名")) -> 
B54: 45 | K54: =IF('教育訓練費入力（前期）'!$C54="","",TEXT('教育訓練費入力（前期）'!$C54,"yyyy年")&TEXT('教育訓練費入力（前期）'!$C54,"m月")&TEXT('教育訓練費入力（前期）'!$C54,"ｄ日")&"から"&'教育訓練費入力（前期）'!$D54&"日間") ->  | L54: =IF('教育訓練費入力（前期）'!$F54="","",IF('教育訓練費入力（前期）'!$G54=1,'教育訓練費入力（前期）'!$F54,'教育訓練費入力（前期）'!$F54&"他"&'教育訓練費入力（前期）'!$G54-1&"名")) -> 
B55: 46 | K55: =IF('教育訓練費入力（前期）'!$C55="","",TEXT('教育訓練費入力（前期）'!$C55,"yyyy年")&TEXT('教育訓練費入力（前期）'!$C55,"m月")&TEXT('教育訓練費入力（前期）'!$C55,"ｄ日")&"から"&'教育訓練費入力（前期）'!$D55&"日間") ->  | L55: =IF('教育訓練費入力（前期）'!$F55="","",IF('教育訓練費入力（前期）'!$G55=1,'教育訓練費入力（前期）'!$F55,'教育訓練費入力（前期）'!$F55&"他"&'教育訓練費入力（前期）'!$G55-1&"名")) -> 
B56: 47 | K56: =IF('教育訓練費入力（前期）'!$C56="","",TEXT('教育訓練費入力（前期）'!$C56,"yyyy年")&TEXT('教育訓練費入力（前期）'!$C56,"m月")&TEXT('教育訓練費入力（前期）'!$C56,"ｄ日")&"から"&'教育訓練費入力（前期）'!$D56&"日間") ->  | L56: =IF('教育訓練費入力（前期）'!$F56="","",IF('教育訓練費入力（前期）'!$G56=1,'教育訓練費入力（前期）'!$F56,'教育訓練費入力（前期）'!$F56&"他"&'教育訓練費入力（前期）'!$G56-1&"名")) -> 
B57: 48 | K57: =IF('教育訓練費入力（前期）'!$C57="","",TEXT('教育訓練費入力（前期）'!$C57,"yyyy年")&TEXT('教育訓練費入力（前期）'!$C57,"m月")&TEXT('教育訓練費入力（前期）'!$C57,"ｄ日")&"から"&'教育訓練費入力（前期）'!$D57&"日間") ->  | L57: =IF('教育訓練費入力（前期）'!$F57="","",IF('教育訓練費入力（前期）'!$G57=1,'教育訓練費入力（前期）'!$F57,'教育訓練費入力（前期）'!$F57&"他"&'教育訓練費入力（前期）'!$G57-1&"名")) -> 
B58: 49 | K58: =IF('教育訓練費入力（前期）'!$C58="","",TEXT('教育訓練費入力（前期）'!$C58,"yyyy年")&TEXT('教育訓練費入力（前期）'!$C58,"m月")&TEXT('教育訓練費入力（前期）'!$C58,"ｄ日")&"から"&'教育訓練費入力（前期）'!$D58&"日間") ->  | L58: =IF('教育訓練費入力（前期）'!$F58="","",IF('教育訓練費入力（前期）'!$G58=1,'教育訓練費入力（前期）'!$F58,'教育訓練費入力（前期）'!$F58&"他"&'教育訓練費入力（前期）'!$G58-1&"名")) -> 
B59: 50 | K59: =IF('教育訓練費入力（前期）'!$C59="","",TEXT('教育訓練費入力（前期）'!$C59,"yyyy年")&TEXT('教育訓練費入力（前期）'!$C59,"m月")&TEXT('教育訓練費入力（前期）'!$C59,"ｄ日")&"から"&'教育訓練費入力（前期）'!$D59&"日間") ->  | L59: =IF('教育訓練費入力（前期）'!$F59="","",IF('教育訓練費入力（前期）'!$G59=1,'教育訓練費入力（前期）'!$F59,'教育訓練費入力（前期）'!$F59&"他"&'教育訓練費入力（前期）'!$G59-1&"名")) -> 
B60: 51 | K60: =IF('教育訓練費入力（前期）'!$C60="","",TEXT('教育訓練費入力（前期）'!$C60,"yyyy年")&TEXT('教育訓練費入力（前期）'!$C60,"m月")&TEXT('教育訓練費入力（前期）'!$C60,"ｄ日")&"から"&'教育訓練費入力（前期）'!$D60&"日間") ->  | L60: =IF('教育訓練費入力（前期）'!$F60="","",IF('教育訓練費入力（前期）'!$G60=1,'教育訓練費入力（前期）'!$F60,'教育訓練費入力（前期）'!$F60&"他"&'教育訓練費入力（前期）'!$G60-1&"名")) -> 
B61: 52 | K61: =IF('教育訓練費入力（前期）'!$C61="","",TEXT('教育訓練費入力（前期）'!$C61,"yyyy年")&TEXT('教育訓練費入力（前期）'!$C61,"m月")&TEXT('教育訓練費入力（前期）'!$C61,"ｄ日")&"から"&'教育訓練費入力（前期）'!$D61&"日間") ->  | L61: =IF('教育訓練費入力（前期）'!$F61="","",IF('教育訓練費入力（前期）'!$G61=1,'教育訓練費入力（前期）'!$F61,'教育訓練費入力（前期）'!$F61&"他"&'教育訓練費入力（前期）'!$G61-1&"名")) -> 
B62: 53 | K62: =IF('教育訓練費入力（前期）'!$C62="","",TEXT('教育訓練費入力（前期）'!$C62,"yyyy年")&TEXT('教育訓練費入力（前期）'!$C62,"m月")&TEXT('教育訓練費入力（前期）'!$C62,"ｄ日")&"から"&'教育訓練費入力（前期）'!$D62&"日間") ->  | L62: =IF('教育訓練費入力（前期）'!$F62="","",IF('教育訓練費入力（前期）'!$G62=1,'教育訓練費入力（前期）'!$F62,'教育訓練費入力（前期）'!$F62&"他"&'教育訓練費入力（前期）'!$G62-1&"名")) -> 
B63: 54 | K63: =IF('教育訓練費入力（前期）'!$C63="","",TEXT('教育訓練費入力（前期）'!$C63,"yyyy年")&TEXT('教育訓練費入力（前期）'!$C63,"m月")&TEXT('教育訓練費入力（前期）'!$C63,"ｄ日")&"から"&'教育訓練費入力（前期）'!$D63&"日間") ->  | L63: =IF('教育訓練費入力（前期）'!$F63="","",IF('教育訓練費入力（前期）'!$G63=1,'教育訓練費入力（前期）'!$F63,'教育訓練費入力（前期）'!$F63&"他"&'教育訓練費入力（前期）'!$G63-1&"名")) -> 
B64: 55 | K64: =IF('教育訓練費入力（前期）'!$C64="","",TEXT('教育訓練費入力（前期）'!$C64,"yyyy年")&TEXT('教育訓練費入力（前期）'!$C64,"m月")&TEXT('教育訓練費入力（前期）'!$C64,"ｄ日")&"から"&'教育訓練費入力（前期）'!$D64&"日間") ->  | L64: =IF('教育訓練費入力（前期）'!$F64="","",IF('教育訓練費入力（前期）'!$G64=1,'教育訓練費入力（前期）'!$F64,'教育訓練費入力（前期）'!$F64&"他"&'教育訓練費入力（前期）'!$G64-1&"名")) -> 
B65: 56 | K65: =IF('教育訓練費入力（前期）'!$C65="","",TEXT('教育訓練費入力（前期）'!$C65,"yyyy年")&TEXT('教育訓練費入力（前期）'!$C65,"m月")&TEXT('教育訓練費入力（前期）'!$C65,"ｄ日")&"から"&'教育訓練費入力（前期）'!$D65&"日間") ->  | L65: =IF('教育訓練費入力（前期）'!$F65="","",IF('教育訓練費入力（前期）'!$G65=1,'教育訓練費入力（前期）'!$F65,'教育訓練費入力（前期）'!$F65&"他"&'教育訓練費入力（前期）'!$G65-1&"名")) -> 
B66: 57 | K66: =IF('教育訓練費入力（前期）'!$C66="","",TEXT('教育訓練費入力（前期）'!$C66,"yyyy年")&TEXT('教育訓練費入力（前期）'!$C66,"m月")&TEXT('教育訓練費入力（前期）'!$C66,"ｄ日")&"から"&'教育訓練費入力（前期）'!$D66&"日間") ->  | L66: =IF('教育訓練費入力（前期）'!$F66="","",IF('教育訓練費入力（前期）'!$G66=1,'教育訓練費入力（前期）'!$F66,'教育訓練費入力（前期）'!$F66&"他"&'教育訓練費入力（前期）'!$G66-1&"名")) -> 
B67: 58 | K67: =IF('教育訓練費入力（前期）'!$C67="","",TEXT('教育訓練費入力（前期）'!$C67,"yyyy年")&TEXT('教育訓練費入力（前期）'!$C67,"m月")&TEXT('教育訓練費入力（前期）'!$C67,"ｄ日")&"から"&'教育訓練費入力（前期）'!$D67&"日間") ->  | L67: =IF('教育訓練費入力（前期）'!$F67="","",IF('教育訓練費入力（前期）'!$G67=1,'教育訓練費入力（前期）'!$F67,'教育訓練費入力（前期）'!$F67&"他"&'教育訓練費入力（前期）'!$G67-1&"名")) -> 
B68: 59 | K68: =IF('教育訓練費入力（前期）'!$C68="","",TEXT('教育訓練費入力（前期）'!$C68,"yyyy年")&TEXT('教育訓練費入力（前期）'!$C68,"m月")&TEXT('教育訓練費入力（前期）'!$C68,"ｄ日")&"から"&'教育訓練費入力（前期）'!$D68&"日間") ->  | L68: =IF('教育訓練費入力（前期）'!$F68="","",IF('教育訓練費入力（前期）'!$G68=1,'教育訓練費入力（前期）'!$F68,'教育訓練費入力（前期）'!$F68&"他"&'教育訓練費入力（前期）'!$G68-1&"名")) -> 
B69: 60 | K69: =IF('教育訓練費入力（前期）'!$C69="","",TEXT('教育訓練費入力（前期）'!$C69,"yyyy年")&TEXT('教育訓練費入力（前期）'!$C69,"m月")&TEXT('教育訓練費入力（前期）'!$C69,"ｄ日")&"から"&'教育訓練費入力（前期）'!$D69&"日間") ->  | L69: =IF('教育訓練費入力（前期）'!$F69="","",IF('教育訓練費入力（前期）'!$G69=1,'教育訓練費入力（前期）'!$F69,'教育訓練費入力（前期）'!$F69&"他"&'教育訓練費入力（前期）'!$G69-1&"名")) -> 
B70: 61 | K70: =IF('教育訓練費入力（前期）'!$C70="","",TEXT('教育訓練費入力（前期）'!$C70,"yyyy年")&TEXT('教育訓練費入力（前期）'!$C70,"m月")&TEXT('教育訓練費入力（前期）'!$C70,"ｄ日")&"から"&'教育訓練費入力（前期）'!$D70&"日間") ->  | L70: =IF('教育訓練費入力（前期）'!$F70="","",IF('教育訓練費入力（前期）'!$G70=1,'教育訓練費入力（前期）'!$F70,'教育訓練費入力（前期）'!$F70&"他"&'教育訓練費入力（前期）'!$G70-1&"名")) -> 
B71: 62 | K71: =IF('教育訓練費入力（前期）'!$C71="","",TEXT('教育訓練費入力（前期）'!$C71,"yyyy年")&TEXT('教育訓練費入力（前期）'!$C71,"m月")&TEXT('教育訓練費入力（前期）'!$C71,"ｄ日")&"から"&'教育訓練費入力（前期）'!$D71&"日間") ->  | L71: =IF('教育訓練費入力（前期）'!$F71="","",IF('教育訓練費入力（前期）'!$G71=1,'教育訓練費入力（前期）'!$F71,'教育訓練費入力（前期）'!$F71&"他"&'教育訓練費入力（前期）'!$G71-1&"名")) -> 
B72: 63 | K72: =IF('教育訓練費入力（前期）'!$C72="","",TEXT('教育訓練費入力（前期）'!$C72,"yyyy年")&TEXT('教育訓練費入力（前期）'!$C72,"m月")&TEXT('教育訓練費入力（前期）'!$C72,"ｄ日")&"から"&'教育訓練費入力（前期）'!$D72&"日間") ->  | L72: =IF('教育訓練費入力（前期）'!$F72="","",IF('教育訓練費入力（前期）'!$G72=1,'教育訓練費入力（前期）'!$F72,'教育訓練費入力（前期）'!$F72&"他"&'教育訓練費入力（前期）'!$G72-1&"名")) -> 
B73: 64 | K73: =IF('教育訓練費入力（前期）'!$C73="","",TEXT('教育訓練費入力（前期）'!$C73,"yyyy年")&TEXT('教育訓練費入力（前期）'!$C73,"m月")&TEXT('教育訓練費入力（前期）'!$C73,"ｄ日")&"から"&'教育訓練費入力（前期）'!$D73&"日間") ->  | L73: =IF('教育訓練費入力（前期）'!$F73="","",IF('教育訓練費入力（前期）'!$G73=1,'教育訓練費入力（前期）'!$F73,'教育訓練費入力（前期）'!$F73&"他"&'教育訓練費入力（前期）'!$G73-1&"名")) -> 
B74: 65 | K74: =IF('教育訓練費入力（前期）'!$C74="","",TEXT('教育訓練費入力（前期）'!$C74,"yyyy年")&TEXT('教育訓練費入力（前期）'!$C74,"m月")&TEXT('教育訓練費入力（前期）'!$C74,"ｄ日")&"から"&'教育訓練費入力（前期）'!$D74&"日間") ->  | L74: =IF('教育訓練費入力（前期）'!$F74="","",IF('教育訓練費入力（前期）'!$G74=1,'教育訓練費入力（前期）'!$F74,'教育訓練費入力（前期）'!$F74&"他"&'教育訓練費入力（前期）'!$G74-1&"名")) -> 
B75: 66 | K75: =IF('教育訓練費入力（前期）'!$C75="","",TEXT('教育訓練費入力（前期）'!$C75,"yyyy年")&TEXT('教育訓練費入力（前期）'!$C75,"m月")&TEXT('教育訓練費入力（前期）'!$C75,"ｄ日")&"から"&'教育訓練費入力（前期）'!$D75&"日間") ->  | L75: =IF('教育訓練費入力（前期）'!$F75="","",IF('教育訓練費入力（前期）'!$G75=1,'教育訓練費入力（前期）'!$F75,'教育訓練費入力（前期）'!$F75&"他"&'教育訓練費入力（前期）'!$G75-1&"名")) -> 
B76: 67 | K76: =IF('教育訓練費入力（前期）'!$C76="","",TEXT('教育訓練費入力（前期）'!$C76,"yyyy年")&TEXT('教育訓練費入力（前期）'!$C76,"m月")&TEXT('教育訓練費入力（前期）'!$C76,"ｄ日")&"から"&'教育訓練費入力（前期）'!$D76&"日間") ->  | L76: =IF('教育訓練費入力（前期）'!$F76="","",IF('教育訓練費入力（前期）'!$G76=1,'教育訓練費入力（前期）'!$F76,'教育訓練費入力（前期）'!$F76&"他"&'教育訓練費入力（前期）'!$G76-1&"名")) -> 
B77: 68 | K77: =IF('教育訓練費入力（前期）'!$C77="","",TEXT('教育訓練費入力（前期）'!$C77,"yyyy年")&TEXT('教育訓練費入力（前期）'!$C77,"m月")&TEXT('教育訓練費入力（前期）'!$C77,"ｄ日")&"から"&'教育訓練費入力（前期）'!$D77&"日間") ->  | L77: =IF('教育訓練費入力（前期）'!$F77="","",IF('教育訓練費入力（前期）'!$G77=1,'教育訓練費入力（前期）'!$F77,'教育訓練費入力（前期）'!$F77&"他"&'教育訓練費入力（前期）'!$G77-1&"名")) -> 
B78: 69 | K78: =IF('教育訓練費入力（前期）'!$C78="","",TEXT('教育訓練費入力（前期）'!$C78,"yyyy年")&TEXT('教育訓練費入力（前期）'!$C78,"m月")&TEXT('教育訓練費入力（前期）'!$C78,"ｄ日")&"から"&'教育訓練費入力（前期）'!$D78&"日間") ->  | L78: =IF('教育訓練費入力（前期）'!$F78="","",IF('教育訓練費入力（前期）'!$G78=1,'教育訓練費入力（前期）'!$F78,'教育訓練費入力（前期）'!$F78&"他"&'教育訓練費入力（前期）'!$G78-1&"名")) -> 
B79: 70 | K79: =IF('教育訓練費入力（前期）'!$C79="","",TEXT('教育訓練費入力（前期）'!$C79,"yyyy年")&TEXT('教育訓練費入力（前期）'!$C79,"m月")&TEXT('教育訓練費入力（前期）'!$C79,"ｄ日")&"から"&'教育訓練費入力（前期）'!$D79&"日間") ->  | L79: =IF('教育訓練費入力（前期）'!$F79="","",IF('教育訓練費入力（前期）'!$G79=1,'教育訓練費入力（前期）'!$F79,'教育訓練費入力（前期）'!$F79&"他"&'教育訓練費入力（前期）'!$G79-1&"名")) -> 
B80: 71 | K80: =IF('教育訓練費入力（前期）'!$C80="","",TEXT('教育訓練費入力（前期）'!$C80,"yyyy年")&TEXT('教育訓練費入力（前期）'!$C80,"m月")&TEXT('教育訓練費入力（前期）'!$C80,"ｄ日")&"から"&'教育訓練費入力（前期）'!$D80&"日間") ->  | L80: =IF('教育訓練費入力（前期）'!$F80="","",IF('教育訓練費入力（前期）'!$G80=1,'教育訓練費入力（前期）'!$F80,'教育訓練費入力（前期）'!$F80&"他"&'教育訓練費入力（前期）'!$G80-1&"名")) -> 
B81: 72 | K81: =IF('教育訓練費入力（前期）'!$C81="","",TEXT('教育訓練費入力（前期）'!$C81,"yyyy年")&TEXT('教育訓練費入力（前期）'!$C81,"m月")&TEXT('教育訓練費入力（前期）'!$C81,"ｄ日")&"から"&'教育訓練費入力（前期）'!$D81&"日間") ->  | L81: =IF('教育訓練費入力（前期）'!$F81="","",IF('教育訓練費入力（前期）'!$G81=1,'教育訓練費入力（前期）'!$F81,'教育訓練費入力（前期）'!$F81&"他"&'教育訓練費入力（前期）'!$G81-1&"名")) -> 
B82: 73 | K82: =IF('教育訓練費入力（前期）'!$C82="","",TEXT('教育訓練費入力（前期）'!$C82,"yyyy年")&TEXT('教育訓練費入力（前期）'!$C82,"m月")&TEXT('教育訓練費入力（前期）'!$C82,"ｄ日")&"から"&'教育訓練費入力（前期）'!$D82&"日間") ->  | L82: =IF('教育訓練費入力（前期）'!$F82="","",IF('教育訓練費入力（前期）'!$G82=1,'教育訓練費入力（前期）'!$F82,'教育訓練費入力（前期）'!$F82&"他"&'教育訓練費入力（前期）'!$G82-1&"名")) -> 
B83: 74 | K83: =IF('教育訓練費入力（前期）'!$C83="","",TEXT('教育訓練費入力（前期）'!$C83,"yyyy年")&TEXT('教育訓練費入力（前期）'!$C83,"m月")&TEXT('教育訓練費入力（前期）'!$C83,"ｄ日")&"から"&'教育訓練費入力（前期）'!$D83&"日間") ->  | L83: =IF('教育訓練費入力（前期）'!$F83="","",IF('教育訓練費入力（前期）'!$G83=1,'教育訓練費入力（前期）'!$F83,'教育訓練費入力（前期）'!$F83&"他"&'教育訓練費入力（前期）'!$G83-1&"名")) -> 
B84: 75 | K84: =IF('教育訓練費入力（前期）'!$C84="","",TEXT('教育訓練費入力（前期）'!$C84,"yyyy年")&TEXT('教育訓練費入力（前期）'!$C84,"m月")&TEXT('教育訓練費入力（前期）'!$C84,"ｄ日")&"から"&'教育訓練費入力（前期）'!$D84&"日間") ->  | L84: =IF('教育訓練費入力（前期）'!$F84="","",IF('教育訓練費入力（前期）'!$G84=1,'教育訓練費入力（前期）'!$F84,'教育訓練費入力（前期）'!$F84&"他"&'教育訓練費入力（前期）'!$G84-1&"名")) -> 
B85: 76 | K85: =IF('教育訓練費入力（前期）'!$C85="","",TEXT('教育訓練費入力（前期）'!$C85,"yyyy年")&TEXT('教育訓練費入力（前期）'!$C85,"m月")&TEXT('教育訓練費入力（前期）'!$C85,"ｄ日")&"から"&'教育訓練費入力（前期）'!$D85&"日間") ->  | L85: =IF('教育訓練費入力（前期）'!$F85="","",IF('教育訓練費入力（前期）'!$G85=1,'教育訓練費入力（前期）'!$F85,'教育訓練費入力（前期）'!$F85&"他"&'教育訓練費入力（前期）'!$G85-1&"名")) -> 
B86: 77 | K86: =IF('教育訓練費入力（前期）'!$C86="","",TEXT('教育訓練費入力（前期）'!$C86,"yyyy年")&TEXT('教育訓練費入力（前期）'!$C86,"m月")&TEXT('教育訓練費入力（前期）'!$C86,"ｄ日")&"から"&'教育訓練費入力（前期）'!$D86&"日間") ->  | L86: =IF('教育訓練費入力（前期）'!$F86="","",IF('教育訓練費入力（前期）'!$G86=1,'教育訓練費入力（前期）'!$F86,'教育訓練費入力（前期）'!$F86&"他"&'教育訓練費入力（前期）'!$G86-1&"名")) -> 
B87: 78 | K87: =IF('教育訓練費入力（前期）'!$C87="","",TEXT('教育訓練費入力（前期）'!$C87,"yyyy年")&TEXT('教育訓練費入力（前期）'!$C87,"m月")&TEXT('教育訓練費入力（前期）'!$C87,"ｄ日")&"から"&'教育訓練費入力（前期）'!$D87&"日間") ->  | L87: =IF('教育訓練費入力（前期）'!$F87="","",IF('教育訓練費入力（前期）'!$G87=1,'教育訓練費入力（前期）'!$F87,'教育訓練費入力（前期）'!$F87&"他"&'教育訓練費入力（前期）'!$G87-1&"名")) -> 
B88: 79 | K88: =IF('教育訓練費入力（前期）'!$C88="","",TEXT('教育訓練費入力（前期）'!$C88,"yyyy年")&TEXT('教育訓練費入力（前期）'!$C88,"m月")&TEXT('教育訓練費入力（前期）'!$C88,"ｄ日")&"から"&'教育訓練費入力（前期）'!$D88&"日間") ->  | L88: =IF('教育訓練費入力（前期）'!$F88="","",IF('教育訓練費入力（前期）'!$G88=1,'教育訓練費入力（前期）'!$F88,'教育訓練費入力（前期）'!$F88&"他"&'教育訓練費入力（前期）'!$G88-1&"名")) -> 
B89: 80 | K89: =IF('教育訓練費入力（前期）'!$C89="","",TEXT('教育訓練費入力（前期）'!$C89,"yyyy年")&TEXT('教育訓練費入力（前期）'!$C89,"m月")&TEXT('教育訓練費入力（前期）'!$C89,"ｄ日")&"から"&'教育訓練費入力（前期）'!$D89&"日間") ->  | L89: =IF('教育訓練費入力（前期）'!$F89="","",IF('教育訓練費入力（前期）'!$G89=1,'教育訓練費入力（前期）'!$F89,'教育訓練費入力（前期）'!$F89&"他"&'教育訓練費入力（前期）'!$G89-1&"名")) -> 
B90: 81 | K90: =IF('教育訓練費入力（前期）'!$C90="","",TEXT('教育訓練費入力（前期）'!$C90,"yyyy年")&TEXT('教育訓練費入力（前期）'!$C90,"m月")&TEXT('教育訓練費入力（前期）'!$C90,"ｄ日")&"から"&'教育訓練費入力（前期）'!$D90&"日間") ->  | L90: =IF('教育訓練費入力（前期）'!$F90="","",IF('教育訓練費入力（前期）'!$G90=1,'教育訓練費入力（前期）'!$F90,'教育訓練費入力（前期）'!$F90&"他"&'教育訓練費入力（前期）'!$G90-1&"名")) -> 
B91: 82 | K91: =IF('教育訓練費入力（前期）'!$C91="","",TEXT('教育訓練費入力（前期）'!$C91,"yyyy年")&TEXT('教育訓練費入力（前期）'!$C91,"m月")&TEXT('教育訓練費入力（前期）'!$C91,"ｄ日")&"から"&'教育訓練費入力（前期）'!$D91&"日間") ->  | L91: =IF('教育訓練費入力（前期）'!$F91="","",IF('教育訓練費入力（前期）'!$G91=1,'教育訓練費入力（前期）'!$F91,'教育訓練費入力（前期）'!$F91&"他"&'教育訓練費入力（前期）'!$G91-1&"名")) -> 
B92: 83 | K92: =IF('教育訓練費入力（前期）'!$C92="","",TEXT('教育訓練費入力（前期）'!$C92,"yyyy年")&TEXT('教育訓練費入力（前期）'!$C92,"m月")&TEXT('教育訓練費入力（前期）'!$C92,"ｄ日")&"から"&'教育訓練費入力（前期）'!$D92&"日間") ->  | L92: =IF('教育訓練費入力（前期）'!$F92="","",IF('教育訓練費入力（前期）'!$G92=1,'教育訓練費入力（前期）'!$F92,'教育訓練費入力（前期）'!$F92&"他"&'教育訓練費入力（前期）'!$G92-1&"名")) -> 
B93: 84 | K93: =IF('教育訓練費入力（前期）'!$C93="","",TEXT('教育訓練費入力（前期）'!$C93,"yyyy年")&TEXT('教育訓練費入力（前期）'!$C93,"m月")&TEXT('教育訓練費入力（前期）'!$C93,"ｄ日")&"から"&'教育訓練費入力（前期）'!$D93&"日間") ->  | L93: =IF('教育訓練費入力（前期）'!$F93="","",IF('教育訓練費入力（前期）'!$G93=1,'教育訓練費入力（前期）'!$F93,'教育訓練費入力（前期）'!$F93&"他"&'教育訓練費入力（前期）'!$G93-1&"名")) -> 
B94: 85 | K94: =IF('教育訓練費入力（前期）'!$C94="","",TEXT('教育訓練費入力（前期）'!$C94,"yyyy年")&TEXT('教育訓練費入力（前期）'!$C94,"m月")&TEXT('教育訓練費入力（前期）'!$C94,"ｄ日")&"から"&'教育訓練費入力（前期）'!$D94&"日間") ->  | L94: =IF('教育訓練費入力（前期）'!$F94="","",IF('教育訓練費入力（前期）'!$G94=1,'教育訓練費入力（前期）'!$F94,'教育訓練費入力（前期）'!$F94&"他"&'教育訓練費入力（前期）'!$G94-1&"名")) -> 
B95: 86 | K95: =IF('教育訓練費入力（前期）'!$C95="","",TEXT('教育訓練費入力（前期）'!$C95,"yyyy年")&TEXT('教育訓練費入力（前期）'!$C95,"m月")&TEXT('教育訓練費入力（前期）'!$C95,"ｄ日")&"から"&'教育訓練費入力（前期）'!$D95&"日間") ->  | L95: =IF('教育訓練費入力（前期）'!$F95="","",IF('教育訓練費入力（前期）'!$G95=1,'教育訓練費入力（前期）'!$F95,'教育訓練費入力（前期）'!$F95&"他"&'教育訓練費入力（前期）'!$G95-1&"名")) -> 
B96: 87 | K96: =IF('教育訓練費入力（前期）'!$C96="","",TEXT('教育訓練費入力（前期）'!$C96,"yyyy年")&TEXT('教育訓練費入力（前期）'!$C96,"m月")&TEXT('教育訓練費入力（前期）'!$C96,"ｄ日")&"から"&'教育訓練費入力（前期）'!$D96&"日間") ->  | L96: =IF('教育訓練費入力（前期）'!$F96="","",IF('教育訓練費入力（前期）'!$G96=1,'教育訓練費入力（前期）'!$F96,'教育訓練費入力（前期）'!$F96&"他"&'教育訓練費入力（前期）'!$G96-1&"名")) -> 
B97: 88 | K97: =IF('教育訓練費入力（前期）'!$C97="","",TEXT('教育訓練費入力（前期）'!$C97,"yyyy年")&TEXT('教育訓練費入力（前期）'!$C97,"m月")&TEXT('教育訓練費入力（前期）'!$C97,"ｄ日")&"から"&'教育訓練費入力（前期）'!$D97&"日間") ->  | L97: =IF('教育訓練費入力（前期）'!$F97="","",IF('教育訓練費入力（前期）'!$G97=1,'教育訓練費入力（前期）'!$F97,'教育訓練費入力（前期）'!$F97&"他"&'教育訓練費入力（前期）'!$G97-1&"名")) -> 
B98: 89 | K98: =IF('教育訓練費入力（前期）'!$C98="","",TEXT('教育訓練費入力（前期）'!$C98,"yyyy年")&TEXT('教育訓練費入力（前期）'!$C98,"m月")&TEXT('教育訓練費入力（前期）'!$C98,"ｄ日")&"から"&'教育訓練費入力（前期）'!$D98&"日間") ->  | L98: =IF('教育訓練費入力（前期）'!$F98="","",IF('教育訓練費入力（前期）'!$G98=1,'教育訓練費入力（前期）'!$F98,'教育訓練費入力（前期）'!$F98&"他"&'教育訓練費入力（前期）'!$G98-1&"名")) -> 
B99: 90 | K99: =IF('教育訓練費入力（前期）'!$C99="","",TEXT('教育訓練費入力（前期）'!$C99,"yyyy年")&TEXT('教育訓練費入力（前期）'!$C99,"m月")&TEXT('教育訓練費入力（前期）'!$C99,"ｄ日")&"から"&'教育訓練費入力（前期）'!$D99&"日間") ->  | L99: =IF('教育訓練費入力（前期）'!$F99="","",IF('教育訓練費入力（前期）'!$G99=1,'教育訓練費入力（前期）'!$F99,'教育訓練費入力（前期）'!$F99&"他"&'教育訓練費入力（前期）'!$G99-1&"名")) -> 
B100: 91 | K100: =IF('教育訓練費入力（前期）'!$C100="","",TEXT('教育訓練費入力（前期）'!$C100,"yyyy年")&TEXT('教育訓練費入力（前期）'!$C100,"m月")&TEXT('教育訓練費入力（前期）'!$C100,"ｄ日")&"から"&'教育訓練費入力（前期）'!$D100&"日間") ->  | L100: =IF('教育訓練費入力（前期）'!$F100="","",IF('教育訓練費入力（前期）'!$G100=1,'教育訓練費入力（前期）'!$F100,'教育訓練費入力（前期）'!$F100&"他"&'教育訓練費入力（前期）'!$G100-1&"名")) -> 
B101: 92 | K101: =IF('教育訓練費入力（前期）'!$C101="","",TEXT('教育訓練費入力（前期）'!$C101,"yyyy年")&TEXT('教育訓練費入力（前期）'!$C101,"m月")&TEXT('教育訓練費入力（前期）'!$C101,"ｄ日")&"から"&'教育訓練費入力（前期）'!$D101&"日間") ->  | L101: =IF('教育訓練費入力（前期）'!$F101="","",IF('教育訓練費入力（前期）'!$G101=1,'教育訓練費入力（前期）'!$F101,'教育訓練費入力（前期）'!$F101&"他"&'教育訓練費入力（前期）'!$G101-1&"名")) -> 
B102: 93 | K102: =IF('教育訓練費入力（前期）'!$C102="","",TEXT('教育訓練費入力（前期）'!$C102,"yyyy年")&TEXT('教育訓練費入力（前期）'!$C102,"m月")&TEXT('教育訓練費入力（前期）'!$C102,"ｄ日")&"から"&'教育訓練費入力（前期）'!$D102&"日間") ->  | L102: =IF('教育訓練費入力（前期）'!$F102="","",IF('教育訓練費入力（前期）'!$G102=1,'教育訓練費入力（前期）'!$F102,'教育訓練費入力（前期）'!$F102&"他"&'教育訓練費入力（前期）'!$G102-1&"名")) -> 
B103: 94 | K103: =IF('教育訓練費入力（前期）'!$C103="","",TEXT('教育訓練費入力（前期）'!$C103,"yyyy年")&TEXT('教育訓練費入力（前期）'!$C103,"m月")&TEXT('教育訓練費入力（前期）'!$C103,"ｄ日")&"から"&'教育訓練費入力（前期）'!$D103&"日間") ->  | L103: =IF('教育訓練費入力（前期）'!$F103="","",IF('教育訓練費入力（前期）'!$G103=1,'教育訓練費入力（前期）'!$F103,'教育訓練費入力（前期）'!$F103&"他"&'教育訓練費入力（前期）'!$G103-1&"名")) -> 
B104: 95 | K104: =IF('教育訓練費入力（前期）'!$C104="","",TEXT('教育訓練費入力（前期）'!$C104,"yyyy年")&TEXT('教育訓練費入力（前期）'!$C104,"m月")&TEXT('教育訓練費入力（前期）'!$C104,"ｄ日")&"から"&'教育訓練費入力（前期）'!$D104&"日間") ->  | L104: =IF('教育訓練費入力（前期）'!$F104="","",IF('教育訓練費入力（前期）'!$G104=1,'教育訓練費入力（前期）'!$F104,'教育訓練費入力（前期）'!$F104&"他"&'教育訓練費入力（前期）'!$G104-1&"名")) -> 
B105: 96 | K105: =IF('教育訓練費入力（前期）'!$C105="","",TEXT('教育訓練費入力（前期）'!$C105,"yyyy年")&TEXT('教育訓練費入力（前期）'!$C105,"m月")&TEXT('教育訓練費入力（前期）'!$C105,"ｄ日")&"から"&'教育訓練費入力（前期）'!$D105&"日間") ->  | L105: =IF('教育訓練費入力（前期）'!$F105="","",IF('教育訓練費入力（前期）'!$G105=1,'教育訓練費入力（前期）'!$F105,'教育訓練費入力（前期）'!$F105&"他"&'教育訓練費入力（前期）'!$G105-1&"名")) -> 
B106: 97 | K106: =IF('教育訓練費入力（前期）'!$C106="","",TEXT('教育訓練費入力（前期）'!$C106,"yyyy年")&TEXT('教育訓練費入力（前期）'!$C106,"m月")&TEXT('教育訓練費入力（前期）'!$C106,"ｄ日")&"から"&'教育訓練費入力（前期）'!$D106&"日間") ->  | L106: =IF('教育訓練費入力（前期）'!$F106="","",IF('教育訓練費入力（前期）'!$G106=1,'教育訓練費入力（前期）'!$F106,'教育訓練費入力（前期）'!$F106&"他"&'教育訓練費入力（前期）'!$G106-1&"名")) -> 
B107: 98 | K107: =IF('教育訓練費入力（前期）'!$C107="","",TEXT('教育訓練費入力（前期）'!$C107,"yyyy年")&TEXT('教育訓練費入力（前期）'!$C107,"m月")&TEXT('教育訓練費入力（前期）'!$C107,"ｄ日")&"から"&'教育訓練費入力（前期）'!$D107&"日間") ->  | L107: =IF('教育訓練費入力（前期）'!$F107="","",IF('教育訓練費入力（前期）'!$G107=1,'教育訓練費入力（前期）'!$F107,'教育訓練費入力（前期）'!$F107&"他"&'教育訓練費入力（前期）'!$G107-1&"名")) -> 
B108: 99 | K108: =IF('教育訓練費入力（前期）'!$C108="","",TEXT('教育訓練費入力（前期）'!$C108,"yyyy年")&TEXT('教育訓練費入力（前期）'!$C108,"m月")&TEXT('教育訓練費入力（前期）'!$C108,"ｄ日")&"から"&'教育訓練費入力（前期）'!$D108&"日間") ->  | L108: =IF('教育訓練費入力（前期）'!$F108="","",IF('教育訓練費入力（前期）'!$G108=1,'教育訓練費入力（前期）'!$F108,'教育訓練費入力（前期）'!$F108&"他"&'教育訓練費入力（前期）'!$G108-1&"名")) -> 
B109: 100 | K109: =IF('教育訓練費入力（前期）'!$C109="","",TEXT('教育訓練費入力（前期）'!$C109,"yyyy年")&TEXT('教育訓練費入力（前期）'!$C109,"m月")&TEXT('教育訓練費入力（前期）'!$C109,"ｄ日")&"から"&'教育訓練費入力（前期）'!$D109&"日間") ->  | L109: =IF('教育訓練費入力（前期）'!$F109="","",IF('教育訓練費入力（前期）'!$G109=1,'教育訓練費入力（前期）'!$F109,'教育訓練費入力（前期）'!$F109&"他"&'教育訓練費入力（前期）'!$G109-1&"名")) -> 
B110: 101 | K110: =IF('教育訓練費入力（前期）'!$C110="","",TEXT('教育訓練費入力（前期）'!$C110,"yyyy年")&TEXT('教育訓練費入力（前期）'!$C110,"m月")&TEXT('教育訓練費入力（前期）'!$C110,"ｄ日")&"から"&'教育訓練費入力（前期）'!$D110&"日間") ->  | L110: =IF('教育訓練費入力（前期）'!$F110="","",IF('教育訓練費入力（前期）'!$G110=1,'教育訓練費入力（前期）'!$F110,'教育訓練費入力（前期）'!$F110&"他"&'教育訓練費入力（前期）'!$G110-1&"名")) -> 
B111: 102 | K111: =IF('教育訓練費入力（前期）'!$C111="","",TEXT('教育訓練費入力（前期）'!$C111,"yyyy年")&TEXT('教育訓練費入力（前期）'!$C111,"m月")&TEXT('教育訓練費入力（前期）'!$C111,"ｄ日")&"から"&'教育訓練費入力（前期）'!$D111&"日間") ->  | L111: =IF('教育訓練費入力（前期）'!$F111="","",IF('教育訓練費入力（前期）'!$G111=1,'教育訓練費入力（前期）'!$F111,'教育訓練費入力（前期）'!$F111&"他"&'教育訓練費入力（前期）'!$G111-1&"名")) -> 
B112: 103 | K112: =IF('教育訓練費入力（前期）'!$C112="","",TEXT('教育訓練費入力（前期）'!$C112,"yyyy年")&TEXT('教育訓練費入力（前期）'!$C112,"m月")&TEXT('教育訓練費入力（前期）'!$C112,"ｄ日")&"から"&'教育訓練費入力（前期）'!$D112&"日間") ->  | L112: =IF('教育訓練費入力（前期）'!$F112="","",IF('教育訓練費入力（前期）'!$G112=1,'教育訓練費入力（前期）'!$F112,'教育訓練費入力（前期）'!$F112&"他"&'教育訓練費入力（前期）'!$G112-1&"名")) -> 
B113: 104 | K113: =IF('教育訓練費入力（前期）'!$C113="","",TEXT('教育訓練費入力（前期）'!$C113,"yyyy年")&TEXT('教育訓練費入力（前期）'!$C113,"m月")&TEXT('教育訓練費入力（前期）'!$C113,"ｄ日")&"から"&'教育訓練費入力（前期）'!$D113&"日間") ->  | L113: =IF('教育訓練費入力（前期）'!$F113="","",IF('教育訓練費入力（前期）'!$G113=1,'教育訓練費入力（前期）'!$F113,'教育訓練費入力（前期）'!$F113&"他"&'教育訓練費入力（前期）'!$G113-1&"名")) -> 
B114: 105 | K114: =IF('教育訓練費入力（前期）'!$C114="","",TEXT('教育訓練費入力（前期）'!$C114,"yyyy年")&TEXT('教育訓練費入力（前期）'!$C114,"m月")&TEXT('教育訓練費入力（前期）'!$C114,"ｄ日")&"から"&'教育訓練費入力（前期）'!$D114&"日間") ->  | L114: =IF('教育訓練費入力（前期）'!$F114="","",IF('教育訓練費入力（前期）'!$G114=1,'教育訓練費入力（前期）'!$F114,'教育訓練費入力（前期）'!$F114&"他"&'教育訓練費入力（前期）'!$G114-1&"名")) -> 
B115: 106 | K115: =IF('教育訓練費入力（前期）'!$C115="","",TEXT('教育訓練費入力（前期）'!$C115,"yyyy年")&TEXT('教育訓練費入力（前期）'!$C115,"m月")&TEXT('教育訓練費入力（前期）'!$C115,"ｄ日")&"から"&'教育訓練費入力（前期）'!$D115&"日間") ->  | L115: =IF('教育訓練費入力（前期）'!$F115="","",IF('教育訓練費入力（前期）'!$G115=1,'教育訓練費入力（前期）'!$F115,'教育訓練費入力（前期）'!$F115&"他"&'教育訓練費入力（前期）'!$G115-1&"名")) -> 
B116: 107 | K116: =IF('教育訓練費入力（前期）'!$C116="","",TEXT('教育訓練費入力（前期）'!$C116,"yyyy年")&TEXT('教育訓練費入力（前期）'!$C116,"m月")&TEXT('教育訓練費入力（前期）'!$C116,"ｄ日")&"から"&'教育訓練費入力（前期）'!$D116&"日間") ->  | L116: =IF('教育訓練費入力（前期）'!$F116="","",IF('教育訓練費入力（前期）'!$G116=1,'教育訓練費入力（前期）'!$F116,'教育訓練費入力（前期）'!$F116&"他"&'教育訓練費入力（前期）'!$G116-1&"名")) -> 
B117: 108 | K117: =IF('教育訓練費入力（前期）'!$C117="","",TEXT('教育訓練費入力（前期）'!$C117,"yyyy年")&TEXT('教育訓練費入力（前期）'!$C117,"m月")&TEXT('教育訓練費入力（前期）'!$C117,"ｄ日")&"から"&'教育訓練費入力（前期）'!$D117&"日間") ->  | L117: =IF('教育訓練費入力（前期）'!$F117="","",IF('教育訓練費入力（前期）'!$G117=1,'教育訓練費入力（前期）'!$F117,'教育訓練費入力（前期）'!$F117&"他"&'教育訓練費入力（前期）'!$G117-1&"名")) -> 
B118: 109 | K118: =IF('教育訓練費入力（前期）'!$C118="","",TEXT('教育訓練費入力（前期）'!$C118,"yyyy年")&TEXT('教育訓練費入力（前期）'!$C118,"m月")&TEXT('教育訓練費入力（前期）'!$C118,"ｄ日")&"から"&'教育訓練費入力（前期）'!$D118&"日間") ->  | L118: =IF('教育訓練費入力（前期）'!$F118="","",IF('教育訓練費入力（前期）'!$G118=1,'教育訓練費入力（前期）'!$F118,'教育訓練費入力（前期）'!$F118&"他"&'教育訓練費入力（前期）'!$G118-1&"名")) -> 
B119: 110 | K119: =IF('教育訓練費入力（前期）'!$C119="","",TEXT('教育訓練費入力（前期）'!$C119,"yyyy年")&TEXT('教育訓練費入力（前期）'!$C119,"m月")&TEXT('教育訓練費入力（前期）'!$C119,"ｄ日")&"から"&'教育訓練費入力（前期）'!$D119&"日間") ->  | L119: =IF('教育訓練費入力（前期）'!$F119="","",IF('教育訓練費入力（前期）'!$G119=1,'教育訓練費入力（前期）'!$F119,'教育訓練費入力（前期）'!$F119&"他"&'教育訓練費入力（前期）'!$G119-1&"名")) -> 
B120: 111 | K120: =IF('教育訓練費入力（前期）'!$C120="","",TEXT('教育訓練費入力（前期）'!$C120,"yyyy年")&TEXT('教育訓練費入力（前期）'!$C120,"m月")&TEXT('教育訓練費入力（前期）'!$C120,"ｄ日")&"から"&'教育訓練費入力（前期）'!$D120&"日間") ->  | L120: =IF('教育訓練費入力（前期）'!$F120="","",IF('教育訓練費入力（前期）'!$G120=1,'教育訓練費入力（前期）'!$F120,'教育訓練費入力（前期）'!$F120&"他"&'教育訓練費入力（前期）'!$G120-1&"名")) -> 
B121: 112 | K121: =IF('教育訓練費入力（前期）'!$C121="","",TEXT('教育訓練費入力（前期）'!$C121,"yyyy年")&TEXT('教育訓練費入力（前期）'!$C121,"m月")&TEXT('教育訓練費入力（前期）'!$C121,"ｄ日")&"から"&'教育訓練費入力（前期）'!$D121&"日間") ->  | L121: =IF('教育訓練費入力（前期）'!$F121="","",IF('教育訓練費入力（前期）'!$G121=1,'教育訓練費入力（前期）'!$F121,'教育訓練費入力（前期）'!$F121&"他"&'教育訓練費入力（前期）'!$G121-1&"名")) -> 
B122: 113 | K122: =IF('教育訓練費入力（前期）'!$C122="","",TEXT('教育訓練費入力（前期）'!$C122,"yyyy年")&TEXT('教育訓練費入力（前期）'!$C122,"m月")&TEXT('教育訓練費入力（前期）'!$C122,"ｄ日")&"から"&'教育訓練費入力（前期）'!$D122&"日間") ->  | L122: =IF('教育訓練費入力（前期）'!$F122="","",IF('教育訓練費入力（前期）'!$G122=1,'教育訓練費入力（前期）'!$F122,'教育訓練費入力（前期）'!$F122&"他"&'教育訓練費入力（前期）'!$G122-1&"名")) -> 
B123: 114 | K123: =IF('教育訓練費入力（前期）'!$C123="","",TEXT('教育訓練費入力（前期）'!$C123,"yyyy年")&TEXT('教育訓練費入力（前期）'!$C123,"m月")&TEXT('教育訓練費入力（前期）'!$C123,"ｄ日")&"から"&'教育訓練費入力（前期）'!$D123&"日間") ->  | L123: =IF('教育訓練費入力（前期）'!$F123="","",IF('教育訓練費入力（前期）'!$G123=1,'教育訓練費入力（前期）'!$F123,'教育訓練費入力（前期）'!$F123&"他"&'教育訓練費入力（前期）'!$G123-1&"名")) -> 
B124: 115 | K124: =IF('教育訓練費入力（前期）'!$C124="","",TEXT('教育訓練費入力（前期）'!$C124,"yyyy年")&TEXT('教育訓練費入力（前期）'!$C124,"m月")&TEXT('教育訓練費入力（前期）'!$C124,"ｄ日")&"から"&'教育訓練費入力（前期）'!$D124&"日間") ->  | L124: =IF('教育訓練費入力（前期）'!$F124="","",IF('教育訓練費入力（前期）'!$G124=1,'教育訓練費入力（前期）'!$F124,'教育訓練費入力（前期）'!$F124&"他"&'教育訓練費入力（前期）'!$G124-1&"名")) -> 
B125: 116 | K125: =IF('教育訓練費入力（前期）'!$C125="","",TEXT('教育訓練費入力（前期）'!$C125,"yyyy年")&TEXT('教育訓練費入力（前期）'!$C125,"m月")&TEXT('教育訓練費入力（前期）'!$C125,"ｄ日")&"から"&'教育訓練費入力（前期）'!$D125&"日間") ->  | L125: =IF('教育訓練費入力（前期）'!$F125="","",IF('教育訓練費入力（前期）'!$G125=1,'教育訓練費入力（前期）'!$F125,'教育訓練費入力（前期）'!$F125&"他"&'教育訓練費入力（前期）'!$G125-1&"名")) -> 
B126: 117 | K126: =IF('教育訓練費入力（前期）'!$C126="","",TEXT('教育訓練費入力（前期）'!$C126,"yyyy年")&TEXT('教育訓練費入力（前期）'!$C126,"m月")&TEXT('教育訓練費入力（前期）'!$C126,"ｄ日")&"から"&'教育訓練費入力（前期）'!$D126&"日間") ->  | L126: =IF('教育訓練費入力（前期）'!$F126="","",IF('教育訓練費入力（前期）'!$G126=1,'教育訓練費入力（前期）'!$F126,'教育訓練費入力（前期）'!$F126&"他"&'教育訓練費入力（前期）'!$G126-1&"名")) -> 
B127: 118 | K127: =IF('教育訓練費入力（前期）'!$C127="","",TEXT('教育訓練費入力（前期）'!$C127,"yyyy年")&TEXT('教育訓練費入力（前期）'!$C127,"m月")&TEXT('教育訓練費入力（前期）'!$C127,"ｄ日")&"から"&'教育訓練費入力（前期）'!$D127&"日間") ->  | L127: =IF('教育訓練費入力（前期）'!$F127="","",IF('教育訓練費入力（前期）'!$G127=1,'教育訓練費入力（前期）'!$F127,'教育訓練費入力（前期）'!$F127&"他"&'教育訓練費入力（前期）'!$G127-1&"名")) -> 
B128: 119 | K128: =IF('教育訓練費入力（前期）'!$C128="","",TEXT('教育訓練費入力（前期）'!$C128,"yyyy年")&TEXT('教育訓練費入力（前期）'!$C128,"m月")&TEXT('教育訓練費入力（前期）'!$C128,"ｄ日")&"から"&'教育訓練費入力（前期）'!$D128&"日間") ->  | L128: =IF('教育訓練費入力（前期）'!$F128="","",IF('教育訓練費入力（前期）'!$G128=1,'教育訓練費入力（前期）'!$F128,'教育訓練費入力（前期）'!$F128&"他"&'教育訓練費入力（前期）'!$G128-1&"名")) -> 
B129: 120 | K129: =IF('教育訓練費入力（前期）'!$C129="","",TEXT('教育訓練費入力（前期）'!$C129,"yyyy年")&TEXT('教育訓練費入力（前期）'!$C129,"m月")&TEXT('教育訓練費入力（前期）'!$C129,"ｄ日")&"から"&'教育訓練費入力（前期）'!$D129&"日間") ->  | L129: =IF('教育訓練費入力（前期）'!$F129="","",IF('教育訓練費入力（前期）'!$G129=1,'教育訓練費入力（前期）'!$F129,'教育訓練費入力（前期）'!$F129&"他"&'教育訓練費入力（前期）'!$G129-1&"名")) -> 
B130: 121 | K130: =IF('教育訓練費入力（前期）'!$C130="","",TEXT('教育訓練費入力（前期）'!$C130,"yyyy年")&TEXT('教育訓練費入力（前期）'!$C130,"m月")&TEXT('教育訓練費入力（前期）'!$C130,"ｄ日")&"から"&'教育訓練費入力（前期）'!$D130&"日間") ->  | L130: =IF('教育訓練費入力（前期）'!$F130="","",IF('教育訓練費入力（前期）'!$G130=1,'教育訓練費入力（前期）'!$F130,'教育訓練費入力（前期）'!$F130&"他"&'教育訓練費入力（前期）'!$G130-1&"名")) -> 
B131: 122 | K131: =IF('教育訓練費入力（前期）'!$C131="","",TEXT('教育訓練費入力（前期）'!$C131,"yyyy年")&TEXT('教育訓練費入力（前期）'!$C131,"m月")&TEXT('教育訓練費入力（前期）'!$C131,"ｄ日")&"から"&'教育訓練費入力（前期）'!$D131&"日間") ->  | L131: =IF('教育訓練費入力（前期）'!$F131="","",IF('教育訓練費入力（前期）'!$G131=1,'教育訓練費入力（前期）'!$F131,'教育訓練費入力（前期）'!$F131&"他"&'教育訓練費入力（前期）'!$G131-1&"名")) -> 
B132: 123 | K132: =IF('教育訓練費入力（前期）'!$C132="","",TEXT('教育訓練費入力（前期）'!$C132,"yyyy年")&TEXT('教育訓練費入力（前期）'!$C132,"m月")&TEXT('教育訓練費入力（前期）'!$C132,"ｄ日")&"から"&'教育訓練費入力（前期）'!$D132&"日間") ->  | L132: =IF('教育訓練費入力（前期）'!$F132="","",IF('教育訓練費入力（前期）'!$G132=1,'教育訓練費入力（前期）'!$F132,'教育訓練費入力（前期）'!$F132&"他"&'教育訓練費入力（前期）'!$G132-1&"名")) -> 
B133: 124 | K133: =IF('教育訓練費入力（前期）'!$C133="","",TEXT('教育訓練費入力（前期）'!$C133,"yyyy年")&TEXT('教育訓練費入力（前期）'!$C133,"m月")&TEXT('教育訓練費入力（前期）'!$C133,"ｄ日")&"から"&'教育訓練費入力（前期）'!$D133&"日間") ->  | L133: =IF('教育訓練費入力（前期）'!$F133="","",IF('教育訓練費入力（前期）'!$G133=1,'教育訓練費入力（前期）'!$F133,'教育訓練費入力（前期）'!$F133&"他"&'教育訓練費入力（前期）'!$G133-1&"名")) -> 
B134: 125 | K134: =IF('教育訓練費入力（前期）'!$C134="","",TEXT('教育訓練費入力（前期）'!$C134,"yyyy年")&TEXT('教育訓練費入力（前期）'!$C134,"m月")&TEXT('教育訓練費入力（前期）'!$C134,"ｄ日")&"から"&'教育訓練費入力（前期）'!$D134&"日間") ->  | L134: =IF('教育訓練費入力（前期）'!$F134="","",IF('教育訓練費入力（前期）'!$G134=1,'教育訓練費入力（前期）'!$F134,'教育訓練費入力（前期）'!$F134&"他"&'教育訓練費入力（前期）'!$G134-1&"名")) -> 
B135: 126 | K135: =IF('教育訓練費入力（前期）'!$C135="","",TEXT('教育訓練費入力（前期）'!$C135,"yyyy年")&TEXT('教育訓練費入力（前期）'!$C135,"m月")&TEXT('教育訓練費入力（前期）'!$C135,"ｄ日")&"から"&'教育訓練費入力（前期）'!$D135&"日間") ->  | L135: =IF('教育訓練費入力（前期）'!$F135="","",IF('教育訓練費入力（前期）'!$G135=1,'教育訓練費入力（前期）'!$F135,'教育訓練費入力（前期）'!$F135&"他"&'教育訓練費入力（前期）'!$G135-1&"名")) -> 
B136: 127 | K136: =IF('教育訓練費入力（前期）'!$C136="","",TEXT('教育訓練費入力（前期）'!$C136,"yyyy年")&TEXT('教育訓練費入力（前期）'!$C136,"m月")&TEXT('教育訓練費入力（前期）'!$C136,"ｄ日")&"から"&'教育訓練費入力（前期）'!$D136&"日間") ->  | L136: =IF('教育訓練費入力（前期）'!$F136="","",IF('教育訓練費入力（前期）'!$G136=1,'教育訓練費入力（前期）'!$F136,'教育訓練費入力（前期）'!$F136&"他"&'教育訓練費入力（前期）'!$G136-1&"名")) -> 
B137: 128 | K137: =IF('教育訓練費入力（前期）'!$C137="","",TEXT('教育訓練費入力（前期）'!$C137,"yyyy年")&TEXT('教育訓練費入力（前期）'!$C137,"m月")&TEXT('教育訓練費入力（前期）'!$C137,"ｄ日")&"から"&'教育訓練費入力（前期）'!$D137&"日間") ->  | L137: =IF('教育訓練費入力（前期）'!$F137="","",IF('教育訓練費入力（前期）'!$G137=1,'教育訓練費入力（前期）'!$F137,'教育訓練費入力（前期）'!$F137&"他"&'教育訓練費入力（前期）'!$G137-1&"名")) -> 
B138: 129 | K138: =IF('教育訓練費入力（前期）'!$C138="","",TEXT('教育訓練費入力（前期）'!$C138,"yyyy年")&TEXT('教育訓練費入力（前期）'!$C138,"m月")&TEXT('教育訓練費入力（前期）'!$C138,"ｄ日")&"から"&'教育訓練費入力（前期）'!$D138&"日間") ->  | L138: =IF('教育訓練費入力（前期）'!$F138="","",IF('教育訓練費入力（前期）'!$G138=1,'教育訓練費入力（前期）'!$F138,'教育訓練費入力（前期）'!$F138&"他"&'教育訓練費入力（前期）'!$G138-1&"名")) -> 
B139: 130 | K139: =IF('教育訓練費入力（前期）'!$C139="","",TEXT('教育訓練費入力（前期）'!$C139,"yyyy年")&TEXT('教育訓練費入力（前期）'!$C139,"m月")&TEXT('教育訓練費入力（前期）'!$C139,"ｄ日")&"から"&'教育訓練費入力（前期）'!$D139&"日間") ->  | L139: =IF('教育訓練費入力（前期）'!$F139="","",IF('教育訓練費入力（前期）'!$G139=1,'教育訓練費入力（前期）'!$F139,'教育訓練費入力（前期）'!$F139&"他"&'教育訓練費入力（前期）'!$G139-1&"名")) -> 
B140: 131 | K140: =IF('教育訓練費入力（前期）'!$C140="","",TEXT('教育訓練費入力（前期）'!$C140,"yyyy年")&TEXT('教育訓練費入力（前期）'!$C140,"m月")&TEXT('教育訓練費入力（前期）'!$C140,"ｄ日")&"から"&'教育訓練費入力（前期）'!$D140&"日間") ->  | L140: =IF('教育訓練費入力（前期）'!$F140="","",IF('教育訓練費入力（前期）'!$G140=1,'教育訓練費入力（前期）'!$F140,'教育訓練費入力（前期）'!$F140&"他"&'教育訓練費入力（前期）'!$G140-1&"名")) -> 
B141: 132 | K141: =IF('教育訓練費入力（前期）'!$C141="","",TEXT('教育訓練費入力（前期）'!$C141,"yyyy年")&TEXT('教育訓練費入力（前期）'!$C141,"m月")&TEXT('教育訓練費入力（前期）'!$C141,"ｄ日")&"から"&'教育訓練費入力（前期）'!$D141&"日間") ->  | L141: =IF('教育訓練費入力（前期）'!$F141="","",IF('教育訓練費入力（前期）'!$G141=1,'教育訓練費入力（前期）'!$F141,'教育訓練費入力（前期）'!$F141&"他"&'教育訓練費入力（前期）'!$G141-1&"名")) -> 
B142: 133 | K142: =IF('教育訓練費入力（前期）'!$C142="","",TEXT('教育訓練費入力（前期）'!$C142,"yyyy年")&TEXT('教育訓練費入力（前期）'!$C142,"m月")&TEXT('教育訓練費入力（前期）'!$C142,"ｄ日")&"から"&'教育訓練費入力（前期）'!$D142&"日間") ->  | L142: =IF('教育訓練費入力（前期）'!$F142="","",IF('教育訓練費入力（前期）'!$G142=1,'教育訓練費入力（前期）'!$F142,'教育訓練費入力（前期）'!$F142&"他"&'教育訓練費入力（前期）'!$G142-1&"名")) -> 
B143: 134 | K143: =IF('教育訓練費入力（前期）'!$C143="","",TEXT('教育訓練費入力（前期）'!$C143,"yyyy年")&TEXT('教育訓練費入力（前期）'!$C143,"m月")&TEXT('教育訓練費入力（前期）'!$C143,"ｄ日")&"から"&'教育訓練費入力（前期）'!$D143&"日間") ->  | L143: =IF('教育訓練費入力（前期）'!$F143="","",IF('教育訓練費入力（前期）'!$G143=1,'教育訓練費入力（前期）'!$F143,'教育訓練費入力（前期）'!$F143&"他"&'教育訓練費入力（前期）'!$G143-1&"名")) -> 
B144: 135 | K144: =IF('教育訓練費入力（前期）'!$C144="","",TEXT('教育訓練費入力（前期）'!$C144,"yyyy年")&TEXT('教育訓練費入力（前期）'!$C144,"m月")&TEXT('教育訓練費入力（前期）'!$C144,"ｄ日")&"から"&'教育訓練費入力（前期）'!$D144&"日間") ->  | L144: =IF('教育訓練費入力（前期）'!$F144="","",IF('教育訓練費入力（前期）'!$G144=1,'教育訓練費入力（前期）'!$F144,'教育訓練費入力（前期）'!$F144&"他"&'教育訓練費入力（前期）'!$G144-1&"名")) -> 
B145: 136 | K145: =IF('教育訓練費入力（前期）'!$C145="","",TEXT('教育訓練費入力（前期）'!$C145,"yyyy年")&TEXT('教育訓練費入力（前期）'!$C145,"m月")&TEXT('教育訓練費入力（前期）'!$C145,"ｄ日")&"から"&'教育訓練費入力（前期）'!$D145&"日間") ->  | L145: =IF('教育訓練費入力（前期）'!$F145="","",IF('教育訓練費入力（前期）'!$G145=1,'教育訓練費入力（前期）'!$F145,'教育訓練費入力（前期）'!$F145&"他"&'教育訓練費入力（前期）'!$G145-1&"名")) -> 
B146: 137 | K146: =IF('教育訓練費入力（前期）'!$C146="","",TEXT('教育訓練費入力（前期）'!$C146,"yyyy年")&TEXT('教育訓練費入力（前期）'!$C146,"m月")&TEXT('教育訓練費入力（前期）'!$C146,"ｄ日")&"から"&'教育訓練費入力（前期）'!$D146&"日間") ->  | L146: =IF('教育訓練費入力（前期）'!$F146="","",IF('教育訓練費入力（前期）'!$G146=1,'教育訓練費入力（前期）'!$F146,'教育訓練費入力（前期）'!$F146&"他"&'教育訓練費入力（前期）'!$G146-1&"名")) -> 
B147: 138 | K147: =IF('教育訓練費入力（前期）'!$C147="","",TEXT('教育訓練費入力（前期）'!$C147,"yyyy年")&TEXT('教育訓練費入力（前期）'!$C147,"m月")&TEXT('教育訓練費入力（前期）'!$C147,"ｄ日")&"から"&'教育訓練費入力（前期）'!$D147&"日間") ->  | L147: =IF('教育訓練費入力（前期）'!$F147="","",IF('教育訓練費入力（前期）'!$G147=1,'教育訓練費入力（前期）'!$F147,'教育訓練費入力（前期）'!$F147&"他"&'教育訓練費入力（前期）'!$G147-1&"名")) -> 
B148: 139 | K148: =IF('教育訓練費入力（前期）'!$C148="","",TEXT('教育訓練費入力（前期）'!$C148,"yyyy年")&TEXT('教育訓練費入力（前期）'!$C148,"m月")&TEXT('教育訓練費入力（前期）'!$C148,"ｄ日")&"から"&'教育訓練費入力（前期）'!$D148&"日間") ->  | L148: =IF('教育訓練費入力（前期）'!$F148="","",IF('教育訓練費入力（前期）'!$G148=1,'教育訓練費入力（前期）'!$F148,'教育訓練費入力（前期）'!$F148&"他"&'教育訓練費入力（前期）'!$G148-1&"名")) -> 
B149: 140 | K149: =IF('教育訓練費入力（前期）'!$C149="","",TEXT('教育訓練費入力（前期）'!$C149,"yyyy年")&TEXT('教育訓練費入力（前期）'!$C149,"m月")&TEXT('教育訓練費入力（前期）'!$C149,"ｄ日")&"から"&'教育訓練費入力（前期）'!$D149&"日間") ->  | L149: =IF('教育訓練費入力（前期）'!$F149="","",IF('教育訓練費入力（前期）'!$G149=1,'教育訓練費入力（前期）'!$F149,'教育訓練費入力（前期）'!$F149&"他"&'教育訓練費入力（前期）'!$G149-1&"名")) -> 
B150: 141 | K150: =IF('教育訓練費入力（前期）'!$C150="","",TEXT('教育訓練費入力（前期）'!$C150,"yyyy年")&TEXT('教育訓練費入力（前期）'!$C150,"m月")&TEXT('教育訓練費入力（前期）'!$C150,"ｄ日")&"から"&'教育訓練費入力（前期）'!$D150&"日間") ->  | L150: =IF('教育訓練費入力（前期）'!$F150="","",IF('教育訓練費入力（前期）'!$G150=1,'教育訓練費入力（前期）'!$F150,'教育訓練費入力（前期）'!$F150&"他"&'教育訓練費入力（前期）'!$G150-1&"名")) -> 
B151: 142 | K151: =IF('教育訓練費入力（前期）'!$C151="","",TEXT('教育訓練費入力（前期）'!$C151,"yyyy年")&TEXT('教育訓練費入力（前期）'!$C151,"m月")&TEXT('教育訓練費入力（前期）'!$C151,"ｄ日")&"から"&'教育訓練費入力（前期）'!$D151&"日間") ->  | L151: =IF('教育訓練費入力（前期）'!$F151="","",IF('教育訓練費入力（前期）'!$G151=1,'教育訓練費入力（前期）'!$F151,'教育訓練費入力（前期）'!$F151&"他"&'教育訓練費入力（前期）'!$G151-1&"名")) -> 
B152: 143 | K152: =IF('教育訓練費入力（前期）'!$C152="","",TEXT('教育訓練費入力（前期）'!$C152,"yyyy年")&TEXT('教育訓練費入力（前期）'!$C152,"m月")&TEXT('教育訓練費入力（前期）'!$C152,"ｄ日")&"から"&'教育訓練費入力（前期）'!$D152&"日間") ->  | L152: =IF('教育訓練費入力（前期）'!$F152="","",IF('教育訓練費入力（前期）'!$G152=1,'教育訓練費入力（前期）'!$F152,'教育訓練費入力（前期）'!$F152&"他"&'教育訓練費入力（前期）'!$G152-1&"名")) -> 
B153: 144 | K153: =IF('教育訓練費入力（前期）'!$C153="","",TEXT('教育訓練費入力（前期）'!$C153,"yyyy年")&TEXT('教育訓練費入力（前期）'!$C153,"m月")&TEXT('教育訓練費入力（前期）'!$C153,"ｄ日")&"から"&'教育訓練費入力（前期）'!$D153&"日間") ->  | L153: =IF('教育訓練費入力（前期）'!$F153="","",IF('教育訓練費入力（前期）'!$G153=1,'教育訓練費入力（前期）'!$F153,'教育訓練費入力（前期）'!$F153&"他"&'教育訓練費入力（前期）'!$G153-1&"名")) -> 
B154: 145 | K154: =IF('教育訓練費入力（前期）'!$C154="","",TEXT('教育訓練費入力（前期）'!$C154,"yyyy年")&TEXT('教育訓練費入力（前期）'!$C154,"m月")&TEXT('教育訓練費入力（前期）'!$C154,"ｄ日")&"から"&'教育訓練費入力（前期）'!$D154&"日間") ->  | L154: =IF('教育訓練費入力（前期）'!$F154="","",IF('教育訓練費入力（前期）'!$G154=1,'教育訓練費入力（前期）'!$F154,'教育訓練費入力（前期）'!$F154&"他"&'教育訓練費入力（前期）'!$G154-1&"名")) -> 
B155: 146 | K155: =IF('教育訓練費入力（前期）'!$C155="","",TEXT('教育訓練費入力（前期）'!$C155,"yyyy年")&TEXT('教育訓練費入力（前期）'!$C155,"m月")&TEXT('教育訓練費入力（前期）'!$C155,"ｄ日")&"から"&'教育訓練費入力（前期）'!$D155&"日間") ->  | L155: =IF('教育訓練費入力（前期）'!$F155="","",IF('教育訓練費入力（前期）'!$G155=1,'教育訓練費入力（前期）'!$F155,'教育訓練費入力（前期）'!$F155&"他"&'教育訓練費入力（前期）'!$G155-1&"名")) -> 
B156: 147 | K156: =IF('教育訓練費入力（前期）'!$C156="","",TEXT('教育訓練費入力（前期）'!$C156,"yyyy年")&TEXT('教育訓練費入力（前期）'!$C156,"m月")&TEXT('教育訓練費入力（前期）'!$C156,"ｄ日")&"から"&'教育訓練費入力（前期）'!$D156&"日間") ->  | L156: =IF('教育訓練費入力（前期）'!$F156="","",IF('教育訓練費入力（前期）'!$G156=1,'教育訓練費入力（前期）'!$F156,'教育訓練費入力（前期）'!$F156&"他"&'教育訓練費入力（前期）'!$G156-1&"名")) -> 
B157: 148 | K157: =IF('教育訓練費入力（前期）'!$C157="","",TEXT('教育訓練費入力（前期）'!$C157,"yyyy年")&TEXT('教育訓練費入力（前期）'!$C157,"m月")&TEXT('教育訓練費入力（前期）'!$C157,"ｄ日")&"から"&'教育訓練費入力（前期）'!$D157&"日間") ->  | L157: =IF('教育訓練費入力（前期）'!$F157="","",IF('教育訓練費入力（前期）'!$G157=1,'教育訓練費入力（前期）'!$F157,'教育訓練費入力（前期）'!$F157&"他"&'教育訓練費入力（前期）'!$G157-1&"名")) -> 
B158: 149 | K158: =IF('教育訓練費入力（前期）'!$C158="","",TEXT('教育訓練費入力（前期）'!$C158,"yyyy年")&TEXT('教育訓練費入力（前期）'!$C158,"m月")&TEXT('教育訓練費入力（前期）'!$C158,"ｄ日")&"から"&'教育訓練費入力（前期）'!$D158&"日間") ->  | L158: =IF('教育訓練費入力（前期）'!$F158="","",IF('教育訓練費入力（前期）'!$G158=1,'教育訓練費入力（前期）'!$F158,'教育訓練費入力（前期）'!$F158&"他"&'教育訓練費入力（前期）'!$G158-1&"名")) -> 
B159: 150 | K159: =IF('教育訓練費入力（前期）'!$C159="","",TEXT('教育訓練費入力（前期）'!$C159,"yyyy年")&TEXT('教育訓練費入力（前期）'!$C159,"m月")&TEXT('教育訓練費入力（前期）'!$C159,"ｄ日")&"から"&'教育訓練費入力（前期）'!$D159&"日間") ->  | L159: =IF('教育訓練費入力（前期）'!$F159="","",IF('教育訓練費入力（前期）'!$G159=1,'教育訓練費入力（前期）'!$F159,'教育訓練費入力（前期）'!$F159&"他"&'教育訓練費入力（前期）'!$G159-1&"名")) -> 
B160: 151 | K160: =IF('教育訓練費入力（前期）'!$C160="","",TEXT('教育訓練費入力（前期）'!$C160,"yyyy年")&TEXT('教育訓練費入力（前期）'!$C160,"m月")&TEXT('教育訓練費入力（前期）'!$C160,"ｄ日")&"から"&'教育訓練費入力（前期）'!$D160&"日間") ->  | L160: =IF('教育訓練費入力（前期）'!$F160="","",IF('教育訓練費入力（前期）'!$G160=1,'教育訓練費入力（前期）'!$F160,'教育訓練費入力（前期）'!$F160&"他"&'教育訓練費入力（前期）'!$G160-1&"名")) -> 
B161: 152 | K161: =IF('教育訓練費入力（前期）'!$C161="","",TEXT('教育訓練費入力（前期）'!$C161,"yyyy年")&TEXT('教育訓練費入力（前期）'!$C161,"m月")&TEXT('教育訓練費入力（前期）'!$C161,"ｄ日")&"から"&'教育訓練費入力（前期）'!$D161&"日間") ->  | L161: =IF('教育訓練費入力（前期）'!$F161="","",IF('教育訓練費入力（前期）'!$G161=1,'教育訓練費入力（前期）'!$F161,'教育訓練費入力（前期）'!$F161&"他"&'教育訓練費入力（前期）'!$G161-1&"名")) -> 
B162: 153 | K162: =IF('教育訓練費入力（前期）'!$C162="","",TEXT('教育訓練費入力（前期）'!$C162,"yyyy年")&TEXT('教育訓練費入力（前期）'!$C162,"m月")&TEXT('教育訓練費入力（前期）'!$C162,"ｄ日")&"から"&'教育訓練費入力（前期）'!$D162&"日間") ->  | L162: =IF('教育訓練費入力（前期）'!$F162="","",IF('教育訓練費入力（前期）'!$G162=1,'教育訓練費入力（前期）'!$F162,'教育訓練費入力（前期）'!$F162&"他"&'教育訓練費入力（前期）'!$G162-1&"名")) -> 
B163: 154 | K163: =IF('教育訓練費入力（前期）'!$C163="","",TEXT('教育訓練費入力（前期）'!$C163,"yyyy年")&TEXT('教育訓練費入力（前期）'!$C163,"m月")&TEXT('教育訓練費入力（前期）'!$C163,"ｄ日")&"から"&'教育訓練費入力（前期）'!$D163&"日間") ->  | L163: =IF('教育訓練費入力（前期）'!$F163="","",IF('教育訓練費入力（前期）'!$G163=1,'教育訓練費入力（前期）'!$F163,'教育訓練費入力（前期）'!$F163&"他"&'教育訓練費入力（前期）'!$G163-1&"名")) -> 
B164: 155 | K164: =IF('教育訓練費入力（前期）'!$C164="","",TEXT('教育訓練費入力（前期）'!$C164,"yyyy年")&TEXT('教育訓練費入力（前期）'!$C164,"m月")&TEXT('教育訓練費入力（前期）'!$C164,"ｄ日")&"から"&'教育訓練費入力（前期）'!$D164&"日間") ->  | L164: =IF('教育訓練費入力（前期）'!$F164="","",IF('教育訓練費入力（前期）'!$G164=1,'教育訓練費入力（前期）'!$F164,'教育訓練費入力（前期）'!$F164&"他"&'教育訓練費入力（前期）'!$G164-1&"名")) -> 
B165: 156 | K165: =IF('教育訓練費入力（前期）'!$C165="","",TEXT('教育訓練費入力（前期）'!$C165,"yyyy年")&TEXT('教育訓練費入力（前期）'!$C165,"m月")&TEXT('教育訓練費入力（前期）'!$C165,"ｄ日")&"から"&'教育訓練費入力（前期）'!$D165&"日間") ->  | L165: =IF('教育訓練費入力（前期）'!$F165="","",IF('教育訓練費入力（前期）'!$G165=1,'教育訓練費入力（前期）'!$F165,'教育訓練費入力（前期）'!$F165&"他"&'教育訓練費入力（前期）'!$G165-1&"名")) -> 
B166: 157 | K166: =IF('教育訓練費入力（前期）'!$C166="","",TEXT('教育訓練費入力（前期）'!$C166,"yyyy年")&TEXT('教育訓練費入力（前期）'!$C166,"m月")&TEXT('教育訓練費入力（前期）'!$C166,"ｄ日")&"から"&'教育訓練費入力（前期）'!$D166&"日間") ->  | L166: =IF('教育訓練費入力（前期）'!$F166="","",IF('教育訓練費入力（前期）'!$G166=1,'教育訓練費入力（前期）'!$F166,'教育訓練費入力（前期）'!$F166&"他"&'教育訓練費入力（前期）'!$G166-1&"名")) -> 
B167: 158 | K167: =IF('教育訓練費入力（前期）'!$C167="","",TEXT('教育訓練費入力（前期）'!$C167,"yyyy年")&TEXT('教育訓練費入力（前期）'!$C167,"m月")&TEXT('教育訓練費入力（前期）'!$C167,"ｄ日")&"から"&'教育訓練費入力（前期）'!$D167&"日間") ->  | L167: =IF('教育訓練費入力（前期）'!$F167="","",IF('教育訓練費入力（前期）'!$G167=1,'教育訓練費入力（前期）'!$F167,'教育訓練費入力（前期）'!$F167&"他"&'教育訓練費入力（前期）'!$G167-1&"名")) -> 
B168: 159 | K168: =IF('教育訓練費入力（前期）'!$C168="","",TEXT('教育訓練費入力（前期）'!$C168,"yyyy年")&TEXT('教育訓練費入力（前期）'!$C168,"m月")&TEXT('教育訓練費入力（前期）'!$C168,"ｄ日")&"から"&'教育訓練費入力（前期）'!$D168&"日間") ->  | L168: =IF('教育訓練費入力（前期）'!$F168="","",IF('教育訓練費入力（前期）'!$G168=1,'教育訓練費入力（前期）'!$F168,'教育訓練費入力（前期）'!$F168&"他"&'教育訓練費入力（前期）'!$G168-1&"名")) -> 
B169: 160 | K169: =IF('教育訓練費入力（前期）'!$C169="","",TEXT('教育訓練費入力（前期）'!$C169,"yyyy年")&TEXT('教育訓練費入力（前期）'!$C169,"m月")&TEXT('教育訓練費入力（前期）'!$C169,"ｄ日")&"から"&'教育訓練費入力（前期）'!$D169&"日間") ->  | L169: =IF('教育訓練費入力（前期）'!$F169="","",IF('教育訓練費入力（前期）'!$G169=1,'教育訓練費入力（前期）'!$F169,'教育訓練費入力（前期）'!$F169&"他"&'教育訓練費入力（前期）'!$G169-1&"名")) -> 
B170: 161 | K170: =IF('教育訓練費入力（前期）'!$C170="","",TEXT('教育訓練費入力（前期）'!$C170,"yyyy年")&TEXT('教育訓練費入力（前期）'!$C170,"m月")&TEXT('教育訓練費入力（前期）'!$C170,"ｄ日")&"から"&'教育訓練費入力（前期）'!$D170&"日間") ->  | L170: =IF('教育訓練費入力（前期）'!$F170="","",IF('教育訓練費入力（前期）'!$G170=1,'教育訓練費入力（前期）'!$F170,'教育訓練費入力（前期）'!$F170&"他"&'教育訓練費入力（前期）'!$G170-1&"名")) -> 
B171: 162 | K171: =IF('教育訓練費入力（前期）'!$C171="","",TEXT('教育訓練費入力（前期）'!$C171,"yyyy年")&TEXT('教育訓練費入力（前期）'!$C171,"m月")&TEXT('教育訓練費入力（前期）'!$C171,"ｄ日")&"から"&'教育訓練費入力（前期）'!$D171&"日間") ->  | L171: =IF('教育訓練費入力（前期）'!$F171="","",IF('教育訓練費入力（前期）'!$G171=1,'教育訓練費入力（前期）'!$F171,'教育訓練費入力（前期）'!$F171&"他"&'教育訓練費入力（前期）'!$G171-1&"名")) -> 
B172: 163 | K172: =IF('教育訓練費入力（前期）'!$C172="","",TEXT('教育訓練費入力（前期）'!$C172,"yyyy年")&TEXT('教育訓練費入力（前期）'!$C172,"m月")&TEXT('教育訓練費入力（前期）'!$C172,"ｄ日")&"から"&'教育訓練費入力（前期）'!$D172&"日間") ->  | L172: =IF('教育訓練費入力（前期）'!$F172="","",IF('教育訓練費入力（前期）'!$G172=1,'教育訓練費入力（前期）'!$F172,'教育訓練費入力（前期）'!$F172&"他"&'教育訓練費入力（前期）'!$G172-1&"名")) -> 
B173: 164 | K173: =IF('教育訓練費入力（前期）'!$C173="","",TEXT('教育訓練費入力（前期）'!$C173,"yyyy年")&TEXT('教育訓練費入力（前期）'!$C173,"m月")&TEXT('教育訓練費入力（前期）'!$C173,"ｄ日")&"から"&'教育訓練費入力（前期）'!$D173&"日間") ->  | L173: =IF('教育訓練費入力（前期）'!$F173="","",IF('教育訓練費入力（前期）'!$G173=1,'教育訓練費入力（前期）'!$F173,'教育訓練費入力（前期）'!$F173&"他"&'教育訓練費入力（前期）'!$G173-1&"名")) -> 
B174: 165 | K174: =IF('教育訓練費入力（前期）'!$C174="","",TEXT('教育訓練費入力（前期）'!$C174,"yyyy年")&TEXT('教育訓練費入力（前期）'!$C174,"m月")&TEXT('教育訓練費入力（前期）'!$C174,"ｄ日")&"から"&'教育訓練費入力（前期）'!$D174&"日間") ->  | L174: =IF('教育訓練費入力（前期）'!$F174="","",IF('教育訓練費入力（前期）'!$G174=1,'教育訓練費入力（前期）'!$F174,'教育訓練費入力（前期）'!$F174&"他"&'教育訓練費入力（前期）'!$G174-1&"名")) -> 
B175: 166 | K175: =IF('教育訓練費入力（前期）'!$C175="","",TEXT('教育訓練費入力（前期）'!$C175,"yyyy年")&TEXT('教育訓練費入力（前期）'!$C175,"m月")&TEXT('教育訓練費入力（前期）'!$C175,"ｄ日")&"から"&'教育訓練費入力（前期）'!$D175&"日間") ->  | L175: =IF('教育訓練費入力（前期）'!$F175="","",IF('教育訓練費入力（前期）'!$G175=1,'教育訓練費入力（前期）'!$F175,'教育訓練費入力（前期）'!$F175&"他"&'教育訓練費入力（前期）'!$G175-1&"名")) -> 
B176: 167 | K176: =IF('教育訓練費入力（前期）'!$C176="","",TEXT('教育訓練費入力（前期）'!$C176,"yyyy年")&TEXT('教育訓練費入力（前期）'!$C176,"m月")&TEXT('教育訓練費入力（前期）'!$C176,"ｄ日")&"から"&'教育訓練費入力（前期）'!$D176&"日間") ->  | L176: =IF('教育訓練費入力（前期）'!$F176="","",IF('教育訓練費入力（前期）'!$G176=1,'教育訓練費入力（前期）'!$F176,'教育訓練費入力（前期）'!$F176&"他"&'教育訓練費入力（前期）'!$G176-1&"名")) -> 
B177: 168 | K177: =IF('教育訓練費入力（前期）'!$C177="","",TEXT('教育訓練費入力（前期）'!$C177,"yyyy年")&TEXT('教育訓練費入力（前期）'!$C177,"m月")&TEXT('教育訓練費入力（前期）'!$C177,"ｄ日")&"から"&'教育訓練費入力（前期）'!$D177&"日間") ->  | L177: =IF('教育訓練費入力（前期）'!$F177="","",IF('教育訓練費入力（前期）'!$G177=1,'教育訓練費入力（前期）'!$F177,'教育訓練費入力（前期）'!$F177&"他"&'教育訓練費入力（前期）'!$G177-1&"名")) -> 
B178: 169 | K178: =IF('教育訓練費入力（前期）'!$C178="","",TEXT('教育訓練費入力（前期）'!$C178,"yyyy年")&TEXT('教育訓練費入力（前期）'!$C178,"m月")&TEXT('教育訓練費入力（前期）'!$C178,"ｄ日")&"から"&'教育訓練費入力（前期）'!$D178&"日間") ->  | L178: =IF('教育訓練費入力（前期）'!$F178="","",IF('教育訓練費入力（前期）'!$G178=1,'教育訓練費入力（前期）'!$F178,'教育訓練費入力（前期）'!$F178&"他"&'教育訓練費入力（前期）'!$G178-1&"名")) -> 
B179: 170 | K179: =IF('教育訓練費入力（前期）'!$C179="","",TEXT('教育訓練費入力（前期）'!$C179,"yyyy年")&TEXT('教育訓練費入力（前期）'!$C179,"m月")&TEXT('教育訓練費入力（前期）'!$C179,"ｄ日")&"から"&'教育訓練費入力（前期）'!$D179&"日間") ->  | L179: =IF('教育訓練費入力（前期）'!$F179="","",IF('教育訓練費入力（前期）'!$G179=1,'教育訓練費入力（前期）'!$F179,'教育訓練費入力（前期）'!$F179&"他"&'教育訓練費入力（前期）'!$G179-1&"名")) -> 
B180: 171 | K180: =IF('教育訓練費入力（前期）'!$C180="","",TEXT('教育訓練費入力（前期）'!$C180,"yyyy年")&TEXT('教育訓練費入力（前期）'!$C180,"m月")&TEXT('教育訓練費入力（前期）'!$C180,"ｄ日")&"から"&'教育訓練費入力（前期）'!$D180&"日間") ->  | L180: =IF('教育訓練費入力（前期）'!$F180="","",IF('教育訓練費入力（前期）'!$G180=1,'教育訓練費入力（前期）'!$F180,'教育訓練費入力（前期）'!$F180&"他"&'教育訓練費入力（前期）'!$G180-1&"名")) -> 
B181: 172 | K181: =IF('教育訓練費入力（前期）'!$C181="","",TEXT('教育訓練費入力（前期）'!$C181,"yyyy年")&TEXT('教育訓練費入力（前期）'!$C181,"m月")&TEXT('教育訓練費入力（前期）'!$C181,"ｄ日")&"から"&'教育訓練費入力（前期）'!$D181&"日間") ->  | L181: =IF('教育訓練費入力（前期）'!$F181="","",IF('教育訓練費入力（前期）'!$G181=1,'教育訓練費入力（前期）'!$F181,'教育訓練費入力（前期）'!$F181&"他"&'教育訓練費入力（前期）'!$G181-1&"名")) -> 
B182: 173 | K182: =IF('教育訓練費入力（前期）'!$C182="","",TEXT('教育訓練費入力（前期）'!$C182,"yyyy年")&TEXT('教育訓練費入力（前期）'!$C182,"m月")&TEXT('教育訓練費入力（前期）'!$C182,"ｄ日")&"から"&'教育訓練費入力（前期）'!$D182&"日間") ->  | L182: =IF('教育訓練費入力（前期）'!$F182="","",IF('教育訓練費入力（前期）'!$G182=1,'教育訓練費入力（前期）'!$F182,'教育訓練費入力（前期）'!$F182&"他"&'教育訓練費入力（前期）'!$G182-1&"名")) -> 
B183: 174 | K183: =IF('教育訓練費入力（前期）'!$C183="","",TEXT('教育訓練費入力（前期）'!$C183,"yyyy年")&TEXT('教育訓練費入力（前期）'!$C183,"m月")&TEXT('教育訓練費入力（前期）'!$C183,"ｄ日")&"から"&'教育訓練費入力（前期）'!$D183&"日間") ->  | L183: =IF('教育訓練費入力（前期）'!$F183="","",IF('教育訓練費入力（前期）'!$G183=1,'教育訓練費入力（前期）'!$F183,'教育訓練費入力（前期）'!$F183&"他"&'教育訓練費入力（前期）'!$G183-1&"名")) -> 
B184: 175 | K184: =IF('教育訓練費入力（前期）'!$C184="","",TEXT('教育訓練費入力（前期）'!$C184,"yyyy年")&TEXT('教育訓練費入力（前期）'!$C184,"m月")&TEXT('教育訓練費入力（前期）'!$C184,"ｄ日")&"から"&'教育訓練費入力（前期）'!$D184&"日間") ->  | L184: =IF('教育訓練費入力（前期）'!$F184="","",IF('教育訓練費入力（前期）'!$G184=1,'教育訓練費入力（前期）'!$F184,'教育訓練費入力（前期）'!$F184&"他"&'教育訓練費入力（前期）'!$G184-1&"名")) -> 
B185: 176 | K185: =IF('教育訓練費入力（前期）'!$C185="","",TEXT('教育訓練費入力（前期）'!$C185,"yyyy年")&TEXT('教育訓練費入力（前期）'!$C185,"m月")&TEXT('教育訓練費入力（前期）'!$C185,"ｄ日")&"から"&'教育訓練費入力（前期）'!$D185&"日間") ->  | L185: =IF('教育訓練費入力（前期）'!$F185="","",IF('教育訓練費入力（前期）'!$G185=1,'教育訓練費入力（前期）'!$F185,'教育訓練費入力（前期）'!$F185&"他"&'教育訓練費入力（前期）'!$G185-1&"名")) -> 
B186: 177 | K186: =IF('教育訓練費入力（前期）'!$C186="","",TEXT('教育訓練費入力（前期）'!$C186,"yyyy年")&TEXT('教育訓練費入力（前期）'!$C186,"m月")&TEXT('教育訓練費入力（前期）'!$C186,"ｄ日")&"から"&'教育訓練費入力（前期）'!$D186&"日間") ->  | L186: =IF('教育訓練費入力（前期）'!$F186="","",IF('教育訓練費入力（前期）'!$G186=1,'教育訓練費入力（前期）'!$F186,'教育訓練費入力（前期）'!$F186&"他"&'教育訓練費入力（前期）'!$G186-1&"名")) -> 
B187: 178 | K187: =IF('教育訓練費入力（前期）'!$C187="","",TEXT('教育訓練費入力（前期）'!$C187,"yyyy年")&TEXT('教育訓練費入力（前期）'!$C187,"m月")&TEXT('教育訓練費入力（前期）'!$C187,"ｄ日")&"から"&'教育訓練費入力（前期）'!$D187&"日間") ->  | L187: =IF('教育訓練費入力（前期）'!$F187="","",IF('教育訓練費入力（前期）'!$G187=1,'教育訓練費入力（前期）'!$F187,'教育訓練費入力（前期）'!$F187&"他"&'教育訓練費入力（前期）'!$G187-1&"名")) -> 
B188: 179 | K188: =IF('教育訓練費入力（前期）'!$C188="","",TEXT('教育訓練費入力（前期）'!$C188,"yyyy年")&TEXT('教育訓練費入力（前期）'!$C188,"m月")&TEXT('教育訓練費入力（前期）'!$C188,"ｄ日")&"から"&'教育訓練費入力（前期）'!$D188&"日間") ->  | L188: =IF('教育訓練費入力（前期）'!$F188="","",IF('教育訓練費入力（前期）'!$G188=1,'教育訓練費入力（前期）'!$F188,'教育訓練費入力（前期）'!$F188&"他"&'教育訓練費入力（前期）'!$G188-1&"名")) -> 
B189: 180 | K189: =IF('教育訓練費入力（前期）'!$C189="","",TEXT('教育訓練費入力（前期）'!$C189,"yyyy年")&TEXT('教育訓練費入力（前期）'!$C189,"m月")&TEXT('教育訓練費入力（前期）'!$C189,"ｄ日")&"から"&'教育訓練費入力（前期）'!$D189&"日間") ->  | L189: =IF('教育訓練費入力（前期）'!$F189="","",IF('教育訓練費入力（前期）'!$G189=1,'教育訓練費入力（前期）'!$F189,'教育訓練費入力（前期）'!$F189&"他"&'教育訓練費入力（前期）'!$G189-1&"名")) -> 
B190: 181 | K190: =IF('教育訓練費入力（前期）'!$C190="","",TEXT('教育訓練費入力（前期）'!$C190,"yyyy年")&TEXT('教育訓練費入力（前期）'!$C190,"m月")&TEXT('教育訓練費入力（前期）'!$C190,"ｄ日")&"から"&'教育訓練費入力（前期）'!$D190&"日間") ->  | L190: =IF('教育訓練費入力（前期）'!$F190="","",IF('教育訓練費入力（前期）'!$G190=1,'教育訓練費入力（前期）'!$F190,'教育訓練費入力（前期）'!$F190&"他"&'教育訓練費入力（前期）'!$G190-1&"名")) -> 
B191: 182 | K191: =IF('教育訓練費入力（前期）'!$C191="","",TEXT('教育訓練費入力（前期）'!$C191,"yyyy年")&TEXT('教育訓練費入力（前期）'!$C191,"m月")&TEXT('教育訓練費入力（前期）'!$C191,"ｄ日")&"から"&'教育訓練費入力（前期）'!$D191&"日間") ->  | L191: =IF('教育訓練費入力（前期）'!$F191="","",IF('教育訓練費入力（前期）'!$G191=1,'教育訓練費入力（前期）'!$F191,'教育訓練費入力（前期）'!$F191&"他"&'教育訓練費入力（前期）'!$G191-1&"名")) -> 
B192: 183 | K192: =IF('教育訓練費入力（前期）'!$C192="","",TEXT('教育訓練費入力（前期）'!$C192,"yyyy年")&TEXT('教育訓練費入力（前期）'!$C192,"m月")&TEXT('教育訓練費入力（前期）'!$C192,"ｄ日")&"から"&'教育訓練費入力（前期）'!$D192&"日間") ->  | L192: =IF('教育訓練費入力（前期）'!$F192="","",IF('教育訓練費入力（前期）'!$G192=1,'教育訓練費入力（前期）'!$F192,'教育訓練費入力（前期）'!$F192&"他"&'教育訓練費入力（前期）'!$G192-1&"名")) -> 
B193: 184 | K193: =IF('教育訓練費入力（前期）'!$C193="","",TEXT('教育訓練費入力（前期）'!$C193,"yyyy年")&TEXT('教育訓練費入力（前期）'!$C193,"m月")&TEXT('教育訓練費入力（前期）'!$C193,"ｄ日")&"から"&'教育訓練費入力（前期）'!$D193&"日間") ->  | L193: =IF('教育訓練費入力（前期）'!$F193="","",IF('教育訓練費入力（前期）'!$G193=1,'教育訓練費入力（前期）'!$F193,'教育訓練費入力（前期）'!$F193&"他"&'教育訓練費入力（前期）'!$G193-1&"名")) -> 
B194: 185 | K194: =IF('教育訓練費入力（前期）'!$C194="","",TEXT('教育訓練費入力（前期）'!$C194,"yyyy年")&TEXT('教育訓練費入力（前期）'!$C194,"m月")&TEXT('教育訓練費入力（前期）'!$C194,"ｄ日")&"から"&'教育訓練費入力（前期）'!$D194&"日間") ->  | L194: =IF('教育訓練費入力（前期）'!$F194="","",IF('教育訓練費入力（前期）'!$G194=1,'教育訓練費入力（前期）'!$F194,'教育訓練費入力（前期）'!$F194&"他"&'教育訓練費入力（前期）'!$G194-1&"名")) -> 
B195: 186 | K195: =IF('教育訓練費入力（前期）'!$C195="","",TEXT('教育訓練費入力（前期）'!$C195,"yyyy年")&TEXT('教育訓練費入力（前期）'!$C195,"m月")&TEXT('教育訓練費入力（前期）'!$C195,"ｄ日")&"から"&'教育訓練費入力（前期）'!$D195&"日間") ->  | L195: =IF('教育訓練費入力（前期）'!$F195="","",IF('教育訓練費入力（前期）'!$G195=1,'教育訓練費入力（前期）'!$F195,'教育訓練費入力（前期）'!$F195&"他"&'教育訓練費入力（前期）'!$G195-1&"名")) -> 
B196: 187 | K196: =IF('教育訓練費入力（前期）'!$C196="","",TEXT('教育訓練費入力（前期）'!$C196,"yyyy年")&TEXT('教育訓練費入力（前期）'!$C196,"m月")&TEXT('教育訓練費入力（前期）'!$C196,"ｄ日")&"から"&'教育訓練費入力（前期）'!$D196&"日間") ->  | L196: =IF('教育訓練費入力（前期）'!$F196="","",IF('教育訓練費入力（前期）'!$G196=1,'教育訓練費入力（前期）'!$F196,'教育訓練費入力（前期）'!$F196&"他"&'教育訓練費入力（前期）'!$G196-1&"名")) -> 
B197: 188 | K197: =IF('教育訓練費入力（前期）'!$C197="","",TEXT('教育訓練費入力（前期）'!$C197,"yyyy年")&TEXT('教育訓練費入力（前期）'!$C197,"m月")&TEXT('教育訓練費入力（前期）'!$C197,"ｄ日")&"から"&'教育訓練費入力（前期）'!$D197&"日間") ->  | L197: =IF('教育訓練費入力（前期）'!$F197="","",IF('教育訓練費入力（前期）'!$G197=1,'教育訓練費入力（前期）'!$F197,'教育訓練費入力（前期）'!$F197&"他"&'教育訓練費入力（前期）'!$G197-1&"名")) -> 
B198: 189 | K198: =IF('教育訓練費入力（前期）'!$C198="","",TEXT('教育訓練費入力（前期）'!$C198,"yyyy年")&TEXT('教育訓練費入力（前期）'!$C198,"m月")&TEXT('教育訓練費入力（前期）'!$C198,"ｄ日")&"から"&'教育訓練費入力（前期）'!$D198&"日間") ->  | L198: =IF('教育訓練費入力（前期）'!$F198="","",IF('教育訓練費入力（前期）'!$G198=1,'教育訓練費入力（前期）'!$F198,'教育訓練費入力（前期）'!$F198&"他"&'教育訓練費入力（前期）'!$G198-1&"名")) -> 
B199: 190 | K199: =IF('教育訓練費入力（前期）'!$C199="","",TEXT('教育訓練費入力（前期）'!$C199,"yyyy年")&TEXT('教育訓練費入力（前期）'!$C199,"m月")&TEXT('教育訓練費入力（前期）'!$C199,"ｄ日")&"から"&'教育訓練費入力（前期）'!$D199&"日間") ->  | L199: =IF('教育訓練費入力（前期）'!$F199="","",IF('教育訓練費入力（前期）'!$G199=1,'教育訓練費入力（前期）'!$F199,'教育訓練費入力（前期）'!$F199&"他"&'教育訓練費入力（前期）'!$G199-1&"名")) -> 
B200: 191 | K200: =IF('教育訓練費入力（前期）'!$C200="","",TEXT('教育訓練費入力（前期）'!$C200,"yyyy年")&TEXT('教育訓練費入力（前期）'!$C200,"m月")&TEXT('教育訓練費入力（前期）'!$C200,"ｄ日")&"から"&'教育訓練費入力（前期）'!$D200&"日間") ->  | L200: =IF('教育訓練費入力（前期）'!$F200="","",IF('教育訓練費入力（前期）'!$G200=1,'教育訓練費入力（前期）'!$F200,'教育訓練費入力（前期）'!$F200&"他"&'教育訓練費入力（前期）'!$G200-1&"名")) -> 
B201: 192 | K201: =IF('教育訓練費入力（前期）'!$C201="","",TEXT('教育訓練費入力（前期）'!$C201,"yyyy年")&TEXT('教育訓練費入力（前期）'!$C201,"m月")&TEXT('教育訓練費入力（前期）'!$C201,"ｄ日")&"から"&'教育訓練費入力（前期）'!$D201&"日間") ->  | L201: =IF('教育訓練費入力（前期）'!$F201="","",IF('教育訓練費入力（前期）'!$G201=1,'教育訓練費入力（前期）'!$F201,'教育訓練費入力（前期）'!$F201&"他"&'教育訓練費入力（前期）'!$G201-1&"名")) -> 
B202: 193 | K202: =IF('教育訓練費入力（前期）'!$C202="","",TEXT('教育訓練費入力（前期）'!$C202,"yyyy年")&TEXT('教育訓練費入力（前期）'!$C202,"m月")&TEXT('教育訓練費入力（前期）'!$C202,"ｄ日")&"から"&'教育訓練費入力（前期）'!$D202&"日間") ->  | L202: =IF('教育訓練費入力（前期）'!$F202="","",IF('教育訓練費入力（前期）'!$G202=1,'教育訓練費入力（前期）'!$F202,'教育訓練費入力（前期）'!$F202&"他"&'教育訓練費入力（前期）'!$G202-1&"名")) -> 
B203: 194 | K203: =IF('教育訓練費入力（前期）'!$C203="","",TEXT('教育訓練費入力（前期）'!$C203,"yyyy年")&TEXT('教育訓練費入力（前期）'!$C203,"m月")&TEXT('教育訓練費入力（前期）'!$C203,"ｄ日")&"から"&'教育訓練費入力（前期）'!$D203&"日間") ->  | L203: =IF('教育訓練費入力（前期）'!$F203="","",IF('教育訓練費入力（前期）'!$G203=1,'教育訓練費入力（前期）'!$F203,'教育訓練費入力（前期）'!$F203&"他"&'教育訓練費入力（前期）'!$G203-1&"名")) -> 
B204: 195 | K204: =IF('教育訓練費入力（前期）'!$C204="","",TEXT('教育訓練費入力（前期）'!$C204,"yyyy年")&TEXT('教育訓練費入力（前期）'!$C204,"m月")&TEXT('教育訓練費入力（前期）'!$C204,"ｄ日")&"から"&'教育訓練費入力（前期）'!$D204&"日間") ->  | L204: =IF('教育訓練費入力（前期）'!$F204="","",IF('教育訓練費入力（前期）'!$G204=1,'教育訓練費入力（前期）'!$F204,'教育訓練費入力（前期）'!$F204&"他"&'教育訓練費入力（前期）'!$G204-1&"名")) -> 
B205: 196 | K205: =IF('教育訓練費入力（前期）'!$C205="","",TEXT('教育訓練費入力（前期）'!$C205,"yyyy年")&TEXT('教育訓練費入力（前期）'!$C205,"m月")&TEXT('教育訓練費入力（前期）'!$C205,"ｄ日")&"から"&'教育訓練費入力（前期）'!$D205&"日間") ->  | L205: =IF('教育訓練費入力（前期）'!$F205="","",IF('教育訓練費入力（前期）'!$G205=1,'教育訓練費入力（前期）'!$F205,'教育訓練費入力（前期）'!$F205&"他"&'教育訓練費入力（前期）'!$G205-1&"名")) -> 
B206: 197 | K206: =IF('教育訓練費入力（前期）'!$C206="","",TEXT('教育訓練費入力（前期）'!$C206,"yyyy年")&TEXT('教育訓練費入力（前期）'!$C206,"m月")&TEXT('教育訓練費入力（前期）'!$C206,"ｄ日")&"から"&'教育訓練費入力（前期）'!$D206&"日間") ->  | L206: =IF('教育訓練費入力（前期）'!$F206="","",IF('教育訓練費入力（前期）'!$G206=1,'教育訓練費入力（前期）'!$F206,'教育訓練費入力（前期）'!$F206&"他"&'教育訓練費入力（前期）'!$G206-1&"名")) -> 
B207: 198 | K207: =IF('教育訓練費入力（前期）'!$C207="","",TEXT('教育訓練費入力（前期）'!$C207,"yyyy年")&TEXT('教育訓練費入力（前期）'!$C207,"m月")&TEXT('教育訓練費入力（前期）'!$C207,"ｄ日")&"から"&'教育訓練費入力（前期）'!$D207&"日間") ->  | L207: =IF('教育訓練費入力（前期）'!$F207="","",IF('教育訓練費入力（前期）'!$G207=1,'教育訓練費入力（前期）'!$F207,'教育訓練費入力（前期）'!$F207&"他"&'教育訓練費入力（前期）'!$G207-1&"名")) -> 
... 818 more rows

Sheet 教育訓練費印刷（前期）
H7: 株式会社今野デザイン
B8: 平成29年4月1日 から 平成30年3月31日 までの教育訓練費の明細
B9: No. | C9: 実施時期 | D9: 内容 | E9: 受講者 | F9: 支払日 | G9: 支払額 | H9: 支払先
B10: 1 | C10: 2017年5月31日から2日間 | D10: 新人研修セミナー | E10: 笹部 菜穂美他2名 | F10: 2017-05-15 | G10: 300000 | H10: MUFGコンサルティング株式会社
B11: 2 | C11: 2017年6月30日から3日間 | D11: Python 中級者向け研修 | E11: 鳥居 雅之 | F11: 2017-06-01 | G11: 54000 | H11: 株式会社ムーンマイクロシステム
B12: 3 | C12: 2017年7月31日から2日間 | D12: 基本情報技術者試験受験料 | E12: 山下 崇他1名 | F12: 2017-07-09 | G12: 18600 | H12: 独立行政法人情報処理推進機構
B13: 4 | C13: 2017年8月21日から1日間 | D13: ３種衛生士試験料 | E13: 絹延橋 みつ子 | F13: 2017-08-02 | G13: 10800 | H13: （財）安全衛生技術試験協会
B14: 5 | C14: 2017年9月25日から3日間 | D14: 課長・主任・係長クラスのメンタル改革セミナー | E14: 日生 暁久他1名 | F14: 2017-09-10 | G14: 486000 | H14: MUFGコンサルティング株式会社
B15: 6 | C15: 2017年10月22日から1日間 | D15: 基本情報技術者試験、初級シスアド試験受験料 | E15: 笹部 菜穂美他9名 | F15: 2017-09-30 | G15: 84000 | H15: 独立行政法人情報処理推進機構
B16: 7 | C16: 2017年12月15日から3日間 | D16: ＶＢＡ試験対策講習 | E16: 鳥居 雅之他2名 | F16: 2017-11-15 | G16: 150000 | H16: 株式会社ＴＣインターナショナル
B17: 合計 | G17: =SUM(G10:G16) -> 1103400

Sheet 計算基礎シート (hidden)
A1: 従業員情報 | G1: 今期の教育訓練費合計 | H1: 前期の教育訓練費合計
A2: 1 | B2: =HLOOKUP(A2,給与入力!$5:$8,2,0) -> 今野 友夫 | C2: =HLOOKUP(計算基礎シート!A2,給与入力!$5:$8,4,0) -> 0 | D2: =IF(C2="該当",B2,"") ->  | E2: =IFERROR(INDEX($D$1:$D$31,SMALL(IF($D$1:$D$31<>"",ROW($D$1:$D$31)),ROW(D1))),"") -> 絹延橋 みつ子 | G2: 990000 | H2: 1103400
A3: 2 | B3: =HLOOKUP(A3,給与入力!$5:$8,2,0) -> 今野 朝子 | C3: =HLOOKUP(計算基礎シート!A3,給与入力!$5:$8,4,0) -> 0 | D3: =IF(C3="該当",B3,"") ->  | E3: =IFERROR(INDEX($D$1:$D$31,SMALL(IF($D$1:$D$31<>"",ROW($D$1:$D$31)),ROW(D2))),"") -> 山下 崇
A4: 3 | B4: =HLOOKUP(A4,給与入力!$5:$8,2,0) -> 絹延橋 みつ子 | C4: =HLOOKUP(計算基礎シート!A4,給与入力!$5:$8,4,0) -> 該当 | D4: 絹延橋 みつ子 | E4: =IFERROR(INDEX($D$1:$D$31,SMALL(IF($D$1:$D$31<>"",ROW($D$1:$D$31)),ROW(D3))),"") -> 滝山 真一
A5: 4 | B5: =HLOOKUP(A5,給与入力!$5:$8,2,0) -> 山下 崇 | C5: =HLOOKUP(計算基礎シート!A5,給与入力!$5:$8,4,0) -> 該当 | D5: 山下 崇 | E5: =IFERROR(INDEX($D$1:$D$31,SMALL(IF($D$1:$D$31<>"",ROW($D$1:$D$31)),ROW(D4))),"") -> 日生 暁久
A6: 5 | B6: =HLOOKUP(A6,給与入力!$5:$8,2,0) -> 滝山 真一 | C6: =HLOOKUP(計算基礎シート!A6,給与入力!$5:$8,4,0) -> 該当 | D6: 滝山 真一 | E6: =IFERROR(INDEX($D$1:$D$31,SMALL(IF($D$1:$D$31<>"",ROW($D$1:$D$31)),ROW(D5))),"") -> 鳥居 雅之
A7: 6 | B7: =HLOOKUP(A7,給与入力!$5:$8,2,0) -> 日生 暁久 | C7: =HLOOKUP(計算基礎シート!A7,給与入力!$5:$8,4,0) -> 該当 | D7: 日生 暁久 | E7: =IFERROR(INDEX($D$1:$D$31,SMALL(IF($D$1:$D$31<>"",ROW($D$1:$D$31)),ROW(D6))),"") -> 笹部 菜穂美
A8: 7 | B8: =HLOOKUP(A8,給与入力!$5:$8,2,0) -> 鳥居 雅之 | C8: =HLOOKUP(計算基礎シート!A8,給与入力!$5:$8,4,0) -> 該当 | D8: 鳥居 雅之 | E8: =IFERROR(INDEX($D$1:$D$31,SMALL(IF($D$1:$D$31<>"",ROW($D$1:$D$31)),ROW(D7))),"") -> 畦野 繁樹
A9: 8 | B9: =HLOOKUP(A9,給与入力!$5:$8,2,0) -> 笹部 菜穂美 | C9: =HLOOKUP(計算基礎シート!A9,給与入力!$5:$8,4,0) -> 該当 | D9: 笹部 菜穂美 | E9: =IFERROR(INDEX($D$1:$D$31,SMALL(IF($D$1:$D$31<>"",ROW($D$1:$D$31)),ROW(D8))),"") -> 多田 昭彦
A10: 9 | B10: =HLOOKUP(A10,給与入力!$5:$8,2,0) -> 畦野 繁樹 | C10: =HLOOKUP(計算基礎シート!A10,給与入力!$5:$8,4,0) -> 該当 | D10: 畦野 繁樹 | E10: =IFERROR(INDEX($D$1:$D$31,SMALL(IF($D$1:$D$31<>"",ROW($D$1:$D$31)),ROW(D9))),"") -> 川西 めぐみ
A11: 10 | B11: =HLOOKUP(A11,給与入力!$5:$8,2,0) -> 多田 昭彦 | C11: =HLOOKUP(計算基礎シート!A11,給与入力!$5:$8,4,0) -> 該当 | D11: 多田 昭彦 | E11: =IFERROR(INDEX($D$1:$D$31,SMALL(IF($D$1:$D$31<>"",ROW($D$1:$D$31)),ROW(D10))),"") -> 常盤 典子
A12: 11 | B12: =HLOOKUP(A12,給与入力!$5:$8,2,0) -> 川西 めぐみ | C12: =HLOOKUP(計算基礎シート!A12,給与入力!$5:$8,4,0) -> 該当 | D12: 川西 めぐみ | E12: =IFERROR(INDEX($D$1:$D$31,SMALL(IF($D$1:$D$31<>"",ROW($D$1:$D$31)),ROW(D11))),"") -> 鼓滝 健三
A13: 12 | B13: =HLOOKUP(A13,給与入力!$5:$8,2,0) -> 常盤 典子 | C13: =HLOOKUP(計算基礎シート!A13,給与入力!$5:$8,4,0) -> 該当 | D13: 常盤 典子 | E13: =IFERROR(INDEX($D$1:$D$31,SMALL(IF($D$1:$D$31<>"",ROW($D$1:$D$31)),ROW(D12))),"") -> 妙見 隆一
A14: 13 | B14: =HLOOKUP(A14,給与入力!$5:$8,2,0) -> 平野 裕 | C14: =HLOOKUP(計算基礎シート!A14,給与入力!$5:$8,4,0) -> 非該当 | E14: =IFERROR(INDEX($D$1:$D$31,SMALL(IF($D$1:$D$31<>"",ROW($D$1:$D$31)),ROW(D13))),"") -> 
A15: 14 | B15: =HLOOKUP(A15,給与入力!$5:$8,2,0) -> 鼓滝 健三 | C15: =HLOOKUP(計算基礎シート!A15,給与入力!$5:$8,4,0) -> 該当 | D15: 鼓滝 健三 | E15: =IFERROR(INDEX($D$1:$D$31,SMALL(IF($D$1:$D$31<>"",ROW($D$1:$D$31)),ROW(D14))),"") -> 
A16: 15 | B16: =HLOOKUP(A16,給与入力!$5:$8,2,0) -> 妙見 隆一 | C16: =HLOOKUP(計算基礎シート!A16,給与入力!$5:$8,4,0) -> 該当 | D16: 妙見 隆一 | E16: =IFERROR(INDEX($D$1:$D$31,SMALL(IF($D$1:$D$31<>"",ROW($D$1:$D$31)),ROW(D15))),"") -> 
A17: 16 | B17: =HLOOKUP(A17,給与入力!$5:$8,2,0) -> 0 | C17: =HLOOKUP(計算基礎シート!A17,給与入力!$5:$8,4,0) -> 0 | E17: =IFERROR(INDEX($D$1:$D$31,SMALL(IF($D$1:$D$31<>"",ROW($D$1:$D$31)),ROW(D16))),"") -> 
A18: 17 | B18: =HLOOKUP(A18,給与入力!$5:$8,2,0) -> 0 | C18: =HLOOKUP(計算基礎シート!A18,給与入力!$5:$8,4,0) -> 0 | E18: =IFERROR(INDEX($D$1:$D$31,SMALL(IF($D$1:$D$31<>"",ROW($D$1:$D$31)),ROW(D17))),"") -> 
A19: 18 | B19: =HLOOKUP(A19,給与入力!$5:$8,2,0) -> 0 | C19: =HLOOKUP(計算基礎シート!A19,給与入力!$5:$8,4,0) -> 0 | E19: =IFERROR(INDEX($D$1:$D$31,SMALL(IF($D$1:$D$31<>"",ROW($D$1:$D$31)),ROW(D18))),"") -> 
A20: 19 | B20: =HLOOKUP(A20,給与入力!$5:$8,2,0) -> 0 | C20: =HLOOKUP(計算基礎シート!A20,給与入力!$5:$8,4,0) -> 0 | E20: =IFERROR(INDEX($D$1:$D$31,SMALL(IF($D$1:$D$31<>"",ROW($D$1:$D$31)),ROW(D19))),"") -> 
A21: 20 | B21: =HLOOKUP(A21,給与入力!$5:$8,2,0) -> 0 | C21: =HLOOKUP(計算基礎シート!A21,給与入力!$5:$8,4,0) -> 0 | E21: =IFERROR(INDEX($D$1:$D$31,SMALL(IF($D$1:$D$31<>"",ROW($D$1:$D$31)),ROW(D20))),"") -> 
A22: 21 | B22: =HLOOKUP(A22,給与入力!$5:$8,2,0) -> 0 | C22: =HLOOKUP(計算基礎シート!A22,給与入力!$5:$8,4,0) -> 0 | E22: =IFERROR(INDEX($D$1:$D$31,SMALL(IF($D$1:$D$31<>"",ROW($D$1:$D$31)),ROW(D21))),"") -> 
A23: 22 | B23: =HLOOKUP(A23,給与入力!$5:$8,2,0) -> 0 | C23: =HLOOKUP(計算基礎シート!A23,給与入力!$5:$8,4,0) -> 0 | E23: =IFERROR(INDEX($D$1:$D$31,SMALL(IF($D$1:$D$31<>"",ROW($D$1:$D$31)),ROW(D22))),"") -> 
A24: 23 | B24: =HLOOKUP(A24,給与入力!$5:$8,2,0) -> 0 | C24: =HLOOKUP(計算基礎シート!A24,給与入力!$5:$8,4,0) -> 0 | E24: =IFERROR(INDEX($D$1:$D$31,SMALL(IF($D$1:$D$31<>"",ROW($D$1:$D$31)),ROW(D23))),"") -> 
A25: 24 | B25: =HLOOKUP(A25,給与入力!$5:$8,2,0) -> 0 | C25: =HLOOKUP(計算基礎シート!A25,給与入力!$5:$8,4,0) -> 0 | E25: =IFERROR(INDEX($D$1:$D$31,SMALL(IF($D$1:$D$31<>"",ROW($D$1:$D$31)),ROW(D24))),"") -> 
A26: 25 | B26: =HLOOKUP(A26,給与入力!$5:$8,2,0) -> 0 | C26: =HLOOKUP(計算基礎シート!A26,給与入力!$5:$8,4,0) -> 0 | E26: =IFERROR(INDEX($D$1:$D$31,SMALL(IF($D$1:$D$31<>"",ROW($D$1:$D$31)),ROW(D25))),"") -> 
A27: 26 | B27: =HLOOKUP(A27,給与入力!$5:$8,2,0) -> 0 | C27: =HLOOKUP(計算基礎シート!A27,給与入力!$5:$8,4,0) -> 0 | E27: =IFERROR(INDEX($D$1:$D$31,SMALL(IF($D$1:$D$31<>"",ROW($D$1:$D$31)),ROW(D26))),"") -> 
A28: 27 | B28: =HLOOKUP(A28,給与入力!$5:$8,2,0) -> 0 | C28: =HLOOKUP(計算基礎シート!A28,給与入力!$5:$8,4,0) -> 0 | E28: =IFERROR(INDEX($D$1:$D$31,SMALL(IF($D$1:$D$31<>"",ROW($D$1:$D$31)),ROW(D27))),"") -> 
A29: 28 | B29: =HLOOKUP(A29,給与入力!$5:$8,2,0) -> 0 | C29: =HLOOKUP(計算基礎シート!A29,給与入力!$5:$8,4,0) -> 0 | E29: =IFERROR(INDEX($D$1:$D$31,SMALL(IF($D$1:$D$31<>"",ROW($D$1:$D$31)),ROW(D28))),"") -> 
A30: 29 | B30: =HLOOKUP(A30,給与入力!$5:$8,2,0) -> 0 | C30: =HLOOKUP(計算基礎シート!A30,給与入力!$5:$8,4,0) -> 0 | E30: =IFERROR(INDEX($D$1:$D$31,SMALL(IF($D$1:$D$31<>"",ROW($D$1:$D$31)),ROW(D29))),"") -> 
A31: 30 | B31: =HLOOKUP(A31,給与入力!$5:$8,2,0) -> 0 | C31: =HLOOKUP(計算基礎シート!A31,給与入力!$5:$8,4,0) -> 0 | E31: =IFERROR(INDEX($D$1:$D$31,SMALL(IF($D$1:$D$31<>"",ROW($D$1:$D$31)),ROW(D30))),"") -> 
